Workbook

Sheet ACCUEIL
A1: B.S.L ÉLEC
C7: COMMANDE FOURNISSEUR | K7: ARTICLES | S7: PRÉPARATION DE COMMANDES | AA7: FOURNISSEURS
C9: Commande fournisseur | S9: Commande client | W9: Traitement de la commande | AA9: Recherche d'un fournisseur | AE9: Recherche par son numéro
G10: Bon de livraison fournisseur | K10: Recherche d'un article | O10: Étiquette article
C13: RÉCEPTION
S14: Dossiers Commandes clients | W14: Bon de préparation | AA14: Enregistrement d'un fournisseur
C15: Dossiers Commande Fournisseurs | G15: Bon de réception | K15: Enregistrer un nouveau produit | O15: Fichier article
C18: RETOUR | K18: INVENTAIRE | S18: CLIENTS | AA18: TRANSPORTEURS
S20: Rechercher un client | W20: Recherche client par son numéro | AA20: Recherche d'un transporteur | AE20: Recherche par son numéro
C21: Litige transporteur | G21: Saisie du Bon de retour | K21: Renseigner la fiche d'inventaire | S21: Enregistrer un client | AA21: Enregistrement d'un nouveau transporteur

Sheet bon de réception
G2: BON DE RECEPTION
C3: ='Gestion identité'!C5 -> B.S.L ÉLEC
C4: ='Gestion identité'!C6 -> 5, rue Ste Anne | G4: N°
C5: ='Gestion identité'!C7 -> 54340 Pompey
G6: Fournisseur :
C7: Notre commande N° : | G7: =IF($I$14="","",VLOOKUP($I$14,carnetadresse,2,FALSE)) -> 
C8: Du: | G8: =IF($I$14="","",VLOOKUP($I$14,carnetadresse,3,FALSE)) -> 
G9: =IF($I$14="","",VLOOKUP($I$14,carnetadresse,4,FALSE)) -> 
C10: Date de réception : | G10: =IF($I$14="","",VLOOKUP($I$14,carnetadresse,5,FALSE)) -> 
C12: Transporteur : | D12: =IF(I12="","",VLOOKUP($I$12,listetransporteur,2,FALSE)) -> 
D13: =IF(I12="","",VLOOKUP($I$12,listetransporteur,4,FALSE)) ->  | E13: =IF(I12="","",VLOOKUP($I$12,listetransporteur,5,FALSE)) -> 
C15: Référence | D15: Désignation | G15: Qté Cdée | H15: Qté livrée | I15: Qté acceptée
D16: =IF(C16="","",VLOOKUP(C16,stock,2,FALSE)) -> 
C33: Nombre de colis : | E33: Poids en kg :
G34: Nom du réceptionnaire
C35: Observations :

Sheet Lettre de voiture Retour
E3: Lettre de voiture retour colis
C6: EXPEDITEUR | E6: DESTINATAIRE | H6: Nbre colis | I6: Port Payé H.T | K6: T.V.A 20 % | L6: Contre Remoursement
C7: ='Gestion identité'!C5 -> B.S.L ÉLEC | E7: =IF('Bon de retour'!$K$1="","",'Bon de retour'!H11) ->  | H7: =IF('Bon de retour'!$K$1="","",'Bon de retour'!E34) -> 
C8: ='Gestion identité'!C6 -> 5, rue Ste Anne | E8: =IF('Bon de retour'!$K$1="","",'Bon de retour'!H12) ->  | H8: Poids en Kg | I8: Port dû H.T | K8: Débours Assignés | M8: Total à Encaisser
C9: ='Gestion identité'!C7 -> 54340 Pompey | E9: =IF('Bon de retour'!$K$1="","",'Bon de retour'!H13) ->  | F9: =IF('Bon de retour'!$K$1="","",'Bon de retour'!I13) ->  | H9: =IF('Bon de retour'!$K$1="","",'Bon de retour'!G34) -> 
C10: Date d'exp | D10: =IF('Bon de retour'!$K$1="","",'Bon de retour'!I6) ->  | E10: Produits électriques | M10: L'expédition contient des matières dangereuses selon RTMD/RD/ADR DECLARATION OBLIGATOIRE
C11: Lettre de voiture N° | D11: W25127
M12: oui | N12: non
E13: DESIGNATION - NATURE - MARQUES ET NUMEROS | I13: OBSERVATIONS DE LIVRAISON | M13: MATIERES DANGEREUSES
C14: Rayer la mention inutile | E14: Valeur à assurée | F14: Nos opérations sont soumises aux Conditions générales de transport de détail approuvées par décisions Ministérielles (J.O du 21.01.1971 et du 27.07.1985). | H14: VOIR AU VERSO EXTRAIT DE CES CONDITIONS GENERALES | I14: Les réserves pour être valables doivent. Etre indiquées de façon précise ci-contre Et confirmées dans les trois jours, par Lettre recommandée au livreur (article L 133-3 du code de commerce).
C16: Port Payé | D16: Port dû
C17: TRANSPORTEUR | G17: Conditions générales | K17: GENCOD
G18: Marchandise expédiée le : | I18: =IF(D10="","",D10) ->  | K18: Marchandise reçue le :
C19: =IF('Bon de retour'!$K$2="","",'Bon de retour'!E16) ->  | G19: RESERVES : | K19: RESERVES :
C20: =IF('Bon de retour'!$K$2="","",'Bon de retour'!G16) ->  | G20: (Cachet ou Nom et signature du destinataire) | K20: (Cachet ou Nom et signature de l'expéditeur)
C21: =IF('Bon de retour'!$K$2="","",'Bon de retour'!H16) -> 
G22: Expéditeur | K22: Destinataire

Sheet Bon de retour
I2: BON DE RETOUR
C4: ='Gestion identité'!C5 -> B.S.L ÉLEC | H4: N° :
C5: ='Gestion identité'!C6 -> 5, rue Ste Anne
C6: ='Gestion identité'!C7 -> 54340 Pompey | H6: Du :
C8: ='Gestion identité'!C8 -> 03.83.49.11.94 | H8: FOURNISSEUR
C10: Numéro de commande :
C11: du : | H11: =IF($K$1="","",VLOOKUP($K$1,carnetadresse,2,FALSE)) -> 
H12: =IF($K$1="","",VLOOKUP($K$1,carnetadresse,3,FALSE)) -> 
C13: Date de réception : | H13: =IF($K$1="","",VLOOKUP($K$1,carnetadresse,4,FALSE)) ->  | I13: =IF($K$1="","",VLOOKUP($K$1,carnetadresse,5,FALSE)) -> 
C14: N° du bon de réception :
C16: Transport : | E16: =IF($K$2="","",VLOOKUP($K$2,listetransporteur,2,FALSE)) ->  | G16: =IF($K$2="","",VLOOKUP($K$2,listetransporteur,4,FALSE)) ->  | H16: =IF($K$2="","",VLOOKUP($K$2,listetransporteur,5,FALSE)) -> 
C18: Référence | D18: Désignation | I18: Qté commandée | J18: Qté retournée
D19: =IF(C19="","",VLOOKUP(C19,stock,2,FALSE)) -> 
F32: Nombre total d'articles : | I32: =IF(I19="","",SUM(I19:I31)) ->  | J32: =IF(J19="","",SUM(J19:J31)) -> 
D34: Nombre de colis : | F34: Poids en kg :
C36: Observations :

Sheet Étiquette colis Retour
B6: Expéditeur | F6: Date d’expédition : | G6: =IF('Bon de retour'!I6="","",'Bon de retour'!I6) -> 
C7: ='Gestion identité'!C5 -> B.S.L ÉLEC
C8: ='Gestion identité'!C6 -> 5, rue Ste Anne | F8: N° de Bon du Retour : | G8: =IF('Bon de retour'!$K$1="","",'Bon de retour'!I4) -> 
C9: ='Gestion identité'!C7 -> 54340 Pompey
B11: Destinataire | G11: Département
C12: =IF('Bon de retour'!$K$1="","",'Bon de retour'!H11) ->  | G12: =LEFT(C14,2) -> 
C13: =IF('Bon de retour'!$K$1="","",'Bon de retour'!H12) -> 
C14: =IF('Bon de retour'!$K$1="","",'Bon de retour'!H13) -> 
C15: =IF('Bon de retour'!$K$1="","",'Bon de retour'!I13) -> 
B16: Transporteur : | G16: Colis N°
B17: =IF('Bon de retour'!K2="","",'Bon de retour'!E16) ->  | G17: =IF('Bon de retour'!$E$34>=1,1,"") -> 
B18: =IF('Bon de retour'!K2="","",'Bon de retour'!G16) -> 
B19: =IF('Bon de retour'!K2="","",'Bon de retour'!H16) -> 
B22: =IF('Bon de retour'!$E$34>1,$B$6,"") ->  | C22: =IF('Bon de retour'!$E$34>1,$C$7,"") ->  | F22: =IF('Bon de retour'!$E$34>1,$F$6,"") ->  | G22: =IF('Bon de retour'!$E$34>1,$G$6,"") -> 
C24: =IF('Bon de retour'!$E$34>1,$C$8,"") ->  | F24: =IF('Bon de retour'!$E$34>1,$F$8,"") ->  | G24: =IF('Bon de retour'!$E$34>1,$G$8,"") -> 
C25: =IF('Bon de retour'!$E$34>1,$C$9,"") -> 
B27: =IF('Bon de retour'!$E$34>1,$B$11,"") ->  | G27: =IF('Bon de retour'!$E$34>1,$G$11,"") -> 
C28: =IF('Bon de retour'!$E$34>1,$C$12,"") ->  | G28: =LEFT(C30,2) -> 
C29: =IF('Bon de retour'!$E$34>1,$C$13,"") -> 
C30: =IF('Bon de retour'!$E$34>1,$C$14,"") -> 
C31: =IF('Bon de retour'!$E$34>1,$C$15,"") -> 
B32: =IF('Bon de retour'!$E$34>1,$B$16,"") ->  | G32: =IF('Bon de retour'!$E$34>1,$G$16,"") -> 
B33: =IF('Bon de retour'!$E$34>1,$B$17,"") ->  | G33: =IF('Bon de retour'!$E$34>1,$G$17+1,"") -> 
B34: =IF('Bon de retour'!$E$34>1,$B$18,"") -> 
B35: =IF('Bon de retour'!$E$34>1,$B$19,"") -> 
B38: =IF('Bon de retour'!$E$34>2,$B$6,"") ->  | C38: =IF('Bon de retour'!$E$34>2,$C$7,"") ->  | F38: =IF('Bon de retour'!$E$34>2,$F$6,"") ->  | G38: =IF('Bon de retour'!$E$34>2,$G$6,"") -> 
C40: =IF('Bon de retour'!$E$34>2,$C$8,"") ->  | F40: =IF('Bon de retour'!$E$34>2,$F$8,"") ->  | G40: =IF('Bon de retour'!$E$34>2,$G$8,"") -> 
C41: =IF('Bon de retour'!$E$34>2,$C$9,"") -> 
B43: =IF('Bon de retour'!$E$34>2,$B$11,"") ->  | G43: =IF('Bon de retour'!$E$34>2,$G$11,"") -> 
C44: =IF('Bon de retour'!$E$34>2,$C$12,"") ->  | G44: =LEFT(C46,2) -> 
C45: =IF('Bon de retour'!$E$34>2,$C$13,"") -> 
C46: =IF('Bon de retour'!$E$34>2,$C$14,"") -> 
C47: =IF('Bon de retour'!$E$34>2,$C$15,"") -> 
B48: =IF('Bon de retour'!$E$34>2,$B$16,"") ->  | G48: =IF('Bon de retour'!$E$34>2,$G$16,"") -> 
B49: =IF('Bon de retour'!$E$34>2,$B$17,"") ->  | G49: =IF('Bon de retour'!$E$34>2,$G$17+2,"") -> 
B50: =IF('Bon de retour'!$E$34>2,$B$18,"") -> 
B51: =IF('Bon de retour'!$E$34>2,$B$19,"") -> 

Sheet Courrier litige Transporteur
L1: transporteur
L2: fournisseur
B4: ='Gestion identité'!C5 -> B.S.L ÉLEC
B5: ='Gestion identité'!C6 -> 5, rue Ste Anne
B6: ='Gestion identité'!C7 -> 54340 Pompey | F6: Transporteur
B8: ='Gestion identité'!C8 -> 03.83.49.11.94 | F8: =IF($K$1="","",VLOOKUP($K$1,listetransporteur,2,FALSE)) -> 
B9: ='Gestion identité'!C9 -> B.S.L Élec@orange.fr | F9: =IF($K$1="","",VLOOKUP($K$1,listetransporteur,3,FALSE)) -> 
F10: =IF($K$1="","",VLOOKUP($K$1,listetransporteur,4,FALSE)) ->  | G10: =IF($K$1="","",VLOOKUP($K$1,listetransporteur,5,FALSE)) -> 
D12: ='Gestion identité'!C10 -> Pompey | E12: le,
B15: Lettre recommandée avec accusé de réception.
B16: Objet : Avis de litige.
B18: Référence :
B19: Lettre de voiture N ° :
B21: Notre commande du :
B22: N° :
B24: Madame, Monsieur,
B26: Nous vous déclarons, en application de l'article 133-3 du code de commerce, les réserves suivantes :
B28: Réception du :
B30: Expéditeur : | C30: =IF($K$2="","",VLOOKUP($K$2,carnetadresse,2,FALSE)) -> 
C31: =IF($K$2="","",VLOOKUP($K$2,carnetadresse,3,FALSE)) -> 
C32: =IF($K$2="","",VLOOKUP($K$2,carnetadresse,4,FALSE)) ->  | D32: =IF($K$2="","",VLOOKUP($K$2,carnetadresse,5,FALSE)) -> 
B34: Nous avons constatés :
B36: Avarie :
B37: Nature de l'avarie :
B40: Cette avarie a-t-elle été précisée sur la lettre de voiture :
B41: A-t-elle provoqué le refus de la marchandise :
B43: Manquant :
B44: N° de Colis ou de Palette :
B45: Ce manquant est-il mentioné sur la lettre de voiture :
B47: Refus de réception :
B48: Motif :
B53: Nous faisons parvenir une copie de ce courrier à notre fournisseur.
B55: Nous vous prions de croire, Madame, Monsieur, à nos cordiales salutations.
F57: Le réceptionnaire

Sheet Bon de commande
C5: ='Gestion identité'!C5 -> B.S.L ÉLEC | G5: BON DE COMMANDE
C6: ='Gestion identité'!C6 -> 5, rue Ste Anne
C7: ='Gestion identité'!C7 -> 54340 Pompey | G7: N° :
G8: Du :
C9: ='Gestion identité'!C8 -> 03.83.49.11.94
C10: ='Gestion identité'!C9 -> B.S.L Élec@orange.fr | G10: Fournisseur n°
G12: =IF($I$10="","",VLOOKUP($I$10,carnetadresse,2,FALSE)) -> 
G13: =IF($I$10="","",VLOOKUP($I$10,carnetadresse,3,FALSE)) -> 
G14: =IF($I$10="","",VLOOKUP($I$10,carnetadresse,4,FALSE)) -> 
C15: Date de livraison le : | G15: =IF($I$10="","",VLOOKUP($I$10,carnetadresse,5,FALSE)) -> 
C17: Mode d'expédition : | E17: Route
C19: Référence | D19: Désignation | G19: Qté | H19: Prix unitaire h.t | I19: Total h.t
D20: =IF(C20="","",VLOOKUP(C20,stock,2,FALSE)) ->  | H20: =IF(C20="","",VLOOKUP(C20,stock,7,FALSE)) ->  | I20: =IF(G20="","",G20*H20) -> 
I21: =IF(G21="","",G21*H21) -> 
F35: Total | G35: =IF(G20="","",SUM(G20:G34)) -> 
H37: Total H.T | I37: =IF(I20="","",SUM(I20:I34)) -> 
H38: T.V.A 20 % | I38: =IF(I37="","",I37*0.2) -> 
H39: Total T.T.C | I39: =IF(I37="","",I37+I38) -> 

Sheet BL fournisseur
C5: =IF($G$14="","",VLOOKUP($G$14,carnetadresse,2,FALSE)) ->  | F5: BON DE LIVRAISON
C6: =IF($G$14="","",VLOOKUP($G$14,carnetadresse,3,FALSE)) ->  | E6: N° :
C7: =IF($G$14="","",VLOOKUP($G$14,carnetadresse,4,FALSE)) ->  | D7: =IF($G$14="","",VLOOKUP($G$14,carnetadresse,5,FALSE)) ->  | E7: Date :
C8: Tél : | D8: =IF($G$14="","",VLOOKUP($G$14,carnetadresse,6,FALSE)) ->  | E8: Destinataire
E9: ='Gestion identité'!C5 -> B.S.L ÉLEC
B10: Votre commande du : | E10: ='Gestion identité'!C6 -> 5, rue Ste Anne
C11: N° | E11: ='Gestion identité'!C7 -> 54340 Pompey
D12: Transporteur :
D13: =IF($C$13="","",VLOOKUP($C$13,listetransporteur,2,FALSE)) ->  | E13: Date de livraison
C14: =IF($C$13="","",VLOOKUP($C$13,listetransporteur,4,FALSE)) ->  | D14: =IF($C$13="","",VLOOKUP($C$13,listetransporteur,5,FALSE)) -> 
G15: 10
F16: Quantité
C17: Référence | D17: Désignation | E17: Unité de vente | F17: Qté cdée | G17: Qté livrée
D18: =IF(C18="","",VLOOKUP(C18,stock,2,FALSE)) ->  | E18: =IF(C18="","",VLOOKUP(C18,stock,5,FALSE)) -> 
C34: Nombre de colis : | E34: TOTAL | F34: =IF(F18="","",SUM(F18:F32)) ->  | G34: =IF(G18="","",SUM(G18:G32)) -> 
C35: Poids en kg :
C37: Observations :

Sheet Lettre Voiture livraison fourn
E3: Lettre de voiture livraison fournisseur
C6: EXPEDITEUR | E6: DESTINATAIRE | H6: Nbre colis | I6: Port Payé H.T | K6: T.V.A 20 % | L6: Contre Remoursement
C7: =IF('BL fournisseur'!$C$5="","",'BL fournisseur'!$C$5) ->  | E7: ='Gestion identité'!C5 -> B.S.L ÉLEC | H7: =IF('BL fournisseur'!$D$34="","",'BL fournisseur'!D34) -> 
C8: =IF('BL fournisseur'!$C$6="","",'BL fournisseur'!$C$6) ->  | E8: ='Gestion identité'!C6 -> 5, rue Ste Anne | H8: Poids en Kg | I8: Port dû H.T | K8: Débours Assignés | M8: Total à Encaisser
C9: =IF('BL fournisseur'!$C$7="","",'BL fournisseur'!C7) ->  | D9: =IF('BL fournisseur'!$C$7="","",'BL fournisseur'!D7) ->  | E9: ='Gestion identité'!C7 -> 54340 Pompey | H9: =IF('BL fournisseur'!$D$35="","",'BL fournisseur'!$D$35) -> 
C10: Date d'exp | D10: =IF('BL fournisseur'!$F$7="","",'BL fournisseur'!F7) ->  | E10: Produits électriques | M10: L'expédition contient des matières dangereuses selon RTMD/RD/ADR DECLARATION OBLIGATOIRE
C11: Lettre de voiture N° | D11: W25127
M12: oui | N12: non
E13: DESIGNATION - NATURE - MARQUES ET NUMEROS | I13: OBSERVATIONS DE LIVRAISON | M13: MATIERES DANGEREUSES
C14: Rayer la mention inutile | E14: Valeur à assurée | F14: Nos opérations sont soumises aux Conditions générales de transport de détail approuvées par décisions Ministérielles (J.O du 21.01.1971 et du 27.07.1985). | H14: VOIR AU VERSO EXTRAIT DE CES CONDITIONS GENERALES | I14: Les réserves pour être valables doivent. Etre indiquées de façon précise ci-contre Et confirmées dans les trois jours, par Lettre recommandée au livreur (article L 133-3 du code de commerce).
C16: Port Payé | D16: Port dû
C17: TRANSPORTEUR | G17: Conditions générales | K17: GENCOD
G18: Marchandise expédiée le : | I18: =IF('BL fournisseur'!$F$7="","",'BL fournisseur'!$F$7) ->  | K18: Marchandise reçue le :
C19: =IF('BL fournisseur'!D13="","",'BL fournisseur'!D13) ->  | G19: RESERVES : | K19: RESERVES :
C20: =IF('BL fournisseur'!C14="","",'BL fournisseur'!C14) ->  | G20: (Cachet ou Nom et signature du destinataire) | K20: (Cachet ou Nom et signature de l'expéditeur)
C21: =IF('BL fournisseur'!D14="","",'BL fournisseur'!D14) -> 
G22: Expéditeur | K22: Destinataire

Sheet Transporteurs
A1: N° | B1: Nom | C1: Adresse | D1: Code postal | E1: Ville | F1: Téléphone | G1: Émail
A2: 1 | B2: BERTRAND | C2: ZI Sud | D2: 54000 | E2: Nancy | F2: 03.83.24.58.66 | G2: =IF(B2="","",(LOWER(B2&"."&E2&"@"&B2&".com"))) -> bertrand.nancy@bertrand.com
A3: =A2+1 -> 2 | B3: DUPUISLOG | C3: ZAC Nord | D3: 57000 | E3: Metz | F3: 03.87.54.85.96 | G3: dupuislog.metz@dupuislog.com
A4: 3 | B4: LACOSTRANSPORT | C4: 14,rue de Lorient | D4: 56000 | E4: Vannes | F4: 05.56.65.65.85 | G4: lacostransport.vannes@lacostransport.com
A5: 4 | B5: ANDRÉ | C5: 87, avenue Clément Ader | D5: 45000 | E5: Orléans | F5: 06.54.21.02.32 | G5: andré.orléans@andré.com
A6: 5 | B6: GILBERT | C6: ZAC de Fermeille | D6: 85600 | E6: La Roche sur Yon | F6: 02.33.36.69.36 | G6: gilbert.la roche sur yon@gilbert.com
A7: 6 | B7: MUSTAPHA | C7: 41, avenue Foch | D7: 68000 | E7: COLMAR | F7: 03.89.54.52.25 | G7: mustapha.colmar@mustapha.com
A8: 7 | B8: ESTEBAN | C8: 41 Rue des vignerons | D8: 16000 | E8: COGNAC | F8: 06.55.85.57.41 | G8: =IF(B8="","",(LOWER(B8&"."&E8&"@"&B8&".com"))) -> esteban.cognac@esteban.com
A9: =A8+1 -> 8 | B9: LEVASSEUR | C9: 17 Rue PAsteur | D9: 38000 | E9: Grenoble | F9: 04.76.33.59.58 | G9: =IF(B9="","",(LOWER(B9&"."&E9&"@"&B9&".com"))) -> levasseur.grenoble@levasseur.com
A10: =A9+1 -> 9 | B10: ÉCOTRENS | C10: 5, rue L.LAMBERT | D10: 10000 | E10: TROYES | F10: 02.55.98.45.52 | G10: =IF(B10="","",(LOWER(B10&"."&E10&"@"&B10&".com"))) -> écotrens.troyes@écotrens.com
A11: =A10+1 -> 10 | B11: Fernalogistique | C11: 56, avenue M.CURIE | D11: 87000 | E11: Limoges | F11: 05.55.47.52.33 | G11: =IF(B11="","",(LOWER(B11&"."&E11&"@"&B11&".com"))) -> fernalogistique.limoges@fernalogistique.com
A12: =A11+1 -> 11 | B12: FCE 13 | C12: 201 Avenue Aygalades La Lauzière | D12: 13014 | E12: MARSEILLE | F12: 04 91 60 20 15 | G12: =IF(B12="","",(LOWER(B12&"."&E12&"@"&B12&".com"))) -> fce 13.marseille@fce 13.com
A13: =A12+1 -> 12 | B13: EUROMAG | C13: 116 Rue République | D13: 13002 | E13: Marseille | F13: 04.91.91.19.96 | G13: =IF(B13="","",(LOWER(B13&"."&E13&"@"&B13&".com"))) -> euromag.marseille@euromag.com
A14: 13 | B14: EUROFRET | C14: 151 Boulevard Danielle Casanova | D14: 13014 | E14: Marseille | F14: 04.88.66.15.01 | G14: eurofret.marseille@eurofret.com
A15: 14 | B15: PROTIS | C15: 140 avenue Kennedy | D15: 13007 | E15: Marseille | F15: 04.91.31.92.82 | G15: protis.marseille@protis.com
A16: 15 | B16: GEODIS | C16: 26 avenue Lascos - ZI Sud | D16: 13691 | E16: Martiques | F16: 04.91.25.25.98 | G16: geodis.martiques@geodis.com
A17: 16 | B17: TRANSPORTS PORTMANN | C17: 8 troisième rue ZI Estroublans | D17: 13127 | E17: VITROLLES | F17: 04.42.79.78.87 | G17: transports portmann.vitrolles@transports portmann.com
A18: 17 | B18: UPS 13 MARSEILLE | C18: ZAC des Cadestaux | D18: 13002 | E18: MARSEILLE | F18: 04.26.31.75.24 | G18: ups 13 marseille.marseille@ups 13 marseille.com
A19: 18 | B19: TRANSCAUSSE | C19: 521 chemin du litoral | D19: 13016 | E19: Marseille | F19: 04.91.56.26.31 | G19: transcausse .marseille@transcausse .com
A20: 19 | B20: SPTT | C20: 14 Rue Louis Astouin | D20: 13002 | E20: Marseille | F20: 04.91.91.92.73 | G20: sptt.marseille@sptt.com
A21: 20 | B21: CHALLENGE INTER | C21: 1 RUE ALBERT COHEN | D21: 13312 | E21: Marseille | F21: 04.91.14.03.55 | G21: challenge inter.marseille@challenge inter.com
A22: 21 | B22: Transport JOLIVET | C22: 20 rue des Tilleuls | D22: 17700 | E22: SAINT GERMAIN | F22: 05.54.87.62.33 | G22: transport jolivet.saint germain @transport jolivet.com
A23: 22 | B23: RENAUD TRANSPORTS | C23: 3 Rue Industrie - Goutrolles | D23: 17800 | E23: PONS | F23: 05.46.94.09.47 | G23: renaud transports .pons@renaud transports .com
A24: 23 | B24: ROBIN TRANSPORTS | C24: 31 Grande Rue | D24: 17220 | E24: MONTROY | F24: 05.46.55.06.70 | G24: robin transports. montroy@robin transports.com
A25: 24 | B25: Trans Tardet | C25: 35 Rue Robert Geffre | D25: 17000 | E25: LA ROCHELLE | F25: 05.46.56.71.03 | G25: trans tardet.la rochelle@trans tardet.com
A26: 25 | B26: ROYER PASCAL | C26: 7 Route Du Silo | D26: 17810 | E26: SAINT-GEORGES | F26: 05.46.32.21.75 | G26: royer pascal.saint-georges@royer pascal.com
A27: 26 | B27: S.T.M. | C27: 330 Route de Saintes | D27: 17400 | E27: SAINT JEAN D'ANGELY | F27: 05 46 32 57 50 | G27: s.t.m..saint jean d'angely@s.t.m..com
A28: 27 | B28: ROUSSEAU ET FILS | C28: 26 Avenue Maryse Bastié | D28: 17200 | E28: ROYAN | F28: 05.33.43.56.12 | G28: rousseau et fils.royan@rousseau et fils.com
A29: 28 | B29: RIDEAU PASCAL | C29: Le Mottin Blanc | D29: 17500 | E29: ALLAS CHAMAPGNE | F29: 05.46.32.43.54 | G29: rideau pascal.allas chamapgne@rideau pascal.com
A30: 29 | B30: REGNIER TRANSPORTS | C30: Le Moulin Seguin | D30: 17290 | E30: BALLON | F30: 05 46 55 36 57 | G30: regnier transports.ballon@regnier transports.com
A31: 30 | B31: PRIET TRANSPORT | C31: 10 Rue de l'Espérance | D31: 17420 | E31: SAINT PALAIS | F31: 05 46 23 43 80 | G31: priet transport.saint palais @priet transport.com
A32: 31 | B32: BARY ET FILS | C32: 83 Rue De Thurey | D32: 10180 | E32: SAINT BENOIT SUR SEINE | F32: 08.90.21.51.59 | G32: bary et fils.saint benoit sur seine@bary et fils.com
A33: 32 | B33: BELLOT THIERRY | C33: 19 Bis Avenue Anatole France | D33: 10000 | E33: TROYES | F33: 08.90.21.51.32 | G33: bellot thierry.troyes@bellot thierry.com
A34: 33 | B34: CHAMPENOIS | C34: Rd 56 | D34: 10700 | E34: VINETS | F34: 08.90.21.51.71 | G34: champenois.vinets@champenois.com
A35: 34 | B35: BETON | C35: Route De Rumilly | D35: 10260 | E35: VAUDES | F35: 08.90.21.51.45 | G35: beton .vaudes@beton .com
A36: 35 | B36: BOURG | C36: 52 Avenue Maréchal Leclerc | D36: 10120 | E36: ST ANDRE LES VERGERS | F36: 08.90.21.51.76 | G36: bourg.st andre les vergers@bourg.com
A37: 36 | B37: BRUN TRASPORTS | C37: 1 Route Des Templiers | D37: 10260 | E37: MONTCEAUX LES VAUDES | F37: 08.90.21.51.64 | G37: brun trasports.montceaux les vaudes@brun trasports.com
A38: 37 | B38: CHAPLAIN | C38: Rue St Memmie | D38: 10700 | E38: VINETS | F38: 08.90.21.51.92 | G38: chaplain .vinets@chaplain .com
A39: 38 | B39: COFFINET | C39: 1Route Des Templiers | D39: 10260 | E39: MONTCEAUX LES VAUDES | F39: 08.90.21.51.76 | G39: coffinet.montceaux les vaudes@coffinet.com
A40: 39 | B40: DLS EXPRESS | C40: 14 Rue De La Paix | D40: 10320 | E40: BOUILLY | F40: 08.90.21.51.48 | G40: dls express.bouilly@dls express.com
A41: 40 | B41: DUBOE TRANSPORTS | C41: Avenue Du 4 Juillet 1776 | D41: 19100 | E41: BRIVES | F41: 08.90.21.51.92 | G41: duboe transports.brives@duboe transports.com
A42: 41 | B42: GRANGER | C42: Le Soulet | D42: 19130 | E42: AYEN | F42: 08.90.21.51.23 | G42: granger .ayen@granger .com
A43: 42 | B43: GROSBOIS & Fils | C43: Le Feyt | D43: 19170 | E43: BUGEAT | F43: 08.90.21.51.20 | G43: grosbois & fils.bugeat@grosbois & fils.com
A44: 43 | B44: TRANSPORTS LASTERNAS | C44: 22 Avenue Henri De Jouvenel | D44: 19130 | E44: OBJAT | F44: 08.90.21.51.25 | G44: transports lasternas.objat@transports lasternas.com
A45: =A44+1 -> 44 | B45: MANAUX | C45: 3 Avenue Pierre Et Marie Curie | D45: 19400 | E45: ARGENTAT | F45: 08.90.21.51.41 | G45: =IF(B45="","",(LOWER(B45&"."&E45&"@"&B45&".com"))) -> manaux.argentat@manaux.com
A46: 45 | B46: LOUIS SA | C46: Hameau Favières | D46: 04420 | E46: Prads Haute Bleon | F46: 08.90.88.76.55 | G46: louis sa.prads haute bleon@louis sa.com
A47: 46 | B47: Transvet | C47: TIRASSE | D47: 04200 | E47: MISON | F47: 04.92.61.38.05 | G47: transvet.mison@transvet.com
A48: 47 | B48: NOVA | C48: PLACE COUVERT | D48: 04360 | E48: MOUSTIERS STE MARIE | F48: 04.92.74.61.11 | G48: nova.moustiers ste marie @nova.com
A49: 48 | B49: TRANSPORTS ALPINS | C49: 1Rue De Lavandes | D49: 04100 | E49: MANOSQUE | F49: 08.65.73.85.09 | G49: transports alpins .manosque @transports alpins .com
A50: 49 | B50: GALLETI FRERE | C50: ROUTE DE GAP | D50: 04200 | E50: SISTERON | F50: 08.74.94.74.28 | G50: galleti frere .sisteron@galleti frere .com
A51: 50 | B51: CHARBONNIER FRERES | C51: Zi Saint Joseph | D51: 04100 | E51: MANOSQUE | F51: 08.84.38.65.75 | G51: charbonnier freres .manosque @charbonnier freres .com
A52: 51 | B52: CHAPUS FRERE | C52: 564 Avenue Pierre Sémard | D52: 04220 | E52: STE TULLE | F52: 04.92.79.73.00 | G52: chapus frere.ste tulle @chapus frere.com
A53: 52 | B53: BONNEFOY ROBERT | C53: Zi-FERME LA COLOMBETTE | D53: 04200 | E53: LES OMERGUES | F53: 03.89.75.92.02 | G53: bonnefoy robert.les omergues@bonnefoy robert.com
A54: 53 | B54: TRANSPORTS ALPES | C54: Plan | D54: 04320 | E54: ENTREVAUX | F54: 03.80.14.93.04 | G54: transports alpes .entrevaux@transports alpes .com
A55: 54 | B55: AURILLAC LIVRAISONS | C55: 17 Rue Prince | D55: 15000 | E55: AURILLAC | F55: 04.71.43.26.31 | G55: aurillac livraisons.aurillac@aurillac livraisons.com
A56: 55 | B56: VISY | C56: 25 Avenue République | D56: 15100 | E56: SAINT FLOUR | F56: 04.71.64.26.45 | G56: visy.saint flour @visy.com
A57: 56 | B57: VIALA PRAT | C57: Crozatier | D57: 15100 | E57: ST GEORGES | F57: 04.71.60.21.94 | G57: viala prat .st georges @viala prat .com
A58: 57 | B58: TRANS SERVICES | C58: Les Clages | D58: 15300 | E58: MURAT | F58: 04.71.20.51.64 | G58: trans services .murat @trans services .com
A59: 58 | B59: TRANSORT TOUYRE | C59: Le Bourg | D59: 15120 | E59: LABRESSERETTE | F59: 04.71.49.27.28 | G59: transort touyre .labresserette @transort touyre .com
A60: 59 | B60: SOUQ GERARD | C60: Labouygues | D60: 15220 | E60: VITRAC | F60: 04.89.17.39.20 | G60: souq gerard .vitrac@souq gerard .com
A61: 60 | B61: CLAUDE | C61: 7 Rue Félix Ramond | D61: 15130 | E61: ARPAJON SUR Cère | F61: 08.64.30.28.65 | G61: claude.arpajon sur cère @claude.com
A62: 61 | B62: SARDENNE | C62: 4 Rue Emile Duclaux | D62: 15400 | E62: RION ES MONTAGNES | F62: 04.71.78.01.26 | G62: sardenne .rion es montagnes@sardenne .com
A63: 62 | B63: SALESSE MARC | C63: Jaulhac | D63: 15590 | E63: LASCELLE | F63: 04.38.29.67.05 | G63: salesse marc.lascelle @salesse marc.com
A64: 63 | B64: VERDIER S.E.A.M | C64: Zi De Sedour | D64: 15400 | E64: RIOM ES MONTAGNES | F64: 04.71.78.35.22 | G64: verdier s.e.a.m.riom es montagnes @verdier s.e.a.m.com
A65: 64 | B65: ALET Michel | C65: 37 bld des Balquières | D65: 12850 | E65: ONET-LE-CHATEAU | F65: 05.65.78.47.73 | G65: alet michel.onet-le-chateau@alet michel.com
A66: 65 | B66: BARDY Francis | C66: Vialaneuve | D66: 12380 | E66: LAVAL ROQUECEZIERE | F66: 08.90.21.51.91 | G66: bardy francis.laval roqueceziere@bardy francis.com
A67: 66 | B67: BEAUD BOIS | C67: 2160 rue des Aumières | D67: 12100 | E67: MILLAU | F67: 08.90.21.51.36 | G67: beaud bois.millau@beaud bois.com
A68: 67 | B68: BELIERES | C68: Za de Naujac - Rue du Commerce | D68: 12450 | E68: LA PRIMAUBE | F68: 08.90.21.51.38 | G68: belieres.la primaube@belieres.com
A69: 68 | B69: BELUEL | C69: La Souyrinié Saint Maymé | D69: 12850 | E69: ONET-LE-CHATEAU | F69: 08.90.21.51.88 | G69: beluel.onet-le-chateau@beluel.com
A70: 69 | B70: BENEZECH | C70: Route de la Tiergues | D70: 12400 | E70: ST AFFRIQUE | F70: 08.90.21.51.23 | G70: benezech .st affrique@benezech .com
A71: 70 | B71: BETEILLE | C71: 28 avenue de Toulouse | D71: 12450 | E71: LA PRIMAUBE | F71: 08.90.21.51.26 | G71: beteille.la primaube@beteille.com
A72: 71 | B72: BESSON et Fils | C72: Le Bournhou | D72: 12130 | E72: AURELLE VERLAC | F72: 08.90.21.51.22 | G72: besson et fils.aurelle verlac@besson et fils.com
A73: 72 | B73: BOIX et Cie | C73: 3 rue du Toural | D73: 12210 | E73: LAGUIOLE | F73: 08.90.21.51.82 | G73: boix et cie.laguiole@boix et cie.com
A74: 73 | B74: TRANSPORTS BONNEVIALLE | C74: ZI La Prade | D74: 12850 | E74: ONET-LE-CHATEAU | F74: 08.90.21.51.89 | G74: transports bonnevialle. onet-le-chateau@transports bonnevialle.com
A75: 74 | B75: VIGNAUD | C75: Les Chaumes du Plessis | D75: 16440 | E75: ROULLET ST ESTEPHE | F75: 08.90.21.51.32 | G75: vignaud.roullet st estephe@vignaud.com
A76: 75 | B76: VERDAUD MARCEL TMV | C76: 100 Rue Pons | D76: 16100 | E76: COGNAC | F76: 08.90.21.51.29 | G76: verdaud marcel tmv. cognac@verdaud marcel tmv.com
A77: =A76+1 -> 76 | B77: VALLADE | C77: Zone Emploi la Jartre | D77: 16390 | E77: SAINT SEVERIN | F77: 08.90.21.51.41 | G77: =IF(B77="","",(LOWER(B77&"."&E77&"@"&B77&".com"))) -> vallade.saint severin@vallade.com
A78: 77 | B78: TURLAIS RICHARD | C78: le Bourg | D78: 16200 | E78: MERIGNAC | F78: 08.90.21.51.59 | G78: turlais richard.merignac@turlais richard.com
A79: 78 | B79: TRATFROM | C79: La Gare | D79: 16330 | E79: VARS | F79: 08.90.21.51.58 | G79: tratfrom.vars@tratfrom.com
A80: 79 | B80: TRANSROUTE | C80: La Brande | D80: 16100 | E80: LOUZAC SAINT ANDRE | F80: 08.90.21.51.75 | G80: transroute.louzac saint andre@transroute.com
A81: 80 | B81: TRANSMANICO | C81: Bellevue | D81: 16410 | E81: BOUEX | F81: 08.90.21.51.60 | G81: transmanico.bouex@transmanico.com
A82: 81 | B82: TRANSGREG | C82: Le Mas des Mottes | D82: 16720 | E82: SAINT MEME LES CARRIERES | F82: 08.90.21.51.41 | G82: transgreg.saint meme les carrieres@transgreg.com
A83: 82 | B83: TRANS-HIP | C83: Rue Rampeaux | D83: 16330 | E83: XAMBES | F83: 08.90.21.51.54 | G83: trans-hip.xambes@trans-hip.com
A84: 83 | B84: TG EXPRESS | C84: 14 Allée Corderie | D84: 16100 | E84: COGNAC | F84: 08.90.21.51.57 | G84: tg express.cognac@tg express.com
A85: 84 | B85: S.A.B. | C85: 9 Impasse de Reggio | D85: 21000 | E85: DIJON | F85: 08.90.21.51.41 | G85: s.a.b..dijon@s.a.b..com
A86: 85 | B86: T.R.P.S. | C86: 30 Chemin Clos Hameau Domois | D86: 21600 | E86: FENAY | F86: 08.90.21.51.22 | G86: t.r.p.s..fenay@t.r.p.s..com
A87: 86 | B87: CHRONO FRET | C87: 2 rue de l'yser | D87: 21850 | E87: St APOLLINAIRE | F87: 08.90.21.51.25 | G87: chrono fret.st apollinaire@chrono fret.com
A88: 87 | B88: A.S. TRANSPORT | C88: 11 rue Faubourg Saint Jean | D88: 21200 | E88: BEAUNE | F88: 08.90.21.51.42 | G88: a.s. transport.beaune@a.s. transport.com
A89: 88 | B89: LAMBERT ET VALETTE | C89: Za Maison Dieu | D89: 21220 | E89: FIXIN | F89: 08.90.21.51.29 | G89: lambert et valette.fixin@lambert et valette.com
A90: 89 | B90: ALLOIN 21 | C90: rue Gaston Chevrolet | D90: 21200 | E90: VIGNOLES | F90: 08.90.21.51.55 | G90: alloin 21.vignoles@alloin 21.com
A91: 90 | B91: BAT TRANS | C91: 16 rue Turgot | D91: 21000 | E91: DIJON | F91: 08.90.21.51.49 | G91: bat trans. dijon@bat trans.com
A92: 91 | B92: BIO A.A.C.T | C92: 9 rue Edmond Voisenet | D92: 21000 | E92: DIJON | F92: 08.90.21.51.23 | G92: bio a.a.c.t.dijon@bio a.a.c.t.com
A93: 92 | B93: BORNIER Gérald | C93: 22 rue des Remparts | D93: 21250 | E93: SEURRE | F93: 08.90.21.51.26 | G93: bornier gérald.seurre@bornier gérald.com
A94: 93 | B94: BORSATO | C94: 20 rue de la Sucharde | D94: 21800 | E94: CHEVIGNY SAINT SAUVEUR | F94: 08.90.21.51.29 | G94: borsato.chevigny saint sauveur@borsato.com
A95: 94 | B95: Transports Feuillet | C95: 773 Rue De La Plaine | D95: 01120 | E95: Dagneux | F95: 08.90.21.51.20 | G95: transports feuillet.dagneux@transports feuillet.com
A96: 95 | B96: Sotradel Fret | C96: 45 Chemin Des Plagnes | D96: 01600 | E96: Saint Euphemie | F96: 08.90.21.51.91 | G96: sotradel fret.saint euphemie@sotradel fret.com
A97: 96 | B97: THEVENARD | C97: 120 Rue Lye | D97: 01750 | E97: REPLONGES | F97: 08.90.21.51.21 | G97: thevenard .replonges@thevenard .com
A98: 97 | B98: VAILLEND EXPRESS | C98: 146 Allées Des Platières | D98: 01310 | E98: POLLIAT | F98: 08.90.21.51.25 | G98: vaillend express.polliat@vaillend express.com
A99: 98 | B99: COURSES TPS WARNING | C99: 2 Rue Savoie | D99: 01150 | E99: ST VULBAS | F99: 08.90.21.51.44 | G99: courses tps warning.st vulbas@courses tps warning.com
A100: 99 | B100: TPC FRET EXPRESS | C100: Montaplan | D100: 01370 | E100: ST ETIENNE DU BOIS | F100: 08.90.21.51.72 | G100: tpc fret express.st etienne du bois@tpc fret express.com
A101: 100 | B101: GONDRAND | C101: Le Tonkin - Douane St Genis | D101: 01210 | E101: MONTREAL LA CLUSE | F101: 08.90.21.51.82 | G101: gondrand.montreal la cluse@gondrand.com
A102: 101 | B102: TRANSPORTS MERCIER | C102: Plastic Avenue | D102: 01460 | E102: MONTREAL LA CLUSE | F102: 08.90.21.51.57 | G102: transports mercier.montreal la cluse@transports mercier.com
A103: 102 | B103: TRM | C103: 449 Chemin Fontaines | D103: 01090 | E103: GUEREINS | F103: 08.90.21.51.24 | G103: trm.guereins@trm.com
A104: 103 | B104: STOCKLIN MICHEL | C104: Lieu-dit Bruyères | D104: 01120 | E104: MONTLUEL | F104: 08.90.21.51.25 | G104: stocklin michel.montluel@stocklin michel.com
A105: 104 | B105: CAPELLI P | C105: 1 Rue Chatemerle | D105: 01000 | E105: BOURG EN BRESSE | F105: 08.90.21.51.90 | G105: capelli p.bourg en bresse@capelli p.com
A106: 105 | B106: ANDANCE TRANSPORT | C106: La Croisette | D106: 07340 | E106: ANDANCE | F106: 08.90.21.51.43 | G106: andance transport.andance@andance transport.com
A107: 106 | B107: ANNONAY TRANS | C107: Près Du Roi | D107: 07100 | E107: SAINT MARCEL LES ANNONAY | F107: 08.90.21.51.66 | G107: annonay trans. saint marcel les annonay@annonay trans.com
A108: 107 | B108: SAT | C108: Zi NORD | D108: 07250 | E108: LE POUZIN | F108: 08.90.21.51.24 | G108: sat.le pouzin@sat.com
A109: =A108+1 -> 108 | B109: ARSAC MICHEL | C109: LA CHAPELLE SOUS AUBENAS | D109: 07200 | E109: Le Village | F109: 08.90.21.51.74 | G109: =IF(B109="","",(LOWER(B109&"."&E109&"@"&B109&".com"))) -> arsac michel.le village@arsac michel.com
A110: 109 | B110: BERNARD | C110: 16 Rue Des Martyrs | D110: 07250 | E110: LE POUZIN | F110: 04.75.85.94.91 | G110: bernard.le pouzin@bernard.com
A111: 110 | B111: BERT | C111: 431 Avenue Helvétia | D111: 07340 | E111: SERRIERES | F111: 04.75.84.34.41 | G111: bert.serrieres@bert.com
A112: 111 | B112: BESSEAS | C112: Les Limes | D112: 07610 | E112: SECHERAS | F112: 08.90.21.51.49 | G112: besseas. secheras@besseas.com
A113: 112 | B113: BLACHERE PERE ET FILS | C113: Signerose | D113: 07160 | E113: LE CHEYLARD | F113: 08.90.21.51.56 | G113: blachere pere et fils.le cheylard@blachere pere et fils.com
A114: 113 | B114: BLANC MAURICE | C114: La Jaujon | D114: 07230 | E114: LABLACHERE | F114: 08.90.21.51.20 | G114: blanc maurice. lablachere@blanc maurice.com
A115: 114 | B115: BOISSY BERNARD | C115: La Teyre | D115: 07310 | E115: ST MARTIN DE VALAMAS | F115: 08.90.21.51.25 | G115: boissy bernard .st martin de valamas@boissy bernard .com
A116: 115 | B116: TRANSPORTS MATHIEU | C116: DREUILHE | D116: 09300 | E116: ZI DE RIBEROLLES | F116: 08.90.22.55.88 | G116: transports mathieu.zi de riberolles@transports mathieu.com
A117: 116 | B117: DELBOY | C117: Rn 20 route d'Espagne | D117: 09000 | E117: FOIX | F117: 08.90.21.51.69 | G117: delboy.foix@delboy.com
A118: 117 | B118: DHERS ET FILS | C118: rue Irénée-Cros | D118: 09400 | E118: TARASCON-SUR-ARIEGE | F118: 0890.215.154 | G118: dhers et fils.tarascon-sur-ariege@dhers et fils.com
A119: 118 | B119: GUICHOU TRANSPORTS | C119: zone artisanale Joulieu | D119: 09000 | E119: ST JEAN DE VERGES | F119: 0890.215.153 | G119: guichou transports.st jean de verges@guichou transports.com
A120: 119 | B120: ICM | C120: 124 avenue Maréchal Foch | D120: 09200 | E120: SAINT-GIRONS | F120: 0890.215.152 | G120: icm.saint-girons@icm.com
A121: 120 | B121: TRANSPORTS INNOCENT | C121: Avenue de l'Industrie | D121: 09190 | E121: LORP SENTARAILLE | F121: 0890.215.190 | G121: transports innocent.lorp sentaraille@transports innocent.com
A122: 121 | B122: MARC | C122: route de Saint-André | D122: 09130 | E122: LE FOSSAT | F122: 0890.215.143 | G122: marc.le fossat@marc.com
A123: 122 | B123: MERIC | C123: 50 avenue du Général de Gaulle | D123: 09190 | E123: LORP SENTARAILLE | F123: 0890.215.119 | G123: meric.lorp sentaraille@meric.com
A124: 123 | B124: PAILHES | C124: La Parre | D124: 09700 | E124: SAVERDUN | F124: 0890.215.174 | G124: pailhes.saverdun@pailhes.com
A125: 124 | B125: SETAM-MORENO | C125: route de Pamiers | D125: 09270 | E125: MAZERES | F125: 0890.215.161 | G125: setam-moreno.mazeres@setam-moreno.com
A126: 125 | B126: BONNEFOY TRANSPORT | C126: 4, rue Galliéni | D126: 08140 | E126: BAZEILLES | F126: 02.24.45.65.55 | G126: bonnefoy transport.bazeilles@bonnefoy transport.com
A127: 126 | B127: BP Transport (NP) | C127: 26 rue des combattants en AFN | D127: 08300 | E127: RETHEL | F127: 03.24.38.80.90 | G127: bp transport (np).rethel@bp transport (np).com
A128: 127 | B128: Blin Albert (SA) | C128: 5 rue de la vallée 08120 | D128: 08120 | E128: Bogni Meuse | F128: 08.24.52.65.49 | G128: blin albert (sa).bogni meuse@blin albert (sa).com
A129: 128 | B129: JP Traction (sas) | C129: 8 rue serge closson | D129: 08140 | E129: Douzi | F129: 03.24.26.51.91 | G129: jp traction (sas).douzi@jp traction (sas).com
A130: 129 | B130: LBP Poli LUC (NP) | C130: 8 Rue Paul | D130: 08200 | E130: Balan | F130: 03.29.29.41.44 | G130: lbp poli luc (np).balan@lbp poli luc (np).com
A131: 130 | B131: Malbec Distribution | C131: 3 rue Place de la Gare | D131: 08200 | E131: Sedan | F131: 03.23.34.56.88 | G131: malbec distribution .sedan @malbec distribution .com
A132: 131 | B132: Marage Freres | C132: 23 rue route de Rocroi | D132: 08260 | E132: Auvillers les forges | F132: 03.24.54.32.72 | G132: marage freres.auvillers les forges@marage freres.com
A133: 132 | B133: HOUTCH TRANSPORT | C133: ROUTE DE BRANCOURT | D133: 02230 | E133: FRESNOY DE GRAND | F133: 03 23 66 05 99 | G133: houtch transport .fresnoy de grand@houtch transport .com
A134: 133 | B134: STAS | C134: Rue Jean Baptiste Godin | D134: 02200 | E134: VILLENEUVE SAINT GERMAIN | F134: 03 23 74 88 79 | G134: stas.villeneuve saint germain@stas.com
A135: 134 | B135: DELCELIER ET FILS | C135: 28 Rue Du Chateau | D135: 02370 | E135: OSTEL | F135: 03 23 74 88 79 | G135: delcelier et fils.ostel@delcelier et fils.com
A136: 135 | B136: AMICEL | C136: 12 Rue St Martin | D136: 02320 | E136: FAUCOUCOURT | F136: 03 23 80 26 90 | G136: amicel .faucoucourt@amicel .com
A137: 136 | B137: BERNARDI LOGISTIQUE | C137: Zi Le Haut De Varenne | D137: 02370 | E137: VAILLY SUR AISNE | F137: 03 23 74 60 05 | G137: bernardi logistique.vailly sur aisne@bernardi logistique.com
A138: 137 | B138: BOULAY ET GREHAN | C138: 138 Rue Pasteur | D138: 02300 | E138: HIRSON | F138: 08.90.21.51.34 | G138: boulay et grehan . hirson@boulay et grehan .com
A139: 138 | B139: CLOSSET RICHARD | C139: 29 Rue Henri Langlois | D139: 02120 | E139: TUPIGNY | F139: 03 23 60 84 15 | G139: closset richard.tupigny@closset richard.com
A140: 139 | B140: PALLISSERO | C140: 2 Avenue Jean Monnet | D140: 02000 | E140: LAON | F140: 03 23 20 73 37 | G140: pallissero . laon@pallissero .com
A141: 140 | B141: SCHER | C141: 23 Rue Pree | D141: 02370 | E141: VAILLY SUR AISNE | F141: 03 23 54 79 84 | G141: scher . vailly sur aisne@scher .com
A142: 141 | B142: DEVISSCHER JEAN | C142: 12 Route Faverolles | D142: 02600 | E142: DAMPLEUX | F142: 08.90.21.51.69 | G142: devisscher jean .dampleux@devisscher jean .com
A143: 142 | B143: T.M.C EXPRESS | C143: 2 Residence Grande Motte | D143: 02870 | E143: VIVAISE | F143: 03.23.15.12.70 | G143: t.m.c express . vivaise@t.m.c express .com
A144: 143 | B144: DUSSART STEPHANE | C144: 186 Rue Cambresis | D144: 02110 | E144: BECQUIGNY | F144: 03.23.55.87.54 | G144: dussart stephane .becquigny@dussart stephane .com
A145: =A144+1 -> 144 | B145: TAVEL S.A | C145: 22 Avenue G.Eiffel | D145: 74000 | E145: Annecy | F145: 04.85.65.87.54 | G145: =IF(B145="","",(LOWER(B145&"."&E145&"@"&B145&".com"))) -> tavel s.a.annecy@tavel s.a.com
A146: 145 | B146: Mercier S.A | C146: 14 rue Malraux | D146: 31000 | E146: Toulouse | F146: 05.61.35.87.33 | G146: mercier s.a.toulouse@mercier s.a.com
A147: 146 | B147: LDISTRI | C147: 114, Avenue KLEBER | D147: 49000 | E147: ANGERS | F147: 07.33.65.58.77 | G147: ldistri.angers@ldistri.com
A148: 147 | B148: LLD LOGISTIC | C148: 6, Avenue M.Pagnol | D148: 55200 | E148: Commercy | F148: 07.54.68.77.40 | G148: lld logistic.commercy@lld logistic.com
A149: 148 | B149: Laurent S.A | C149: Z.A.C Nord | D149: 88000 | E149: Épinal | F149: 03.29.55.65.21 | G149: laurent s.a.épinal@laurent s.a.com
A150: 149 | B150: Monkey trans | C150: 8, rue de Joinville | D150: 52100 | E150: Saint-Dizier | F150: 07.55.22.35.87 | G150: monkey trans.saint-dizier@monkey trans.com
A151: =A150+1 -> 150 | B151: Orgatrans | C151: 122, Avenue G.Eiffel | D151: 11000 | E151: Narbonne | F151: 07.41.42.58.32 | G151: =IF(B151="","",(LOWER(B151&"."&E151&"@"&B151&".com"))) -> orgatrans.narbonne@orgatrans.com
A152: =A151+1 -> 151 | B152: Nordexpress | C152: ZI Klerber | D152: 67000 | E152: Strasbourg | F152: 07.32.33.36.35 | G152: =IF(B152="","",(LOWER(B152&"."&E152&"@"&B152&".com"))) -> nordexpress.strasbourg@nordexpress.com
A153: =IF(B153="","",A152+1) -> 152 | B153: Colibray | C153: ZI Sud, route de Melun | D153: 77480 | E153: Bray | F153: 07.88.24.14.68 | G153: =IF(B153="","",(LOWER(B153&"."&E153&"@"&B153&".com"))) -> colibray.bray@colibray.com
A154: 153 | B154: TransMartin | C154: 44, rue Pasteur | D154: 56850 | E154: Caudan | F154: 02.97.22.54.54 | G154: =IF(B154="","",(LOWER(B154&"."&E154&"@"&B154&".com"))) -> transmartin.caudan@transmartin.com
A217: =IF(B217="","",A216+1) -> 
G218: =IF(B218="","",(LOWER(B218&"."&E218&"@"&B218&".com"))) -> 
A281: =IF(B281="","",A280+1) -> 
G282: =IF(B282="","",(LOWER(B282&"."&E282&"@"&B282&".com"))) -> 
A345: =IF(B345="","",A344+1) -> 
G346: =IF(B346="","",(LOWER(B346&"."&E346&"@"&B346&".com"))) -> 
A409: =IF(B409="","",A408+1) -> 
G410: =IF(B410="","",(LOWER(B410&"."&E410&"@"&B410&".com"))) -> 
A473: =IF(B473="","",A472+1) -> 
G474: =IF(B474="","",(LOWER(B474&"."&E474&"@"&B474&".com"))) -> 
A537: =IF(B537="","",A536+1) -> 
G538: =IF(B538="","",(LOWER(B538&"."&E538&"@"&B538&".com"))) -> 
A601: =IF(B601="","",A600+1) -> 
G602: =IF(B602="","",(LOWER(B602&"."&E602&"@"&B602&".com"))) -> 
A665: =IF(B665="","",A664+1) -> 
G666: =IF(B666="","",(LOWER(B666&"."&E666&"@"&B666&".com"))) -> 
A729: =IF(B729="","",A728+1) -> 
G730: =IF(B730="","",(LOWER(B730&"."&E730&"@"&B730&".com"))) -> 
A793: =IF(B793="","",A792+1) -> 
G794: =IF(B794="","",(LOWER(B794&"."&E794&"@"&B794&".com"))) -> 
A857: =IF(B857="","",A856+1) -> 
G858: =IF(B858="","",(LOWER(B858&"."&E858&"@"&B858&".com"))) -> 
A921: =IF(B921="","",A920+1) -> 
G922: =IF(B922="","",(LOWER(B922&"."&E922&"@"&B922&".com"))) -> 
A985: =IF(B985="","",A984+1) -> 
G986: =IF(B986="","",(LOWER(B986&"."&E986&"@"&B986&".com"))) -> 
A1049: =IF(B1049="","",A1048+1) -> 
G1050: =IF(B1050="","",(LOWER(B1050&"."&E1050&"@"&B1050&".com"))) -> 
A1113: =IF(B1113="","",A1112+1) -> 
G1114: =IF(B1114="","",(LOWER(B1114&"."&E1114&"@"&B1114&".com"))) -> 
A1177: =IF(B1177="","",A1176+1) -> 
G1178: =IF(B1178="","",(LOWER(B1178&"."&E1178&"@"&B1178&".com"))) -> 
A1241: =IF(B1241="","",A1240+1) -> 
G1242: =IF(B1242="","",(LOWER(B1242&"."&E1242&"@"&B1242&".com"))) -> 
A1305: =IF(B1305="","",A1304+1) -> 
G1306: =IF(B1306="","",(LOWER(B1306&"."&E1306&"@"&B1306&".com"))) -> 
A1369: =IF(B1369="","",A1368+1) -> 
G1370: =IF(B1370="","",(LOWER(B1370&"."&E1370&"@"&B1370&".com"))) -> 
A1433: =IF(B1433="","",A1432+1) -> 
G1434: =IF(B1434="","",(LOWER(B1434&"."&E1434&"@"&B1434&".com"))) -> 
A1497: =IF(B1497="","",A1496+1) -> 
G1498: =IF(B1498="","",(LOWER(B1498&"."&E1498&"@"&B1498&".com"))) -> 

Sheet Étiquette colis fournisseur
B5: Expéditeur | E5: Date d’expédition : | F5: =IF('BL fournisseur'!$F$7="","",'BL fournisseur'!$F$7) -> 
C6: =IF('BL fournisseur'!$C$5="","",'BL fournisseur'!C5) -> 
C7: =IF('BL fournisseur'!$C$5="","",'BL fournisseur'!C6) ->  | E7: N° de Bon de livraison : | F7: =IF('BL fournisseur'!F6="","",'BL fournisseur'!F6) -> 
C8: =IF('BL fournisseur'!$C$5="","",'BL fournisseur'!C7) ->  | D8: =IF('BL fournisseur'!$C$5="","",'BL fournisseur'!D7) -> 
B10: Destinataire | F10: Département
C11: ='Gestion identité'!C5 -> B.S.L ÉLEC | F11: =LEFT(C13,2) -> 54
C12: ='Gestion identité'!C6 -> 5, rue Ste Anne
C13: ='Gestion identité'!C7 -> 54340 Pompey
C14: =IF('Bon de retour'!$K$1="","",'Bon de retour'!J12) -> 
B15: Transporteur : | F15: Colis N°
B16: =IF('BL fournisseur'!D13="","",'BL fournisseur'!D13) ->  | F16: =IF('BL fournisseur'!$D$34>=1,1,"") -> 
B17: =IF('BL fournisseur'!C14="","",'BL fournisseur'!C14) -> 
B18: =IF('BL fournisseur'!D14="","",'BL fournisseur'!D14) -> 
B21: =IF('BL fournisseur'!$D$34>1,$B$5,"") ->  | C21: =IF('Bon de retour'!$E$34>1,$C$7,"") ->  | E21: =IF('BL fournisseur'!D$34>1,$E$5,"") ->  | F21: =IF('BL fournisseur'!$D$34>1,$F$5,"") -> 
C22: =IF('BL fournisseur'!$D$34>1,$C$6,"") -> 
C23: =IF('BL fournisseur'!$D$34>1,$C$7,"") ->  | E23: =IF('BL fournisseur'!$D$34>1,$E$7,"") ->  | F23: =IF('BL fournisseur'!$D$34>1,$F$7,"") -> 
C24: =IF('BL fournisseur'!$D$34>1,$C$8,"") ->  | D24: =IF('BL fournisseur'!$D$34>1,$D$8,"") -> 
B26: =IF('BL fournisseur'!$D$34>1,$B$5,"") ->  | F26: =IF('BL fournisseur'!$D$34>1,F10,"") -> 
C27: =IF('BL fournisseur'!$D$34>1,$C$11,"") ->  | F27: =LEFT(C29,2) -> 
C28: =IF('BL fournisseur'!$D$34>1,$C$12,"") -> 
C29: =IF('BL fournisseur'!$D$34>1,$C$13,"") -> 
B31: =IF('BL fournisseur'!$D$34>1,$B$15,"") ->  | F31: =IF('BL fournisseur'!$D$34>1,$F$15,"") -> 
B32: =IF('BL fournisseur'!$D$34>1,$B$16,"") ->  | F32: =IF('BL fournisseur'!$D$34>=2,2,"") -> 
B33: =IF('BL fournisseur'!$D$34>1,$B$17,"") -> 
B34: =IF('BL fournisseur'!$D$34>1,$B$18,"") -> 
B37: =IF('BL fournisseur'!$D$34>2,$B$5,"") ->  | C37: =IF('Bon de retour'!$E$34>1,$C$7,"") ->  | E37: =IF('BL fournisseur'!D$34>2,$E$5,"") ->  | F37: =IF('BL fournisseur'!$D$34>2,$F$5,"") -> 
C38: =IF('BL fournisseur'!$D$34>2,$C$6,"") -> 
C39: =IF('BL fournisseur'!$D$34>2,$C$7,"") ->  | E39: =IF('BL fournisseur'!$D$34>2,$E$7,"") ->  | F39: =IF('BL fournisseur'!$D$34>2,$F$7,"") -> 
C40: =IF('BL fournisseur'!$D$34>2,$C$8,"") ->  | D40: =IF('BL fournisseur'!$D$34>2,$D$8,"") -> 
B42: =IF('BL fournisseur'!$D$34>2,$B$5,"") ->  | F42: =IF('BL fournisseur'!$D$34>2,F26,"") -> 
C43: =IF('BL fournisseur'!$D$34>2,$C$11,"") ->  | F43: =LEFT(C45,2) -> 
C44: =IF('BL fournisseur'!$D$34>2,$C$12,"") -> 
C45: =IF('BL fournisseur'!$D$34>2,$C$13,"") -> 
B47: =IF('BL fournisseur'!$D$34>2,$B$15,"") ->  | F47: =IF('BL fournisseur'!$D$34>2,$F$15,"") -> 
B48: =IF('BL fournisseur'!$D$34>2,$B$16,"") ->  | F48: =IF('BL fournisseur'!$D$34>2,3,"") -> 
B49: =IF('BL fournisseur'!$D$34>2,$B$17,"") -> 
B50: =IF('BL fournisseur'!$D$34>2,$B$18,"") -> 

Sheet Filtrage (hidden)
A1: N° | B1: Nom | C1: Adresse | D1: Code postal | E1: Ville | F1: Téléphone | G1: Émail | K1: Ville
A2: 6 | B2: MUSTAPHA | C2: 41, avenue Foch | D2: 68000 | E2: COLMAR | F2: 03.89.54.52.25 | G2: mustapha.colmar@mustapha.com | K2: c*
A3: 7 | B3: ESTEBAN | C3: 41 Rue des vignerons | D3: 16000 | E3: COGNAC | F3: 06.55.85.57.41 | G3: esteban.cognac@esteban.com
A4: 83 | B4: TG EXPRESS | C4: 14 Allée Corderie | D4: 16100 | E4: COGNAC | F4: 08.90.21.51.57 | G4: tg express.cognac@tg express.com
A5: 93 | B5: BORSATO | C5: 20 rue de la Sucharde | D5: 21800 | E5: CHEVIGNY SAINT SAUVEUR | F5: 08.90.21.51.29 | G5: borsato.chevigny saint sauveur@borsato.com
A6: 147 | B6: LLD LOGISTIC | C6: 6, Avenue M.Pagnol | D6: 55200 | E6: Commercy | F6: 07.54.68.77.40 | G6: lld logistic.commercy@lld logistic.com
A7: 153 | B7: TransMartin | C7: 44, rue Pasteur | D7: 56850 | E7: Caudan | F7: 02.97.22.54.54 | G7: transmartin.caudan@transmartin.com

Sheet Facture fournisseur
B2: =IF('BL fournisseur'!C5="","",'BL fournisseur'!C5) ->  | E2: Facture
B4: =IF('BL fournisseur'!C6="","",'BL fournisseur'!C6) ->  | E4: N° de client : | F4: 54-P6
B5: =IF('BL fournisseur'!C7="","",'BL fournisseur'!C7) ->  | C5: =IF('BL fournisseur'!D7="","",'BL fournisseur'!D7) -> 
E6: N° de facture : | F6: =F8 -> 
B7: Email | C7: =IF('BL fournisseur'!G14="","",VLOOKUP('BL fournisseur'!G14,Client,7,FALSE)) -> 
B8: Téléphone | C8: =IF('BL fournisseur'!D8="","",'BL fournisseur'!D8) ->  | E8: Date de facture : | F8: =IF('BL fournisseur'!E14="","",1+'BL fournisseur'!E14) -> 
B10: Facturer à : | C10: ='Gestion identité'!C5 -> B.S.L ÉLEC | E10: Date de livraison : | F10: =IF('BL fournisseur'!E14="","",'BL fournisseur'!E14) -> 
B11: Adresse : | C11: ='Gestion identité'!C6 -> 5, rue Ste Anne
C12: ='Gestion identité'!C7 -> 54340 Pompey
C13: ='Gestion identité'!C8 -> 03.83.49.11.94
C14: ='Gestion identité'!C9 -> B.S.L Élec@orange.fr
B16: Référence | C16: Description | D16: Quantité | E16: Prix unitaire HT | F16: Prix total HT
B17: =IF('BL fournisseur'!C18="","",'BL fournisseur'!C18) ->  | C17: =IF('BL fournisseur'!D18="","",'BL fournisseur'!D18) ->  | D17: =IF('BL fournisseur'!G18="","",'BL fournisseur'!G18) ->  | E17: =IF(B17="","",VLOOKUP(B17,stock,7,FALSE)) ->  | F17: =IF(B17="","",D17*E17) -> 
B18: =IF('BL fournisseur'!C19="","",'BL fournisseur'!C19) ->  | C18: =IF('BL fournisseur'!D19="","",'BL fournisseur'!D19) ->  | D18: =IF('BL fournisseur'!G19="","",'BL fournisseur'!G19) ->  | F18: =IF(B18="","",D18*E18) -> 
B19: =IF('BL fournisseur'!C20="","",'BL fournisseur'!C20) ->  | C19: =IF('BL fournisseur'!D20="","",'BL fournisseur'!D20) ->  | D19: =IF('BL fournisseur'!G20="","",'BL fournisseur'!G20) -> 
B20: =IF('BL fournisseur'!C21="","",'BL fournisseur'!C21) ->  | C20: =IF('BL fournisseur'!D21="","",'BL fournisseur'!D21) ->  | D20: =IF('BL fournisseur'!G21="","",'BL fournisseur'!G21) -> 
B21: =IF('BL fournisseur'!C22="","",'BL fournisseur'!C22) ->  | C21: =IF('BL fournisseur'!D22="","",'BL fournisseur'!D22) ->  | D21: =IF('BL fournisseur'!G22="","",'BL fournisseur'!G22) -> 
B22: =IF('BL fournisseur'!C23="","",'BL fournisseur'!C23) ->  | C22: =IF('BL fournisseur'!D23="","",'BL fournisseur'!D23) ->  | D22: =IF('BL fournisseur'!G23="","",'BL fournisseur'!G23) -> 
B23: =IF('BL fournisseur'!C24="","",'BL fournisseur'!C24) ->  | C23: =IF('BL fournisseur'!D24="","",'BL fournisseur'!D24) ->  | D23: =IF('BL fournisseur'!G24="","",'BL fournisseur'!G24) -> 
B24: =IF('BL fournisseur'!C25="","",'BL fournisseur'!C25) ->  | C24: =IF('BL fournisseur'!D25="","",'BL fournisseur'!D25) ->  | D24: =IF('BL fournisseur'!G25="","",'BL fournisseur'!G25) -> 
B25: =IF('BL fournisseur'!C26="","",'BL fournisseur'!C26) ->  | C25: =IF('BL fournisseur'!D26="","",'BL fournisseur'!D26) ->  | D25: =IF('BL fournisseur'!G26="","",'BL fournisseur'!G26) -> 
B26: =IF('BL fournisseur'!C27="","",'BL fournisseur'!C27) ->  | C26: =IF('BL fournisseur'!D27="","",'BL fournisseur'!D27) ->  | D26: =IF('BL fournisseur'!G27="","",'BL fournisseur'!G27) -> 
B27: =IF('BL fournisseur'!C28="","",'BL fournisseur'!C28) ->  | C27: =IF('BL fournisseur'!D28="","",'BL fournisseur'!D28) ->  | D27: =IF('BL fournisseur'!G28="","",'BL fournisseur'!G28) -> 
B28: =IF('BL fournisseur'!C29="","",'BL fournisseur'!C29) ->  | C28: =IF('BL fournisseur'!D29="","",'BL fournisseur'!D29) ->  | D28: =IF('BL fournisseur'!G29="","",'BL fournisseur'!G29) -> 
B29: =IF('BL fournisseur'!C30="","",'BL fournisseur'!C30) ->  | C29: =IF('BL fournisseur'!D30="","",'BL fournisseur'!D30) ->  | D29: =IF('BL fournisseur'!G30="","",'BL fournisseur'!G30) -> 
B30: =IF('BL fournisseur'!C31="","",'BL fournisseur'!C31) ->  | C30: =IF('BL fournisseur'!D31="","",'BL fournisseur'!D31) ->  | D30: =IF('BL fournisseur'!G31="","",'BL fournisseur'!G31) -> 
B32: Remarques et instructions de paiement : | D32: SOUS-TOTAL H.T : | F32: =IF(F17="","",SUM(F17:F30)) -> 
E33: TVA 20% : | F33: =IF(F17="","",F32*0.2) -> 
D35: À PAYER TTC : | F35: =IF(F32="","",F32+F33) -> 

Sheet Filtre (hidden)

Sheet BL fournisseur 6 (hidden)
B1: Heure début : | E1: Candidat :
B2: Heure fin :
J4: N° du Fournisseur
B5: =IF($J$5="","",VLOOKUP($J$5,carnetadresse,2,FALSE)) -> Kasy (SARL) | E5: BON DE LIVRAISON | J5: 145
B6: =IF($J$5="","",VLOOKUP($J$5,carnetadresse,3,FALSE)) -> Rn 91 | D6: Date: | F6: N°
B7: =IF($J$5="","",VLOOKUP($J$5,carnetadresse,4,FALSE)) -> 05320 | C7: =IF($J$5="","",VLOOKUP($J$5,carnetadresse,5,FALSE)) -> La Grave
B9: =IF($J$5="","",VLOOKUP($J$5,carnetadresse,6,FALSE)) -> 04.76.80.92.78 | C9: =IF($J$5="","",VLOOKUP($J$5,carnetadresse,7,FALSE)) -> kasy (sarl) .la grave@kasy (sarl) .com | E9: Ste L.GEISLER S.A.
E10: 3, rue de la belle Orge
B11: Votre commande du : | E11: 88 110 RAON L’ETAPE
B12: N° :
B13: Date de livraison le :
B15: Référence | C15: Désignation | E15: Unité de vente | F15: Quantité commandée | G15: Quantité livrée
B16: 1020101 | C16: =IF(B16="","",VLOOKUP(B16,matrice,3,FALSE)) ->  | D16: =IF(B16="","",VLOOKUP(B16,matrice,4,FALSE)) ->  | E16: =IF(B16=0,"",VLOOKUP(B16,matrice,6)) -> 
C17: =IF(B17="","",VLOOKUP(B17,matrice,3,FALSE)) -> 
C24: =IF(B24="","",VLOOKUP(B24,matrice,3,FALSE)) -> 
C25: =IF(B25="","",VLOOKUP(B25,matrice,3,FALSE)) -> 
C26: =IF(B26="","",VLOOKUP(B26,matrice,3,FALSE)) -> 
C27: =IF(B27="","",VLOOKUP(B27,matrice,3,FALSE)) -> 
F30: TOTAL | G30: =SUM(G16:G28) -> 0
B31: Nombre de colis : | D31: Poids :
B33: Observations :

Sheet Ancien Fichier stock (hidden)
B2: E1/2
A3: 1010102 | B3: D3/2 | C3: voyant orange Legrand | D3: . | E3: 1 | F3: 5 | G3: 3.57 | H3: =G3*F3 -> 17.85 | J3: =IF(F3<I3,1,"") ->  | L3: 1010102 | M3: 2
A4: 1010104 | B4: C3/3 | C4: stater Mazda | D4: S2 | E4: 1 | F4: 28 | G4: 2.41 | H4: 67.48 | L4: 1010104 | M4: 3
A5: 1015101 | B5: E2/2 | C5: Starter mazda S2 | E5: 1 | F5: 4 | G5: 2.51 | H5: 10.04 | L5: 1015101 | M5: 4
A6: 1015102 | B6: E2/2 | C6: Compteur 127V220V | E6: 1 | F6: 1 | G6: 49.5 | H6: 49.5 | L6: 1015102 | M6: 5
A7: 1020101 | B7: A4/4 | C7: clips de fixation | D7: A10 | E7: 1 | F7: 14 | G7: 1.5 | H7: 21 | L7: 1020101 | M7: 6
A8: 1020102 | B8: E3/3 | C8: clips de fixation | D8: A20 | E8: 1 | F8: 77 | G8: 1.5 | H8: 115.5 | L8: 1020102 | M8: 7
A9: 1020103 | B9: 60-B-2 | C9: clips de fixation | D9: A30 | E9: 1 | F9: 15 | G9: 1.5 | H9: 22.5 | L9: 1020103 | M9: 8
A10: 1020104 | B10: C2/3 | C10: clips de fixation | D10: A40 | E10: 1 | F10: 8 | G10: 1.5 | H10: 12 | L10: 1020104 | M10: 9
A12: 1020109 | B12: 10-A-1 | C12: support de relais rouge | D12: . | E12: 1 | F12: 41 | G12: 1.7 | H12: =G12*F12 -> 69.7 | J12: =IF(F12<I12,1,"") ->  | L12: 1020109 | M12: 11
A13: 1030107 | B13: D1/3 | C13: borne de terre Legrand | D13: BC 947-7-3 | E13: 1 | F13: 3 | G13: 3.67 | H13: 11.01 | L13: 1030107 | M13: 12
A14: 1030109 | B14: D1/3 | C14: capteur | D14: XCK.M | E14: 1 | F14: 7 | G14: 37.54 | H14: 262.78 | L14: 1030109 | M14: 13
A15: 1030113 | B15: E2/2 | C15: Capteur | E15: 1 | F15: 5 | G15: 12 | H15: 60 | L15: 1030113 | M15: 14
A16: 1030125 | B16: D2/3 | C16: disjoncteur unelec | D16: D32 | E16: 1 | F16: 4 | G16: 28.74 | H16: 114.96 | L16: 1030125 | M16: 15
A17: 1030128 | B17: D2/3 | C17: porte fusible | D17: DFG-AB10 | E17: 1 | F17: 21 | G17: 11.5 | H17: 241.5 | L17: 1030128 | M17: 16
A18: 1030129 | B18: D3/3
A19: 1030131 | B19: C3/3 | C19: disjoncteur BBC | D19: M 611 | E19: 1 | F19: 1 | G19: 27.85 | H19: =G19*F19 -> 27.85 | J19: =IF(F19<I19,1,"") ->  | L19: 1030131 | M19: 18
A20: 1030132 | B20: A2/1 | C20: porte fusible 500V | D20: 0 | E20: 1 | F20: 18 | G20: 45.5 | H20: =G20*F20 -> 819 | J20: =IF(F20<I20,1,"") ->  | L20: 1030132 | M20: 19
A21: 1040101 | B21: D1/3 | C21: temporisation travail bleu | D21: LA2-D20-A65 | E21: 1 | F21: 8 | G21: 15.5 | H21: =G21*F21 -> 124 | J21: =IF(F21<I21,1,"") ->  | L21: 1040101 | M21: 20
A22: 1040104 | B22: A2/1 | C22: temporisation travail bleu | D22: LA2 D2 / LA3 D2 | E22: 1 | F22: 42 | G22: 15.5 | H22: =G22*F22 -> 651 | J22: =IF(F22<I22,1,"") ->  | L22: 1040104 | M22: 21
A24: 1040110 | B24: C2/1 | C24: temporisation travail noir | D24: UTE-NFC- 45250 | E24: 1 | F24: 3 | G24: 15.5 | H24: =G24*F24 -> 46.5 | J24: =IF(F24<I24,1,"") ->  | L24: 1040110 | M24: 23
A25: 1050102 | B25: D3/3 | C25: bloc de contact auxiliaire | D25: LA1 D11 A65 | E25: 1 | F25: 5 | G25: 29.75 | H25: 148.75 | L25: 1050102 | M25: 24
A26: 1050103 | B26: 20-A-2 | C26: bloc de contact auxiliaire | D26: LA1 D22 | E26: 1 | F26: 88 | G26: 29.75 | H26: 2618 | L26: 1050103 | M26: 25
A27: 1050106 | B27: 10-A-3 | C27: boîtier à bouton poussoir | D27: 2 noir – 1 rouge | E27: 1 | F27: 7 | G27: 15 | H27: 105 | L27: 1050106 | M27: 26
A28: 1050107 | B28: 10-A-3 | C28: boîtier à bouton poussoir petercem | D28: 2 boutons jaune et rouge | E28: 1 | F28: 16 | G28: 15 | H28: 240 | L28: 1050107 | M28: 27
A29: 1050108 | B29: A2/4 | C29: boîtier à bouton poussoir télémécanique | D29: 2 boutons rouge et noir | E29: 1 | F29: 5 | G29: 15 | H29: 75 | L29: 1050108 | M29: 28
A30: 1050109 | B30: 10-A-2 | C30: boîtier à bouton poussoir télémécanique | D30: 1 bouton noir | E30: 1 | F30: 14 | G30: 13 | H30: 182 | L30: 1050109 | M30: 29
A31: 1050110 | B31: 50-B-1 | C31: boîtier à bouton poussoir télémécanique | D31: 2 boutons - 1 interrupteur | E31: 1 | F31: 5 | G31: 15 | H31: 75 | L31: 1050110 | M31: 30
A32: 1050111 | B32: D1/2 | C32: commutateur rotatif | D32: BUL 802T | E32: 1 | F32: 10 | G32: 12.5 | H32: 125 | L32: 1050111 | M32: 31
A34: 1050116 | B34: D3/1 | C34: contacteur | D34: LC1 D123 | E34: 1 | F34: 5 | G34: 17.5 | H34: =G34*F34 -> 87.5 | J34: =IF(F34<I34,1,"") ->  | L34: 1050116 | M34: 33
A37: 1050119 | B37: E2/2 | C37: Écrou | E37: 1 sachet de 4 | F37: 1 | G37: 1.5 | H37: =G37*F37 -> 1.5 | J37: =IF(F37<I37,1,"") ->  | L37: 1050119 | M37: 36
A38: 1050121 | B38: C1/3 | C38: Bouton interruptreur | E38: 1 | F38: 4 | G38: 13.5 | H38: =G38*F38 -> 54 | J38: =IF(F38<I38,1,"") ->  | L38: 1050121 | M38: 37
A39: 1050122 | B39: E1/2 | C39: boîtier interrupteur rectangle | D39: . | E39: 1 | F39: 5 | G39: 2.5 | H39: =G39*F39 -> 12.5 | J39: =IF(F39<I39,1,"") ->  | L39: 1050122 | M39: 38
A40: 1050123 | B40: D1/1 | C40: boîtier interrupteur carré | D40: . | E40: 1 | F40: 21 | G40: 2.5 | H40: =G40*F40 -> 52.5 | J40: =IF(F40<I40,1,"") ->  | L40: 1050123 | M40: 39
A42: 1050125 | B42: D3/3 | C42: relais dijoncteur CA2 DN 22 | D42: . | E42: 1 | F42: 5 | G42: 16.7 | H42: =G42*F42 -> 83.5 | J42: =IF(F42<I42,1,"") ->  | L42: 1050125 | M42: 41
A44: 1050132 | B44: A3/4 | C44: Dijoncteur BBC A25,30 | E44: 1 | F44: 4 | G44: 32.2 | H44: =G44*F44 -> 128.8 | J44: =IF(F44<I44,1,"") ->  | L44: 1050132 | M44: 43
A46: 1050135 | B46: A3/4 | C46: relais dijoncteur BBC B25,30,10 | D46: . | E46: 1 | F46: 5 | G46: 17.5 | H46: =G46*F46 -> 87.5 | J46: =IF(F46<I46,1,"") ->  | L46: 1050135 | M46: 45
A48: 1050148 | B48: 10-B-3 | C48: dinjoncteur ALSTHOM UNELEC D 250 | D48: 250 A | E48: 1 | F48: 3 | G48: 28.5 | H48: =G48*F48 -> 85.5 | J48: =IF(F48<I48,1,"") ->  | L48: 1050148 | M48: 47
A49: 1050151 | B49: C3/1 | C49: Bouton arrêt d'urgence | E49: 1 | F49: 1 | G49: 27.4 | H49: 27.4 | L49: 1050151 | M49: 48
A50: 1050158 | B50: E2/3 | C50: bornier de raccordement DB6 DD 102 | D50: 750v | E50: 1 | F50: 48 | G50: 17.2 | H50: 825.6 | L50: 1050158 | M50: 49
A51: 1050159 | B51: C3/3 | C51: commutateur MTI 96-132 v | D51: . | E51: 1 | F51: 2 | G51: 22.5 | H51: 45 | L51: 1050159 | M51: 50
A52: 1050160 | B52: D3/2 | C52: communtateur EP 371 125 V | D52: . | E52: 1 | F52: 18 | G52: 22.5 | H52: 405 | L52: 1050160 | M52: 164
A53: 1050161 | B53: 60-B-1 | C53: commutateur MTI 125v | D53: . | E53: 1 | F53: 2 | G53: 22.5 | H53: 45 | L53: 1050161 | M53: 165
A54: 1050162 | B54: E1/3 | C54: commutateur MTI 110v | D54: . | E54: 1 | F54: 5 | G54: 22.5 | H54: 112.5 | L54: 1050162 | M54: 166
A55: 1050163 | B55: A2/3 | C55: connectique 2042190 | D55: . | E55: sachet de 1 | F55: 2 | G55: 29 | H55: 58 | L55: 1050163 | M55: 167
A56: 1050166 | B56: A4/2 | C56: Sect filerie D160/1250 | D56: BRA DB160/1250 | E56: sachet de 1 | F56: 41 | G56: 16 | H56: 656 | L56: 1050166 | M56: 168
A57: 1050170 | B57: C3/2 | C57: commutateur EP 371 120V | D57: . | E57: 1 | F57: 2 | G57: 23 | H57: 46 | L57: 1050170 | M57: 169
A58: 1050171 | B58: D1/3 | C58: commutateur MTI 110-130v | D58: . | E58: 1 | F58: 9 | G58: 23 | H58: 207 | L58: 1050171 | M58: 170
A59: 1050177 | B59: 60-A-2 | C59: commutateur MTI EP371 48v | D59: . | E59: 1 | F59: 6 | G59: 22 | H59: 132 | L59: 1050177 | M59: 171
A60: 1050182 | B60: C2/3 | C60: commutateur MTI | E60: 1 | F60: 22 | G60: 21 | H60: 462 | L60: 1050182 | M60: 172
A61: 1050183 | B61: A2/3 | C61: contacteur 2087 | E61: 1 | F61: 27 | G61: 2.35 | H61: 63.45 | L61: 1050183 | M61: 173
A62: 1050184 | B62: E1/1 | C62: contacteur SAK 2,5 | E62: 1 | F62: 50 | G62: 2.35 | H62: 117.5 | L62: 1050184 | M62: 174
A63: 1050185 | B63: C3/2 | C63: commutateur MTI BA 72 220v | E63: 1 | F63: 25 | G63: 21 | H63: 525 | L63: 1050185 | M63: 175
A64: 1050186 | B64: E1/1 | C64: commutateur MTI BA 72 220v | D64: 0 | E64: 1 | F64: 24 | G64: 21 | H64: 504 | L64: 1050186 | M64: 176
A65: 1050188 | B65: 80-A-1 | C65: CONTACTEUR | D65: 0 | E65: 1 | F65: 16 | G65: 3.35 | H65: 53.6 | L65: 1050188 | M65: 177
A66: 1050189 | B66: E1/1 | C66: connecteur femmelle | E66: 1 | F66: 40 | G66: 8.75 | H66: 350 | L66: 1050189 | M66: 178
A67: 1050190 | B67: C1/2 | C67: connecteur femmelle | D67: 0 | E67: 1 | F67: 10 | G67: 8.75 | H67: 87.5 | L67: 1050190 | M67: 179
A68: 1050191 | B68: C1/3 | C68: contacteurs | D68: 230 | E68: 1 | F68: 10 | G68: 11.25 | H68: 112.5 | L68: 1050191 | M68: 180
A69: 1050194 | B69: C1/3 | C69: cellule de liaison | E69: 1 | F69: 11 | G69: 8.95 | H69: 98.45 | L69: 1050194 | M69: 181
A70: 1055101 | B70: E1/2 | C70: Voyant controleur | E70: 1 | F70: 7 | G70: 2.15 | H70: 15.05 | L70: 1055101 | M70: 182
A71: 1055102 | B71: C1/1 | C71: voyant rouge support métalique | E71: 1 | F71: 13 | G71: 3.45 | H71: 44.85 | L71: 1055102 | M71: 183
A72: 1055103 | B72: C1/2 | C72: voyant rouge support plastique | D72: 0 | E72: 1 | F72: 5 | G72: 3.65 | H72: 18.25 | L72: 1055103 | M72: 184
A73: 1055105 | B73: C3/1 | C73: cache lumiere verte | E73: 1 | F73: 7 | G73: 2.35 | H73: 16.45 | L73: 1055105 | M73: 185
A74: 1055106 | B74: C2/1 | C74: support lumineuse orange | E74: 1 | F74: 7 | G74: 3.55 | H74: 24.85 | L74: 1055106 | M74: 186
A75: 1055107 | B75: C2/1 | C75: support lumineuse orange métalique | E75: 1 | F75: 3 | G75: 2.45 | H75: 7.35 | L75: 1055107 | M75: 187
A76: 1055108 | B76: C1/1 | C76: voyant stadbye | E76: 1 | F76: 4 | G76: 3.45 | H76: 13.8 | L76: 1055108 | M76: 188
A77: 1055112 | B77: C1/1 | C77: bouton pousssoir | E77: 1 | F77: 3 | G77: 2.35 | H77: 7.05 | L77: 1055112 | M77: 189
A78: 1055113 | B78: C1/2 | C78: bouton poussoir rouge | E78: 1 | F78: 2 | G78: 2.35 | H78: 4.7 | L78: 1055113 | M78: 190
A80: 1055115 | B80: C1/2 | C80: bouton poussoir rouge ZB2-R5 | E80: 1 | F80: 2 | G80: 2.35 | H80: =G80*F80 -> 4.7 | J80: =IF(F80<I80,1,"") ->  | L80: 1055115 | M80: 192
A81: 1055116 | B81: C3/2 | C81: bouton poussoir noir PLAT | E81: 1 | F81: 3 | G81: 2.35 | H81: 7.05 | L81: 1055116 | M81: 193
A82: 1055117 | B82: A3/3 | C82: bouton poussoir rouge | E82: 1 | F82: 4 | G82: 2.35 | H82: 9.4 | L82: 1055117 | M82: 194
A83: 1055118 | B83: 60-A-2 | C83: bouton poussoir noir CROUZET | E83: 1 | F83: 3 | G83: 2.35 | H83: 7.05 | L83: 1055118 | M83: 195
A84: 1055119 | B84: C3/1 | C84: bouton poussoir noir 3331 | E84: 1 | F84: 2 | G84: 2.35 | H84: 4.7 | L84: 1055119 | M84: 196
A85: 1055120 | B85: C2/1 | C85: bouton poussoir vert CROUZET | E85: 1 | F85: 1 | G85: 2.35 | H85: 2.35 | L85: 1055120 | M85: 197
A86: 1055125 | B86: C1/1 | C86: bouton pousssoir noire | E86: 1 | F86: 2 | G86: 2.35 | H86: 4.7 | L86: 1055125 | M86: 198
A88: 1055134 | B88: C1/1 | C88: Interrupteur auxibloc Z2 | E88: 1 | F88: 2 | G88: 8.95 | H88: =G88*F88 -> 17.9 | J88: =IF(F88<I88,1,"") ->  | L88: 1055134 | M88: 200
A89: 1055190 | B89: C1/2 | C89: COMPOSANTS | D89: 0 | E89: 1 | F89: 1 | G89: 275.65 | H89: =G89*F89 -> 275.65 | J89: =IF(F89<I89,1,"") ->  | L89: 1055190 | M89: 201
A90: 1060101 | B90: C2/1 | C90: bloc relais thermique | D90: LA7 D0954 | E90: 1 | F90: 7 | G90: 15 | H90: =G90*F90 -> 105 | J90: =IF(F90<I90,1,"") ->  | L90: 1060101 | M90: 202
A91: 1060102 | B91: B3/3 | C91: relais | D91: CA2 DN122 | E91: 1 | F91: 21 | G91: 12.75 | H91: =G91*F91 -> 267.75 | J91: =IF(F91<I91,1,"") ->  | L91: 1060102 | M91: 203
A92: 1060104 | B92: D3/1 | C92: relais | D92: CA2 DN131 | E92: 1 | F92: 9 | G92: 12.75 | H92: =G92*F92 -> 114.75 | J92: =IF(F92<I92,1,"") ->  | L92: 1060104 | M92: 204
A95: 1060108 | B95: 10-A-2 | C95: relais RH | D95: RHN41 | E95: 1 | F95: 18 | G95: 13.85 | H95: =G95*F95 -> 249.3 | J95: =IF(F95<I95,1,"") ->  | L95: 1060108 | M95: 207
A96: 1060109 | B96: C2/2 | C96: Relais RH | E96: 1 | F96: 5 | G96: 8.45 | H96: 42.25 | L96: 1060109 | M96: 208
A97: 1060112 | B97: E1/1 | C97: relais RH | D97: 24v 50/60HZ | E97: 1 | F97: 7 | G97: 13.85 | H97: 96.95 | L97: 1060112 | M97: 209
A98: 1060115 | B98: 30-A-1 | C98: relais thermique | D98: 14 LR D 09312 | E98: 1 | F98: 1 | G98: 18.9 | H98: 18.9 | L98: 1060115 | M98: 210
A99: 1060116 | B99: 10-A-2 | C99: relais thermique | D99: BBC T25 DM | E99: 1 | F99: 6 | G99: 18.9 | H99: 113.4 | L99: 1060116 | M99: 211
A100: 1060117 | B100: 10-A-1 | C100: relais thermique | D100: 10 LR1 09310 | E100: 1 | F100: 14 | G100: 18.9 | H100: 264.6 | L100: 1060117 | M100: 212
A101: 1060120 | B101: D1/1 | C101: relais thermique | E101: 1 | F101: 28 | G101: 18.9 | H101: 529.2 | L101: 1060120 | M101: 213
A102: 1060121 | B102: 10-A-2
A103: 1060123 | B103: E1/2 | C103: Relais thermique | E103: 1 | F103: 1 | G103: 0.85 | H103: =G103*F103 -> 0.85 | J103: =IF(F103<I103,1,"") ->  | L103: 1060123 | M103: 215
A105: 1060125 | B105: C1/2 | C105: Relais thermique | E105: 1 | F105: 5 | G105: 18.9 | H105: =G105*F105 -> 94.5 | J105: =IF(F105<I105,1,"") ->  | L105: 1060125 | M105: 133
A106: 1060126 | B106: A2/3 | C106: Relais temporisateur BLR 220V | E106: 1 | F106: 6 | G106: 23.5 | H106: =G106*F106 -> 141 | J106: =IF(F106<I106,1,"") ->  | L106: 1060126 | M106: 134
A107: 1060129 | B107: E1/3 | C107: Relais temporisateur BDR 220V | D107: 0 | E107: 1 | F107: 3 | G107: 24.7 | H107: =G107*F107 -> 74.1 | J107: =IF(F107<I107,1,"") ->  | L107: 1060129 | M107: 135
A109: 1070101 | B109: 10-B-2 | C109: boite de dérivation | D109: 4 trous | E109: 1 | F109: 15 | G109: 3.7 | H109: =G109*F109 -> 55.5 | J109: =IF(F109<I109,1,"") ->  | L109: 1070101 | M109: 137
A110: 1070104 | B110: A3/3 | C110: bornier de raccordement | D110: 600V 55A | E110: 1 | F110: 22 | G110: 5.74 | H110: 126.28 | L110: 1070104 | M110: 138
A111: 1070107 | B111: A3/4 | C111: bornier de raccordement | D111: DB6 CB 105 | E111: 1 | F111: 23 | G111: 5.74 | H111: 132.02 | L111: 1070107 | M111: 139
A112: 1070108 | B112: E1/3 | C112: bornier de raccordement | D112: DB6 CC1 | E112: 1 | F112: 10 | G112: 5.74 | H112: 57.4 | L112: 1070108 | M112: 140
A113: 1070111 | B113: E2/2 | C113: bornier de raccordement | D113: CB102 | E113: 1 | F113: 10 | G113: 5.74 | H113: 57.4 | L113: 1070111 | M113: 141
A114: 1070112 | B114: B2/1 | C114: bornier de raccordement | D114: DB6 DC103 | E114: 1 | F114: 68 | G114: 5.74 | H114: 390.32 | L114: 1070112 | M114: 142
A115: 1070113 | B115: A3/1 | C115: bornier de raccordement | D115: DB6 CD102 | E115: 1 | F115: 45 | G115: 5.68 | H115: 255.6 | L115: 1070113 | M115: 143
A116: 1070114 | B116: D3/2 | C116: Bonier de raccordement | D116: DB6 LD 111 | E116: 1 | F116: 8 | G116: 0.35 | H116: 2.8 | L116: 1070114 | M116: 144
A117: 1070115 | B117: D2/3 | C117: bornier de raccordement | D117: DB6 LD 110 | E117: 1 | F117: 10 | G117: 5.74 | H117: 57.4 | L117: 1070115 | M117: 145
A118: 1070116 | B118: C2/2 | C118: embout de bornier | D118: équerre métallique | E118: 1 | F118: 28 | G118: 2.7 | H118: 75.6 | L118: 1070116 | M118: 146
A119: 1070119 | B119: E1/2 | C119: presse étoupe | D119: petite taille | E119: 1 | F119: 13 | G119: 1.4 | H119: 18.2 | L119: 1070119 | M119: 147
A120: 1070120 | B120: E1/2 | C120: presse étoupe | D120: grande taille | E120: 1 | F120: 7 | G120: 1.4 | H120: 9.8 | L120: 1070120 | M120: 148
A121: 1070126 | B121: C1/1 | C121: écrou de fixation pour boite de dérivation | D121: Kleimhuis 1420/29 | E121: 1 | F121: 19 | G121: 0.35 | H121: 6.65 | L121: 1070126 | M121: 149
A122: 1070127 | B122: 10-A-1 | C122: écrou de fixation boite de dérivation | D122: Kleimhuis 1234PO901 | E122: 1 | F122: 30 | G122: 0.35 | H122: 10.5 | L122: 1070127 | M122: 150
A123: 1070128 | B123: D3/2 | C123: écrou de fixation pour boite de dérivation | D123: Kleimhuis | E123: 1 | F123: 17 | G123: 0.35 | H123: 5.95 | L123: 1070128 | M123: 151
A124: 1070129 | B124: 10-A-1 | C124: écrou de fixation pour boite de dérivation | D124: Kleimhuis 1420/36 | E124: 1 | F124: 15 | G124: 0.35 | H124: 5.25 | L124: 1070129 | M124: 152
A125: 1070130 | B125: E1/3 | C125: écrou de fixation pour boite de dérivation | D125: LEGRAND 98040 | E125: 1 | F125: 17 | G125: 0.35 | H125: 5.95 | L125: 1070130 | M125: 106
A126: 1070132 | B126: 30-A-1 | C126: écrou de fixation pour boite de dérivation | D126: Kleimhuis 1234P1301 | E126: Sachet de 20 | F126: 3 | G126: 0.35 | H126: 1.05 | L126: 1070132 | M126: 107
A127: 1070133 | B127: A4/4 | C127: Borne AB1 VV1032 | D127: 0 | E127: 1 | F127: 63 | G127: 12.55 | H127: 790.65 | L127: 1070133 | M127: 108
A128: 1080106 | B128: C2/2 | C128: Séquenceur PSE A12 | D128: 0 | E128: 1 | F128: 3 | G128: 25.45 | H128: 76.35 | L128: 1080106 | M128: 109
A129: 1080108 | B129: C2/3 | C129: Séquenceur PSD A12 | E129: 1 | F129: 1 | G129: 25.45 | H129: 25.45 | L129: 1080108 | M129: 110
A130: 1080112 | B130: C1/1 | C130: Séquenceur PSD D | E130: 1 | F130: 1 | G130: 25.45 | H130: 25.45 | L130: 1080112 | M130: 111
A131: 1080115 | B131: 10-B-2 | C131: séquenceur a-10 | E131: 1 | F131: 95 | G131: 33.24 | H131: 3157.8 | L131: 1080115 | M131: 112
A132: 1080117 | B132: C2/3 | C132: Séquenceur | E132: 1 | F132: 5 | G132: 18.25 | H132: 91.25 | L132: 1080117 | M132: 113
A134: 1080121 | B134: C2/2
A135: 1080122 | B135: C2/2 | C135: séquenceur PXB-F1011 | E135: 1 | F135: 6 | G135: 15.35 | H135: =G135*F135 -> 92.1 | J135: =IF(F135<I135,1,"") ->  | L135: 1080122 | M135: 116
A136: 1080126 | B136: E1/1 | C136: Seperateur electrique | E136: 1 | F136: 6 | G136: 22.35 | H136: 134.1 | L136: 1080126 | M136: 117
A137: 1080128 | B137: D1/1 | C137: Séquenceur 81522501 | E137: 1 | F137: 16 | G137: 18 | H137: 288 | L137: 1080128 | M137: 118
A138: 1085103 | B138: D3/1 | C138: Porte ampoule | D138: Telemecanique | E138: 1 | F138: 21 | G138: 3.36 | H138: 70.56 | L138: 1085103 | M138: 119
A139: 1085105 | B139: C1/2 | C139: Porte ampoule | D139: Telemecanique | E139: 1 | F139: 4 | G139: 3.45 | H139: 13.8 | L139: 1085105 | M139: 120
A140: 1085107 | B140: A3/3 | C140: Porte ampoule | D140: Telemecanique | E140: 1 | F140: 2 | G140: 3.65 | H140: 7.3 | L140: 1085107 | M140: 153
A141: 1085109 | B141: 70-B-3 | E141: 1 | F141: 5 | H141: 0 | L141: 1085109 | M141: 154
A142: 1085117 | B142: C3/2 | C142: Auxibloc | E142: 1 | F142: 5 | G142: 7.5 | H142: 37.5 | L142: 1085117 | M142: 155
A143: 1085201 | B143: A4/4 | C143: porte fusible | E143: 1 | F143: 16 | G143: 24.35 | H143: 389.6 | L143: 1085201 | M143: 156
A144: 1085202 | B144: D2/3 | C144: module flash | D144: 0 | E144: 1 | F144: 8 | G144: 14.25 | H144: 114 | L144: 1085202 | M144: 157
A145: 2010101 | B145: 10-B-1 | C145: écrou à encoche | D145: KM 32 | E145: 1 | F145: 1 | G145: 2.5 | H145: 2.5 | L145: 2010101 | M145: 158
A146: 2010102 | B146: D3/3 | C146: écrou à encoche | D146: KM10 | E146: 1 | F146: 5 | G146: 1.75 | H146: 8.75 | L146: 2010102 | M146: 159
A148: 2010107 | B148: A4/2 | C148: Ecrou diamètre 30 mm | D148: . | E148: 1 | F148: 226 | G148: 4.75 | H148: =G148*F148 -> 1073.5 | J148: =IF(F148<I148,1,"") ->  | L148: 2010107 | M148: 161
A149: 2030101 | B149: E1/2 | C149: vis à tête plate argent | D149: argent 1 x 0,5 | E149: 1 | F149: 8 | G149: 0.1 | H149: 0.8 | L149: 2030101 | M149: 162
A150: 2030102 | B150: C3/1 | C150: vis à tête plate bronze | D150: bronze 2 x 0,5 | E150: 1 | F150: 2 | G150: 0.1 | H150: 0.2 | L150: 2030102 | M150: 163
A151: 2030103 | B151: C2/3 | C151: vis à tête plate bronze | D151: bronze 1 x 0,5 | E151: 1 | F151: 5 | G151: 0.1 | H151: 0.5 | L151: 2030103 | M151: 121
A152: 2030104 | B152: C2/3 | C152: Vis Hexagonale zinc 8 x 70 | D152: . | E152: 1 | F152: 6 | G152: 0.1 | H152: 0.6 | L152: 2030104 | M152: 122
A153: 2030106 | B153: 20-B-1 | C153: Vis à tête cylindirque hexagonale creuse | D153: 5 x 30 | E153: 1 | F153: 24 | G153: 0.2 | H153: 4.8 | L153: 2030106 | M153: 123
A154: 2040101 | B154: A2/3 | C154: cheville spit roc | D154: 5104 | E154: 1 | F154: 23 | G154: 1.45 | H154: 33.35 | L154: 2040101 | M154: 124
A155: 2040102 | B155: 20-B-2 | C155: cheville spit roc | D155: 5105 | E155: 1 | F155: 13 | G155: 1.45 | H155: 18.85 | L155: 2040102 | M155: 125
A156: 2040104 | B156: 20-B-2 | C156: cheville spit roc | D156: 5101 | E156: 1 | F156: 8 | G156: 1.45 | H156: 11.6 | L156: 2040104 | M156: 126
A157: 2040105 | B157: 20-B-2 | C157: Cheville spit roc 5106M9 | D157: 6 x 100 | E157: sachet de 10 | F157: 5 | G157: 15 | H157: 75 | L157: 2040105 | M157: 127
A158: 2040107 | B158: C3/2 | C158: Vis Ecrou double filtage | E158: Sachet de 10 | F158: 5 | G158: 15 | H158: 75 | L158: 2040107 | M158: 128
A160: 4010101 | B160: 30-B-3 | C160: Roulement à aiguilles | D160: GC16 | E160: 1 | F160: 1 | G160: 15.6 | H160: =G160*F160 -> 15.6 | J160: =IF(F160<I160,1,"") ->  | L160: 4010101 | M160: 130
A161: 4010103 | B161: E3/3 | C161: Roulement à billes | D161: 301216 S2 | E161: 1 | F161: 2 | G161: 16.75 | H161: 33.5 | L161: 4010103 | M161: 131
A162: 4010104 | B162: E3/3 | C162: Roulement à billes | D162: 22308 CKJ | E162: 1 | F162: 2 | G162: 16.6 | H162: 33.2 | L162: 4010104 | M162: 105
A163: 4010105 | B163: E3/3 | C163: Roulement à billes | D163: 22308 CCK | E163: 1 | F163: 3 | G163: 16.6 | H163: 49.8 | L163: 4010105 | M163: 104
A164: 4010106 | B164: E3/3 | C164: Roulement à billes | D164: 320008 x 90 KA1 33 | E164: 1 | F164: 4 | G164: 17.8 | H164: 71.2 | L164: 4010106 | M164: 103
A165: 4010107 | B165: E3/3 | C165: Roulement à billes | D165: 32015 X 90 KA1 33 | E165: 1 | F165: 3 | G165: 17.8 | H165: 53.4 | L165: 4010107 | M165: 102
A166: 4010108 | B166: E3/2 | C166: Roulement à billes | D166: X01 1211K/C3 | E166: 1 | F166: 4 | G166: 17.8 | H166: 71.2 | L166: 4010108 | M166: 101
A167: 4020103 | B167: 10-B-3 | C167: courroie | D167: T-FLEXSPB. 2430MC | E167: . | F167: 1 | G167: 2 | H167: 56 | L167: 4020103
A168: 5030101 | B168: A4/3 | C168: vérin double effet | D168: DSN25 40PA | E168: 1 | F168: 4 | G168: 154 | H168: =G168*F168 -> 616 | J168: =IF(F168<I168,1,"") ->  | L168: 5030101 | M168: 100
A170: 5040103 | B170: D2/2 | C170: electro vanne | E170: 1 | F170: 6 | G170: 45.55 | H170: =G170*F170 -> 273.3 | J170: =IF(F170<I170,1,"") ->  | L170: 5040103 | M170: 98
A171: 5040104 | B171: A4/2 | C171: Buze injection | E171: 1 | F171: 7 | G171: 45 | H171: 315 | L171: 5040104 | M171: 97
A172: 5040108 | B172: E2/3 | C172: contacteur à poussoir | E172: 1 | F172: 6 | G172: 3.45 | H172: 20.7 | L172: 5040108 | M172: 96
A173: 5040113 | B173: E2/3 | C173: Electro-vanne | D173: 0 | E173: 1 | F173: 8 | G173: 98.65 | H173: 789.2 | L173: 5040113 | M173: 95
A174: 6010101 | B174: A3/2 | C174: gache anti-décrochement | D174: E-17375-01 | E174: sachet de 4 | F174: 22 | G174: 27 | H174: 594 | L174: 6010101 | M174: 94
A175: 6020101 | B175: A4/1 | C175: bloc verrou | D175: G-13796-00-R-3 | E175: sachet de 5 | F175: 74 | G175: 26 | H175: 1924 | L175: 6020101 | M175: 93
A178: 6030104 | B178: D1/2 | C178: Charnière invisible gauche | D178: . | E178: 1 | F178: 13 | G178: 25 | H178: =G178*F178 -> 325 | J178: =IF(F178<I178,1,"") ->  | L178: 6030104 | M178: 90
A179: 7010113 | B179: A2/1 | C179: armature | D179: 7050 J | E179: 1 | F179: 2 | G179: 10.6 | H179: 21.2 | L179: 7010113 | M179: 89
A180: 7020104 | B180: C1/3 | C180: fixation à taquet d'arrêt | D180: 1245 | E180: 1 | F180: 2 | G180: 24.7 | H180: 49.4 | L180: 7020104 | M180: 88
A181: 7020105 | B181: C2/2 | C181: fixation à taquet d'arrêt | D181: 8068 | E181: 1 | F181: 2 | G181: 24.7 | H181: 49.4 | L181: 7020105 | M181: 87
A182: 7020117 | B182: C3/3 | C182: tige de fixation | D182: 305 | E182: 1 | F182: 2 | G182: 17 | H182: 34 | L182: 7020117 | M182: 86
A183: 7030101 | B183: C1/3 | C183: équerre | D183: 6044 U | E183: 1 | F183: 2 | G183: 14 | H183: 28 | L183: 7030101 | M183: 85
A184: 7030105 | B184: C2/1 | C184: équerre de fixation | D184: 1115 | E184: 1 | F184: 4 | G184: 19 | H184: 76 | L184: 7030105 | M184: 84
A185: 8010101 | B185: B2/2 | C185: Micro-controleur | D185: 309368516 | E185: 1 | F185: 25 | G185: 19.7 | H185: 492.5 | L185: 8010101 | M185: 83
A186: 8010102 | B186: B1/3 | C186: Micro-controleur | D186: R220FO144 | E186: 1 | F186: 10 | G186: 4.7 | H186: 47 | L186: 8010102 | M186: 82
A187: 8010103 | B187: B1/1 | C187: Tranfo | D187: BYT 13-800 C801 | E187: 1 | F187: 16 | G187: 4.7 | H187: 75.2 | L187: 8010103 | M187: 81
A188: 8010104 | B188: B3/1 | C188: Transfo 256807 | D188: . | E188: 1 | F188: 6 | G188: 4.7 | H188: 28.2 | L188: 8010104 | M188: 80
A189: 8010105 | B189: B1/1 | C189: tiroir casette | D189: . | E189: 1 | F189: 6 | G189: 4.7 | H189: 28.2 | L189: 8010105 | M189: 79
A190: 8010106 | B190: B2/3 | C190: relais gris | D190: R75 MKP | E190: 1 | F190: 9 | G190: 14.7 | H190: 132.3 | L190: 8010106 | M190: 78
A191: 8010107 | B191: B3/3 | C191: Résistance | D191: . | E191: 1 | F191: 50 | G191: 14.7 | H191: 735 | L191: 8010107 | M191: 77
A192: 8010108 | B192: B1/3 | C192: capuchon de façade | D192: . | E192: 1 | F192: 38 | G192: 14.7 | H192: 558.6 | L192: 8010108 | M192: 76
A193: 8010109 | B193: A1/2 | C193: pont de diodes | D193: . | E193: sachet de 50 | F193: 13 | G193: 14.7 | H193: 191.1 | L193: 8010109 | M193: 75
A194: 8010110 | B194: B1/2 | C194: façade DVD Magnétoscope Thomson | D194: . | E194: 1 | F194: 7 | G194: 15.4 | H194: 107.8 | L194: 8010110 | M194: 74
A195: 8010111 | B195: 20-B-2 | C195: façade Lecteur DVD | D195: DTH6300E | E195: 1 | F195: 5 | G195: 15.4 | H195: =G195*F195 -> 77 | J195: =IF(F195<I195,1,"") ->  | L195: 8010111 | M195: 73
A196: 8010112 | B196: B1/2 | C196: Façade DVD enregistreur | D196: . | E196: 1 | F196: 6 | G196: 15.4 | H196: 92.4 | L196: 8010112 | M196: 72
A197: 8010113 | B197: B2/1 | C197: Façade magnétoscope | D197: . | E197: 1 | F197: 8 | G197: 15.4 | H197: 123.2 | L197: 8010113 | M197: 71
A198: 8010114 | B198: B3/2 | C198: Pont de diodes | D198: 20191620 | E198: sachet de 5 | F198: 36 | G198: 15.4 | H198: 554.4 | L198: 8010114 | M198: 70
A199: 8010115 | B199: B2/2 | C199: Clips de fixation plastique | D199: . | E199: 1 | F199: 23 | G199: 15.4 | H199: 354.2 | L199: 8010115 | M199: 69
A200: 8010117 | B200: 10-B-2 | C200: Barette bouton Magnétoscope | D200: . | E200: 1 | F200: 183 | G200: 15.4 | H200: 2818.2 | L200: 8010117 | M200: 68
A201: 8010118 | B201: B3/1 | C201: Micro-contrôleur | D201: . | E201: 1 | F201: 16 | G201: 15.4 | H201: 246.4 | L201: 8010118 | M201: 67
A202: 8010119 | B202: 80-D-3 | C202: Micro-contrôleur | D202: MKP 1841-1 3,5% | E202: 1 | F202: 32 | G202: 15.4 | H202: 492.8 | L202: 8010119 | M202: 66
A203: 8010120 | B203: B3/1 | C203: Barre de fixation plastique | D203: . | E203: 1 | F203: 19 | G203: 15.4 | H203: 292.6 | L203: 8010120 | M203: 65
A204: 8010121 | B204: B2/2 | C204: micro-contrôleur | D204: ST6395BI/XZJ ICC8-B33 | E204: 1 | F204: 42 | G204: 15.4 | H204: 646.8 | L204: 8010121 | M204: 64
A205: 8010122 | B205: B2/2 | C205: puce électronique 35592430 | D205: en boitier | E205: sachet de 1 | F205: 16 | G205: 36.4 | H205: 582.4 | L205: 8010122 | M205: 63
A206: 8010123 | B206: B1/3 | C206: Quartz KONY | D206: . | E206: 1 | F206: 36 | G206: 36.4 | H206: 1310.4 | L206: 8010123 | M206: 62
A207: 8010124 | B207: B1/1 | C207: Transfo 16v 105 degré 1020 UF | D207: . | E207: 1 | F207: 19 | G207: 36.4 | H207: 691.6 | L207: 8010124 | M207: 61
A208: 8010125 | B208: B2/1 | C208: Mini micro-contrôleur | D208: . | E208: 1 | F208: 10 | G208: 36.4 | H208: 364 | L208: 8010125 | M208: 60
A209: 8010126 | B209: B1/3 | C209: Pont de diodes | D209: 16000440 | E209: 1 | F209: 240 | G209: 36.4 | H209: 8736 | L209: 8010126 | M209: 59
A210: 8010127 | B210: B3/2 | C210: Puce électronique 35668550 | D210: en boitier | E210: 1 | F210: 45 | G210: 36.4 | H210: 1638 | L210: 8010127 | M210: 58
A211: 8010128 | B211: B3/3 | C211: Micro-contrôleur | D211: . | E211: 1 | F211: 16 | G211: 36.4 | H211: 582.4 | L211: 8010128 | M211: 57
A212: 8010129 | B212: B2/1 | C212: Micro-contrôleur | D212: . | E212: 1 | F212: 32 | G212: 26.45 | H212: 846.4 | L212: 8010129 | M212: 56
A213: 8010130 | B213: B2/3 | C213: Transfo | D213: rx 105° L345(M) | E213: sachet de 1 | F213: 439 | G213: 26.45 | H213: 11611.55 | L213: 8010130 | M213: 55
A214: 8010131 | B214: 20-B-3 | C214: Micro-contrôleur | D214: R22EF9828 | E214: 1 | F214: 14 | G214: 26.45 | H214: 370.3 | L214: 8010131 | M214: 54
A215: 8010132 | B215: B2/2 | C215: Micro-contrôleur | D215: MKP 1841-1 3,5% 0310 | E215: 1 | F215: 20 | G215: 26.45 | H215: 529 | L215: 8010132 | M215: 53
A216: 8010133 | B216: A3/2 | C216: Résistances | D216: . | E216: 1 | F216: 17 | G216: 26.45 | H216: 449.65 | L216: 8010133 | M216: 52
A217: 8010134 | B217: A1/1 | C217: Mini micro-contrôleur | D217: . | E217: 1 | F217: 1 | G217: 26.45 | H217: 26.45 | L217: 8010134 | M217: 51

Sheet ClientsFournisseurs
A1: N° | B1: Nom | C1: Adresse | D1: code postal | E1: Ville | F1: Téléphone | G1: Email | H1: Dép
A2: 1 | B2: Vulin | C2: 25 rue charles robin | D2: 01000 | E2: Bourg-en-bresse | F2: 04.69.36.36.35 | G2: =IF(B2="","",(LOWER(B2&"."&E2&"@"&B2&".com"))) -> vulin.bourg-en-bresse@vulin.com | H2: =LEFT(D2, 2) -> 01
A3: =A2+1 -> 2 | B3: Trans'faire | C3: 4 rue docteur nodet | D3: 01000 | E3: Bourg-en-bresse | F3: 04.69.20.25.24 | G3: trans'faire .bourg-en-bresse@trans'faire .com | H3: 01
A4: 3 | B4: Les Pins | C4: Avenue amedee mercier | D4: 01000 | E4: Bourg-en-bresse | F4: 04.69.87.52.52 | G4: les pins.bourg-en-bresse@les pins.com | H4: 01
A5: 4 | B5: CALGARY | C5: Rue francois rochaix | D5: 01100 | E5: Arbent | F5: 04.69.21.21.24 | G5: calgary .arbent@calgary .com | H5: 01
A6: 5 | B6: 2LC1 | C6: 3 route de groissiat | D6: 01100 | E6: Bellignat | F6: 04.68.02.02.25 | G6: 2lc1 .bellignat@2lc1 .com | H6: 01
A7: 6 | B7: HARMEL | C7: 10 rue de l orme | D7: 01100 | E7: Oyonnax | F7: 04.69.35.24.17 | G7: harmel .oyonnax@harmel .com | H7: 01
A8: 7 | B8: Euromotor | C8: 30 rue de la roche samuel | D8: 01110 | E8: Brénod | F8: 04.69.36.36.98 | G8: euromotor .brénod@euromotor .com | H8: 01
A9: 8 | B9: JPBM | C9: Treve giroux | D9: 01140 | E9: St-didier-sur-chalaronne | F9: 04.68.65.65.64 | G9: jpbm.st-didier-sur-chalaronne@jpbm.com | H9: 01
A10: 9 | B10: Sarl De La Tour | C10: 162 route de chazey | D10: 01150 | E10: Blyes | F10: 04.67.58.52.52 | G10: sarl de la tour .blyes@sarl de la tour .com | H10: 01
A11: 10 | B11: JNGA | C11: 45 chemin du clodet | D11: 01150 | E11: Leyment | F11: 04.67.58.52.53 | G11: jnga .leyment@jnga .com | H11: 01
A12: 11 | B12: L'AURORE | C12: 3 rue bernard gangloff | D12: 01160 | E12: Pont-d'ain | F12: 04.67.58.52.54 | G12: l'aurore.pont-d'ain@l'aurore.com | H12: 01
A13: 12 | B13: Design | C13: 1 espace rene dinnat | D13: 01200 | E13: Bellegarde-sur-valserine | F13: 04.67.58.52.55 | G13: design .bellegarde-sur-valserine@design .com | H13: 01
A14: 13 | B14: C Distribution | C14: 350 av mal de lattre de tassigny | D14: 01200 | E14: Bellegarde | F14: 04.67.58.52.56 | G14: c distribution .bellegarde@c distribution .com | H14: 01
A15: 14 | B15: 123 Deco | C15: 201 perruet maconnex | D15: 01210 | E15: Ornex | F15: 04.67.58.52.57 | G15: 123 deco .ornex@123 deco .com | H15: 01
A16: 15 | B16: A Mely | C16: 262 grande rue | D16: 01220 | E16: Divonne-les-bains | F16: 04.67.58.52.58 | G16: a mely .divonne-les-bains@a mely .com | H16: 01
A17: 16 | B17: SARL DUGOZ | C17: Auberge a la vieille | D17: 01230 | E17: Arandas | F17: 04.67.58.52.59 | G17: sarl dugoz .arandas@sarl dugoz .com | H17: 01
A18: 17 | B18: RODRIGUEZ | C18: 8 rue de change pont | D18: 01230 | E18: Tenay | F18: 04.67.58.52.60 | G18: rodriguez .tenay@rodriguez .com | H18: 01
A19: 18 | B19: FRAUTOS | C19: ZI NORD | D19: 01260 | E19: Belmont-luthézieu | F19: 04.67.58.52.61 | G19: frautos .belmont-luthézieu@frautos .com | H19: 01
A20: 19 | B20: BILLOTTE NICOLAS | C20: 78 rue du lavoir | D20: 01300 | E20: Arbignieu | F20: 04.67.58.52.62 | G20: billotte nicolas .arbignieu@billotte nicolas .com | H20: 01
A21: 20 | B21: Tonnies | C21: ZI Sud | D21: 01400 | E21: Châtillon-sur-chalaronne | F21: 04.67.58.52.63 | G21: tonnies .châtillon-sur-chalaronne@tonnies .com | H21: 01
A22: 21 | B22: 3ET | C22: Route de gignez | D22: 01420 | E22: Corbonod | F22: 04.67.58.52.64 | G22: 3et .corbonod@3et .com | H22: 01
A23: 22 | B23: Mental Express | C23: Zac poutier | D23: 01470 | E23: Serrières-de-briord | F23: 04.67.58.52.65 | G23: mental express .serrières-de-briord@mental express .com | H23: 01
A24: 23 | B24: PMS TECHNIC | C24: Zone artisanale la graviere | D24: 01480 | E24: Fareins | F24: 04.67.58.52.66 | G24: pms technic .fareins@pms technic .com | H24: 01
A25: 24 | B25: FRAY | C25: Chemin du pardy | D25: 01480 | E25: Frans | F25: 04.67.58.52.67 | G25: fray .frans@fray .com | H25: 01
A26: 25 | B26: VV (SARL) | C26: 304 rue du beaujolais | D26: 01480 | E26: Jassans-riottier | F26: 04.67.58.52.68 | G26: vv (sarl) .jassans-riottier@vv (sarl) .com | H26: 01
A27: 26 | B27: Merepi | C27: 80 rue jules ferry | D27: 01480 | E27: Jassans-riottier | F27: 04.67.58.52.69 | G27: merepi .jassans-riottier@merepi .com | H27: 01
A28: 27 | B28: Gauthier | C28: 15 rue alexandre berard | D28: 01500 | E28: Ambérieu-en-bugey | F28: 04.67.58.52.70 | G28: gauthier .ambérieu-en-bugey@gauthier .com | H28: 01
A29: 28 | B29: C Dévellopement | C29: Place du champ de mars | D29: 01500 | E29: Ambérieu-en-bugey | F29: 04.67.58.52.71 | G29: c dévellopement.ambérieu-en-bugey@c dévellopement.com | H29: 01
A30: 29 | B30: GENC | C30: Place du monument | D30: 01510 | E30: Virieu-le-grand | F30: 04.67.58.52.72 | G30: genc .virieu-le-grand@genc .com | H30: 01
A31: 30 | B31: Papelo | C31: 2 place lieutenant giraud | D31: 01800 | E31: Meximieux | F31: 09.61.69.83.71 | G31: papelo .meximieux@papelo .com | H31: 01
A32: 31 | B32: CE MS COMPOSITES | C32: 13 rue de la croix | D32: 02000 | E32: Chavignon | F32: 09.61.69.83.72 | G32: ce ms composites .chavignon@ce ms composites .com | H32: 02
A33: 32 | B33: MOC MBS Composites | C33: 13 rue de la croix | D33: 02000 | E33: Chavignon | F33: 03.23.21.86.00 | G33: moc mbs composites .chavignon@moc mbs composites .com | H33: 02
A34: 33 | B34: Care | C34: Route de molinchart | D34: 02000 | E34: Laniscourt | F34: 03.23.24.84.88 | G34: care .laniscourt@care .com | H34: 02
A35: 34 | B35: PEAL | C35: 14 rue romanette | D35: 02000 | E35: Laon | F35: 09.66.96.14.72 | G35: peal .laon@peal .com | H35: 02
A36: 35 | B36: Exventys | C36: Avenue archimede | D36: 02100 | E36: Saint-quentin | F36: 03.23.08.36.53 | G36: exventys .saint-quentin@exventys .com | H36: 02
A37: 36 | B37: Starcar | C37: 43 boulevard richelieu | D37: 02100 | E37: Saint-quentin | F37: 03.23.64.35.54 | G37: starcar .saint-quentin@starcar .com | H37: 02
A38: 37 | B38: Revaltia | C38: 6 avenue Archimede | D38: 02100 | E38: Saint-quentin | F38: 03.23.09.98.53 | G38: revaltia .saint-quentin@revaltia .com | H38: 02
A39: 38 | B39: Gobert SA | C39: 210 rue A.Daltrif | D39: 02100 | E39: Harly | F39: 03.23.62.36.99 | G39: gobert sa.harly@gobert sa.com | H39: 02
A40: 39 | B40: Electrotech | C40: 17 rue francis de pressense | D40: 02110 | E40: Bohain-en-vermandois | F40: 09.71.39.84.71 | G40: electrotech .bohain-en-vermandois@electrotech .com | H40: 02
A41: 40 | B41: Earl Degardez | C41: 26 rue des 2 drucbert | D41: 02110 | E41: La Vallée-mulâtre | F41: 09.64.26.94.64 | G41: earl degardez .la vallée-mulâtre@earl degardez .com | H41: 02
A42: 41 | B42: Lasserez Alain | C42: 34 lieu dit la petite rue | D42: 02170 | E42: Esquéhéries | F42: 03.23.98.96.92 | G42: lasserez alain .esquéhéries@lasserez alain .com | H42: 02
A43: 42 | B43: SPS | C43: 3 rue de villers cotterets | D43: 02200 | E43: Soissons | F43: 09.62.27.71.42 | G43: sps .soissons@sps .com | H43: 02
A44: 43 | B44: PICAR RENOV | C44: 7 rue du college | D44: 02200 | E44: Soissons | F44: 09.06.55.50.66 | G44: picar renov .soissons@picar renov .com | H44: 02
A45: 44 | B45: PLASTIQUE DE L'AISNE | C45: Rue des industries | D45: 02220 | E45: Braine | F45: 09.60.14.27.94 | G45: plastique de l'aisne .braine@plastique de l'aisne .com | H45: 02
A46: 45 | B46: API (SARL) | C46: 1 rue de valnois | D46: 02220 | E46: Brenelle | F46: 03.23.74.09.26 | G46: api (sarl) .brenelle@api (sarl) .com | H46: 02
A47: 46 | B47: Philimmo (SARL) | C47: 1 rue du chauffour | D47: 02250 | E47: Berlancourt | F47: 03.23.79.73.89 | G47: philimmo (sarl) .berlancourt@philimmo (sarl) .com | H47: 02
A48: 47 | B48: Rebour | C48: 4 rue principale | D48: 02250 | E48: La Neuville-housset | F48: 09.61.57.03.29 | G48: rebour .la neuville-housset@rebour .com | H48: 02
A49: 48 | B49: 2 L | C49: 1 avenue carnot | D49: 02250 | E49: Marle | F49: 03.23.80.11.80 | G49: 2 l .marle@2 l .com | H49: 02
A50: 49 | B50: Richet Fils | C50: 4 grande rue | D50: 02250 | E50: Tavaux-et-pontséricourt | F50: 09.62.26.13.94 | G50: richet fils .tavaux-et-pontséricourt@richet fils .com | H50: 02
A51: 50 | B51: GONEZ | C51: 62 rue du general de gaulle | D51: 02270 | E51: Crécy-sur-serre | F51: 09.61.22.93.72 | G51: gonez .crécy-sur-serre@gonez .com | H51: 02
A52: 51 | B52: Formaflex (SARL) | C52: Rue du moulin | D52: 02310 | E52: Romeny-sur-marne | F52: 03.23.70.99.81 | G52: formaflex (sarl) .romeny-sur-marne@formaflex (sarl) .com | H52: 02
A53: 52 | B53: Rene Sarl | C53: Le mont de leuilly | D53: 02380 | E53: Leuilly-sous-coucy | F53: 09.64.00.88.39 | G53: rene sarl .leuilly-sous-coucy@rene sarl .com | H53: 02
A54: 53 | B54: Agence FG | C54: 5 chemin du charme | D54: 02400 | E54: Château-thierry | F54: 03.23.69.26.66 | G54: agence fg .château-thierry@agence fg .com | H54: 02
A55: 54 | B55: ENT DPS | C55: 16 les coupettes | D55: 02400 | E55: Verdilly | F55: 09.27.87.19.26 | G55: ent dps .verdilly@ent dps .com | H55: 02
A56: 55 | B56: IPP (SARL) | C56: Rue du baty | D56: 02500 | E56: Neuve-maison | F56: 03.23.58.48.13 | G56: ipp (sarl) .neuve-maison@ipp (sarl) .com | H56: 02
A57: 56 | B57: A F I P | C57: 14 rue du grand montoir | D57: 02600 | E57: Villers-cotterêts | F57: 09.67.11.13.48 | G57: a f i p .villers-cotterêts@a f i p .com | H57: 02
A58: 57 | B58: SCEA de l'Epine | C58: 3 hameau de l epine | D58: 02600 | E58: Vivières | F58: 03.23.96.07.22 | G58: scea de l'epine .vivières@scea de l'epine .com | H58: 02
A59: 58 | B59: PCF | C59: 21 rue vaucanson | D59: 02700 | E59: Tergnier | F59: 03.23.52.64.67 | G59: pcf .tergnier@pcf .com | H59: 02
A60: 59 | B60: Uzin France | C60: 4 rue du president coty | D60: 02880 | E60: Crouy | F60: 03.23.76.37.40 | G60: uzin france .crouy@uzin france .com | H60: 02
A61: 60 | B61: Pihet | C61: 13 rue du belvedere | D61: 02880 | E61: Cuffies | F61: 09.63.62.02.98 | G61: pihet .cuffies@pihet .com | H61: 02
A62: 61 | B62: SRVS | C62: 3 chemin du pierrelet | D62: 02880 | E62: Vregny | F62: 03.23.72.83.61 | G62: srvs .vregny@srvs .com | H62: 02
A63: 62 | B63: SAPE | C63: 122 route de paris | D63: 03000 | E63: Avermes | F63: 04.70.45.50.71 | G63: sape .avermes@sape .com | H63: 03
A64: 63 | B64: Bussy (SARL) | C64: 6 chemin de longve | D64: 03000 | E64: Bressolles | F64: 04.70.20.50.70 | G64: bussy (sarl) .bressolles@bussy (sarl) .com | H64: 03
A65: 64 | B65: BEAUPERE | C65: 42 avenue marx dormoy | D65: 03100 | E65: Montluçon | F65: 09.77.80.73.57 | G65: beaupere .montluçon@beaupere .com | H65: 03
A66: 65 | B66: ELECTRO LEASE | C66: 10 rue de valmy | D66: 03100 | E66: Montluçon | F66: 04.43.01.00.11 | G66: =IF(B66="","",(LOWER(B66&"."&E66&"@"&B66&".com"))) -> electro lease .montluçon@electro lease .com | H66: =LEFT(D66, 2) -> 03
A67: =A66+1 -> 66 | B67: Ste New Tuyauterie | C67: 26 rue benoist d azy | D67: 03100 | E67: Montluçon | F67: 04.70.09.92.12 | G67: ste new tuyauterie.montluçon@ste new tuyauterie.com | H67: 03
A68: 67 | B68: BRONGNIARD | C68: Lieu dit l etang neuf | D68: 03130 | E68: Le Bouchaud | F68: 09.60.50.75.47 | G68: brongniard .le bouchaud@brongniard .com | H68: 03
A69: 68 | B69: Brooks Instrument | C69: 7 rue de la tour | D69: 03200 | E69: Abrest | F69: 04.70.59.81.81 | G69: brooks instrument .abrest@brooks instrument .com | H69: 03
A70: 69 | B70: AGN et Diagnostics | C70: 9 rue grenet | D70: 03200 | E70: Vichy | F70: 04.70.32.03.19 | G70: agn et diagnostics .vichy@agn et diagnostics .com | H70: 03
A71: 70 | B71: Empial Eurl | C71: 33 place jean epinat | D71: 03200 | E71: Vichy | F71: 04.70.97.42.43 | G71: empial eurl .vichy@empial eurl .com | H71: 03
A72: 71 | B72: Energhouse | C72: 26 rue d alsace | D72: 03200 | E72: Vichy | F72: 04.70.31.29.63 | G72: energhouse .vichy@energhouse .com | H72: 03
A73: 72 | B73: Bernon | C73: 32 place yves deret | D73: 03290 | E73: Dompierre-sur-besbre | F73: 04.70.34.50.28 | G73: bernon .dompierre-sur-besbre@bernon .com | H73: 03
A74: 73 | B74: Sermeto | C74: Rue de rebrillon | D74: 03300 | E74: Creuzier-le-neuf | F74: 04.70.58.47.40 | G74: sermeto .creuzier-le-neuf@sermeto .com | H74: 03
A75: 74 | B75: ADRM | C75: 5 rue georges ferrier | D75: 03300 | E75: Cusset | F75: 04.70.55.71.08 | G75: adrm .cusset@adrm .com | H75: 03
A76: 75 | B76: EFCA | C76: 55 rue de l industrie | D76: 03300 | E76: Cusset | F76: 04.70.96.24.46 | G76: efca .cusset@efca .com | H76: 03
A77: 76 | B77: BAUD | C77: 3 rue lavoisier | D77: 03300 | E77: Cusset | F77: 09.75.82.60.94 | G77: baud .cusset@baud .com | H77: 03
A78: 77 | B78: Ets Roche et Fils | C78: 20 rue ampere | D78: 03300 | E78: Cusset | F78: 04.70.98.17.69 | G78: ets roche et fils .cusset@ets roche et fils .com | H78: 03
A79: 78 | B79: SDEB | C79: Les grivats | D79: 03300 | E79: Cusset | F79: 04.70.97.05.06 | G79: sdeb .cusset@sdeb .com | H79: 03
A80: 79 | B80: Jys Chrome | C80: 1 rue d algerie | D80: 03340 | E80: Montbeugny | F80: 04.70.46.68.09 | G80: jys chrome .montbeugny@jys chrome .com | H80: 03
A81: 80 | B81: Dechet (EARL) | C81: Lieu dit berteau | D81: 03380 | E81: Archignat | F81: 09.61.47.66.50 | G81: dechet (earl) .archignat@dechet (earl) .com | H81: 03
A82: 81 | B82: CAPM | C82: Parc de la mothe | D82: 03400 | E82: Yzeure | F82: 09.77.38.69.51 | G82: capm .yzeure@capm .com | H82: 03
A83: 82 | B83: Cablotec | C83: 36 rue eugene leroy | D83: 03410 | E83: Domérat | F83: 04.70.29.32.64 | G83: cablotec .domérat@cablotec .com | H83: 03
A84: 83 | B84: Métal 3D | C84: Zone artisanale le pont vert | D84: 03410 | E84: Prémilhat | F84: 04.70.64.74.02 | G84: métal 3d .prémilhat@métal 3d .com | H84: 03
A85: 84 | B85: Euroméca II | C85: Parc mecatronic | D85: 03410 | E85: Saint-victor | F85: 04.70.06.21.20 | G85: euroméca ii .saint-victor@euroméca ii .com | H85: 03
A86: 85 | B86: CANTON (SARL) | C86: 3 rue des chaumes | D86: 03420 | E86: Marcillat-en-combraille | F86: 09.62.20.89.53 | G86: canton (sarl) .marcillat-en-combraille@canton (sarl) .com | H86: 03
A87: 86 | B87: SE ME CO | C87: Lieu dit la bussiere | D87: 03420 | E87: Terjat | F87: 04.70.29.60.87 | G87: se me co .terjat@se me co .com | H87: 03
A88: 87 | B88: Chauderie K | C88: Route du donjon | D88: 03470 | E88: Saligny-sur-roudon | F88: 04.70.42.21.59 | G88: chauderie k.saligny-sur-roudon@chauderie k.com | H88: 03
A89: 88 | B89: DOSS (SARL) | C89: Chemin de menilchamp | D89: 03500 | E89: Verneuil-en-bourbonnais | F89: 04.70.45.15.10 | G89: doss (sarl) .verneuil-en-bourbonnais@doss (sarl) .com | H89: 03
A90: 89 | B90: Caldeira | C90: 59 rue jean alexis bayet | D90: 03600 | E90: Commentry | F90: 09.65.20.22.47 | G90: caldeira .commentry@caldeira .com | H90: 03
A91: 90 | B91: 2 CT | C91: 45 rue alexis Mayer | D91: 03600 | E91: Commentry | F91: 04.70.09.22.34 | G91: 2 ct .commentry@2 ct .com | H91: 03
A92: 91 | B92: BBP (SARL) | C92: 2 rue des silos | D92: 03800 | E92: Gannat | F92: 09.66.82.33.17 | G92: bbp (sarl) .gannat@bbp (sarl) .com | H92: 03
A93: 92 | B93: Mizony Jean Claude | C93: Zi st christophe | D93: 04000 | E93: Digne-les-bains | F93: 09.61.32.82.19 | G93: mizony jean claude .digne-les-bains@mizony jean claude .com | H93: 04
A94: 93 | B94: CG Com | C94: Rue ferdinand de lesseps | D94: 04000 | E94: Digne-les-bains | F94: 09.71.50.12.99 | G94: cg com .digne-les-bains@cg com .com | H94: 04
A95: 94 | B95: Gesmont | C95: 7 avenue joseph reinach | D95: 04000 | E95: Digne-les-bains | F95: 04.92.34.36.71 | G95: gesmont .digne-les-bains@gesmont .com | H95: 04
A96: 95 | B96: Sud Matières Plastiques | C96: Zone industrielle saint maurice | D96: 04100 | E96: Manosque | F96: 04.92.72.09.64 | G96: sud matières plastiques .manosque@sud matières plastiques .com | H96: 04
A97: 96 | B97: All Running | C97: 91 rue berthelot | D97: 04100 | E97: Manosque | F97: 04.92.77.23.98 | G97: all running .manosque@all running .com | H97: 04
A98: 97 | B98: ASTIER | C98: 2 place marcel sauvaire | D98: 04120 | E98: Castellane | F98: 09.60.41.26.59 | G98: astier .castellane@astier .com | H98: 04
A99: 98 | B99: Les Alisiers | C99: Col saint jean | D99: 04140 | E99: Montclar | F99: 04.92.35.02.72 | G99: les alisiers .montclar@les alisiers .com | H99: 04
A100: 99 | B100: L'Ardoise | C100: Rue de la bourgade | D100: 04150 | E100: Banon | F100: 04.92.73.30.64 | G100: l'ardoise .banon@l'ardoise .com | H100: 04
A101: 100 | B101: Eiffel Industrie | C101: Avenue de blaches gombert | D101: 04160 | E101: Château-arnoux-saint-auban | F101: 04.92.36.34.90 | G101: eiffel industrie .château-arnoux-saint-auban@eiffel industrie .com | H101: 04
A102: 101 | B102: Albatros | C102: Chemin du lac | D102: 04160 | E102: Château-arnoux-saint-auban | F102: 04.92.64.56.48 | G102: albatros .château-arnoux-saint-auban@albatros .com | H102: 04
A103: 102 | B103: Les Ormes | C103: Route de nice | D103: 04170 | E103: Saint-andré-les-alpes | F103: 09.66.98.98.96 | G103: les ormes .saint-andré-les-alpes@les ormes .com | H103: 04
A104: 103 | B104: SICMA 04 (SARL) | C104: Les plaines | D104: 04180 | E104: Villeneuve | F104: 09.77.75.25.17 | G104: sicma 04 (sarl) .villeneuve@sicma 04 (sarl) .com | H104: 04
A105: 104 | B105: PRAT SA | C105: Rue des pres d astruc | D105: 04190 | E105: Les Mées | F105: 04.92.35.17.68 | G105: prat sa.les mées@prat sa.com | H105: 04
A106: 105 | B106: Afairefer | C106: Chemin de champarlau | D106: 04200 | E106: Peipin | F106: 09.64.19.67.23 | G106: afairefer .peipin@afairefer .com | H106: 04
A107: 106 | B107: MS Auto | C107: 7 rue des lilas | D107: 04200 | E107: Peipin | F107: 09.47.02.08.69 | G107: ms auto .peipin@ms auto .com | H107: 04
A108: 107 | B108: PAYAN | C108: 21 allee des romarins | D108: 04200 | E108: Sisteron | F108: 09.79.18.88.79 | G108: payan .sisteron@payan .com | H108: 04
A109: 108 | B109: Tolerie Fine J2M | C109: 1 rue des artisans | D109: 04220 | E109: Corbières | F109: 04.92.76.50.71 | G109: tolerie fine j2m .corbières@tolerie fine j2m .com | H109: 04
A110: 109 | B110: Certam | C110: Beaumont de pertuis | D110: 04220 | E110: Corbières | F110: 09.62.19.25.70 | G110: certam .corbières@certam .com | H110: 04
A111: 110 | B111: Réaplastic | C111: Za les bastides blanches | D111: 04220 | E111: Sainte-tulle | F111: 04.92.70.17.70 | G111: réaplastic .sainte-tulle@réaplastic .com | H111: 04
A112: 111 | B112: ALPE | C112: 8 za de pitaugier | D112: 04300 | E112: Mane | F112: 09.65.31.69.39 | G112: alpe .mane@alpe .com | H112: 04
A113: 112 | B113: Legrand | C113: Rue principale | D113: 04330 | E113: Barrême | F113: 09.65.38.20.57 | G113: legrand .barrême@legrand .com | H113: 04
A114: 113 | B114: SYSTEMS MPS | C114: Rue du portail du col | D114: 04380 | E114: Thoard | F114: 09.92.61.31.83 | G114: systems mps .thoard@systems mps .com | H114: 04
A115: 114 | B115: Alixa | C115: Le pont long | D115: 04400 | E115: Barcelonnette | F115: 04.92.81.03.62 | G115: alixa.barcelonnette@alixa.com | H115: 04
A116: 115 | B116: Chauvac | C116: 28 rue manuel | D116: 04400 | E116: Barcelonnette | F116: 09.79.56.97.98 | G116: chauvac .barcelonnette@chauvac .com | H116: 04
A117: 116 | B117: Ginouves SA | C117: La sapinière | D117: 04400 | E117: Uvernet-fours | F117: 04.92.84.06.46 | G117: ginouves sa.uvernet-fours@ginouves sa.com | H117: 04
A118: 117 | B118: JPS | C118: Le fournas | D118: 04600 | E118: Château-arnoux-saint-auban | F118: 04.92.62.81.96 | G118: jps .château-arnoux-saint-auban@jps .com | H118: 04
A119: 118 | B119: MBM Energipole | C119: Avenue du jas | D119: 04600 | E119: Saint-auban | F119: 04.92.62.16.19 | G119: mbm energipole .saint-auban@mbm energipole .com | H119: 04
A120: 119 | B120: KELLOOK | C120: Le gryselis | D120: 04800 | E120: Gréoux-les-bains | F120: 04.92.73.76.58 | G120: kellook .gréoux-les-bains@kellook .com | H120: 04
A121: 120 | B121: NUGGETA | C121: 12 grand rue | D121: 04800 | E121: Saint-martin-de-brômes | F121: 04.92.78.72.02 | G121: nuggeta .saint-martin-de-brômes@nuggeta .com | H121: 04
A122: 121 | B122: L'Ere H | C122: Rampe des ginestes | D122: 04860 | E122: Pierrevert | F122: 04.92.72.89.83 | G122: l'ere h .pierrevert@l'ere h .com | H122: 04
A123: 122 | B123: MSR | C123: Za Plaine lachaup | D123: 05000 | E123: Châteauvieux | F123: 09.67.03.41.88 | G123: msr.châteauvieux@msr.com | H123: 05
A124: 123 | B124: AS Diffusion | C124: 1 bd general charles de gaulle | D124: 05000 | E124: Gap | F124: 04.92.52.46.70 | G124: as diffusion .gap@as diffusion .com | H124: 05
A125: 124 | B125: Adegoria | C125: 27 rue M.Pagnol | D125: 05000 | E125: Gap | F125: 04.27.19.41.80 | G125: adegoria .gap@adegoria .com | H125: 05
A126: 125 | B126: HECAM | C126: 68 avenue emile didier | D126: 05000 | E126: Gap | F126: 09.33.86.86.39 | G126: hecam .gap@hecam .com | H126: 05
A127: 126 | B127: Meynaud (SARL) | C127: Quartier la condamine | D127: 05000 | E127: Pelleautier | F127: 09.08.42.99.27 | G127: meynaud (sarl) .pelleautier@meynaud (sarl) .com | H127: 05
A128: 127 | B128: JPG | C128: 3 place des 4 vents | D128: 05100 | E128: Briançon | F128: 09.31.65.06.60 | G128: jpg .briançon@jpg .com | H128: 05
A129: 128 | B129: 3 A (SARL) | C129: Lieu dit le chateau | D129: 05100 | E129: Cervières | F129: 04.92.20.58.44 | G129: 3 a (sarl) .cervières@3 a (sarl) .com | H129: 05
A130: 129 | B130: Plissoff eurl | C130: Rue de sablon | D130: 05100 | E130: Montgenèvre | F130: 04.92.21.91.93 | G130: =IF(B130="","",(LOWER(B130&"."&E130&"@"&B130&".com"))) -> plissoff eurl.montgenèvre@plissoff eurl.com | H130: =LEFT(D130, 2) -> 05
A131: =A130+1 -> 130 | B131: DURANCE DECAPAGE | C131: Les prés | D131: 05110 | E131: Vitrolles | F131: 04.88.03.63.32 | G131: durance decapage.vitrolles@durance decapage.com | H131: 05
A132: 131 | B132: Pailheiret SA | C132: Rue des collets | D132: 05120 | E132: L'argentière-la-bessée | F132: 04.92.23.05.27 | G132: pailheiret sa.l'argentière-la-bessée@pailheiret sa.com | H132: 05
A133: 132 | B133: Agriver | C133: Lieu dit les guerins | D133: 05130 | E133: Sigoyer | F133: 04.92.57.87.43 | G133: agriver.sigoyer@agriver.com | H133: 05
A134: 133 | B134: Ludy (SARL) | C134: Le moulin | D134: 05130 | E134: Tallard | F134: 04.92.24.05.63 | G134: ludy (sarl) .tallard@ludy (sarl) .com | H134: 05
A135: 134 | B135: Patrick Chagnard BTP | C135: Quartier devant viere | D135: 05140 | E135: Aspremont | F135: 09.60.19.35.48 | G135: patrick chagnard btp .aspremont@patrick chagnard btp .com | H135: 05
A136: 135 | B136: Phil Import | C136: Le village | D136: 05190 | E136: Rochebrune | F136: 04.92.54.45.85 | G136: phil import .rochebrune@phil import .com | H136: 05
A137: 136 | B137: Erevan SA | C137: 1 rue clovis hugues | D137: 05200 | E137: Embrun | F137: 04.92.43.07.93 | G137: erevan sa.embrun@erevan sa.com | H137: 05
A138: 137 | B138: Hipos 1 | C138: Rue de la liberte | D138: 05200 | E138: Embrun | F138: 04.92.43.45.43 | G138: hipos 1 .embrun@hipos 1 .com | H138: 05
A139: 138 | B139: Navarro Frères (SARL) | C139: Quartier pre de la gare | D139: 05230 | E139: Chorges | F139: 04.92.50.24.66 | G139: navarro frères (sarl) .chorges@navarro frères (sarl) .com | H139: 05
A140: 139 | B140: PEYRE SARL | C140: Rue des salados | D140: 05230 | E140: Chorges | F140: 09.11.01.76.05 | G140: peyre sarl.chorges@peyre sarl.com | H140: 05
A141: 140 | B141: PR Invest | C141: Lieu dit les beaujours | D141: 05230 | E141: Chorges | F141: 04.92.50.90.74 | G141: pr invest .chorges@pr invest .com | H141: 05
A142: 141 | B142: L'Aravet | C142: Clot de laravet | D142: 05240 | E142: La Salle Les Alpes | F142: 09.67.08.97.67 | G142: l'aravet .la salle les alpes@l'aravet .com | H142: 05
A143: 142 | B143: Ets Gayral (SARL) | C143: Village de pont du fosse | D143: 05260 | E143: Saint-jean-saint-nicolas | F143: 04.92.55.93.56 | G143: ets gayral (sarl) .saint-jean-saint-nicolas@ets gayral (sarl) .com | H143: 05
A144: 143 | B144: L'Ecrin | C144: Rte d'orcières | D144: 05260 | E144: Saint-jean-saint-nicolas | F144: 04.92.55.98.36 | G144: l'ecrin .saint-jean-saint-nicolas@l'ecrin .com | H144: 05
A145: 144 | B145: GGK | C145: Quartier du plan | D145: 05300 | E145: Laragne-montéglin | F145: 09.66.91.25.23 | G145: ggk .laragne-montéglin@ggk .com | H145: 05
A146: 145 | B146: Kasy (SARL) | C146: Rn 91 | D146: 05320 | E146: La Grave | F146: 04.76.80.92.78 | G146: kasy (sarl) .la grave@kasy (sarl) .com | H146: 05
A147: 146 | B147: RD Technologies | C147: 7 allee jean jacques rousseau | D147: 05400 | E147: Veynes | F147: 04.92.58.33.33 | G147: rd technologies .veynes@rd technologies .com | H147: 05
A148: 147 | B148: I D E M M | C148: Quartier les barraques | D148: 05500 | E148: La Fare-en-champsaur | F148: 04.92.23.13.44 | G148: i d e m m .la fare-en-champsaur@i d e m m .com | H148: 05
A149: 148 | B149: Sarl Ferrero | C149: Lieu dit bonnette | D149: 05500 | E149: La Fare-en-champsaur | F149: 09.50.68.29.41 | G149: sarl ferrero .la fare-en-champsaur@sarl ferrero .com | H149: 05
A150: 149 | B150: Menuiserie Benoit | C150: Route de sainte catherine | D150: 05560 | E150: Vars | F150: 04.92.46.52.57 | G150: menuiserie benoit .vars@menuiserie benoit .com | H150: 05
A151: 150 | B151: Manzon (SARL) | C151: Chemin de l eperviere | D151: 05600 | E151: Guillestre | F151: 09.66.93.75.34 | G151: manzon (sarl) .guillestre@manzon (sarl) .com | H151: 05
A152: 151 | B152: AJL | C152: Les chauvets | D152: 05600 | E152: Risoul | F152: 04.92.45.32.59 | G152: ajl.risoul@ajl.com | H152: 05
A153: 152 | B153: ALTER ENERGIES | C153: 74 chemin du genie | D153: 06000 | E153: Nice | F153: 09.46.47.26.07 | G153: alter energies .nice@alter energies .com | H153: 06
A154: 153 | B154: Bleekin Sarl | C154: 5 avenue clement ader | D154: 06100 | E154: Nice | F154: 09.73.34.13.05 | G154: bleekin sarl .nice@bleekin sarl .com | H154: 06
A155: 154 | B155: BARQUIN | C155: 229 route de cannes | D155: 06130 | E155: Grasse | F155: 09.60.35.09.79 | G155: barquin .grasse@barquin .com | H155: 06
A156: 155 | B156: TIP | C156: 8 avenue louison bobet | D156: 06130 | E156: Grasse | F156: 04.93.40.44.66 | G156: tip .grasse@tip .com | H156: 06
A157: 156 | B157: Norwest | C157: 1645 chemin saint arnoux | D157: 06140 | E157: Tourrettes-sur-loup | F157: 04.93.24.70.35 | G157: norwest .tourrettes-sur-loup@norwest .com | H157: 06
A158: 157 | B158: ASCT | C158: 239 avenue michel jourdan | D158: 06150 | E158: Cannes | F158: 04.93.47.98.21 | G158: asct .cannes@asct .com | H158: 06
A159: 158 | B159: Cogenim | C159: Allee georges guynemer | D159: 06210 | E159: Mandelieu-la-napoule | F159: 04.93.48.32.02 | G159: cogenim .mandelieu-la-napoule@cogenim .com | H159: 06
A160: 159 | B160: DEME | C160: Zi les tourrades bât e | D160: 06210 | E160: Mandelieu-la-napoule | F160: 04.93.48.22.60 | G160: deme .mandelieu-la-napoule@deme .com | H160: 06
A161: 160 | B161: 3CG SARL | C161: 155 chemin saint bernard | D161: 06220 | E161: Vallauris | F161: 09.46.74.22.37 | G161: 3cg sarl .vallauris@3cg sarl .com | H161: 06
A162: 161 | B162: GARNERO | C162: Impasse du plan bermond | D162: 06340 | E162: La Trinité | F162: 09.79.32.42.62 | G162: garnero .la trinité@garnero .com | H162: 06
A163: 162 | B163: ADC | C163: 1 rue du chateau | D163: 06370 | E163: Mouans-sartoux | F163: 04.92.99.04.91 | G163: adc .mouans-sartoux@adc .com | H163: 06
A164: 163 | B164: Biomax | C164: 210 avenue de saint philippe | D164: 06410 | E164: Biot | F164: 04.93.58.57.44 | G164: biomax .biot@biomax .com | H164: 06
A165: 164 | B165: BPMD | C165: 69 rue yves klein | D165: 06480 | E165: La Colle-sur-loup | F165: 09.66.95.49.99 | G165: bpmd .la colle-sur-loup@bpmd .com | H165: 06
A166: 165 | B166: Bichon | C166: 28 avenue carnot | D166: 06500 | E166: Menton | F166: 09.62.62.96.63 | G166: bichon .menton@bichon .com | H166: 06
A167: 166 | B167: Reeb Roger | C167: 507 route des pommiers | D167: 06510 | E167: Bouyon | F167: 09.64.42.48.29 | G167: reeb roger .bouyon@reeb roger .com | H167: 06
A168: 167 | B168: Alain Hauser (SARL) | C168: 18 rue HENRY | D168: 06510 | E168: Carros | F168: 09.75.50.09.54 | G168: alain hauser (sarl) .carros@alain hauser (sarl) .com | H168: 06
A169: 168 | B169: Feralco | C169: 1274 chemin du claret | D169: 06510 | E169: Carros | F169: 09.64.10.98.89 | G169: feralco .carros@feralco .com | H169: 06
A170: 169 | B170: Cepim (SARL) | C170: 2041 route de la baronne | D170: 06510 | E170: Gattières | F170: 04.93.29.18.75 | G170: cepim (sarl) .gattières@cepim (sarl) .com | H170: 06
A171: 170 | B171: Andhuiz (SCI) | C171: 6 rue de la maionnette | D171: 06510 | E171: Le Broc | F171: 09.66.84.92.55 | G171: andhuiz (sci) .le broc@andhuiz (sci) .com | H171: 06
A172: 171 | B172: Alcali | C172: 101 chemin des traillieres | D172: 06530 | E172: Saint-cézaire-sur-siagne | F172: 09.60.54.08.05 | G172: alcali .saint-cézaire-sur-siagne@alcali .com | H172: 06
A173: 172 | B173: Hallais Patrick | C173: 252 chemin des blaquieres | D173: 06570 | E173: Saint-paul | F173: 04.92.02.10.45 | G173: hallais patrick .saint-paul@hallais patrick .com | H173: 06
A174: 173 | B174: Cuny Aviation (SARL) | C174: 1066 départemental 309 | D174: 06580 | E174: Pégomas | F174: 04.93.40.78.78 | G174: cuny aviation (sarl) .pégomas@cuny aviation (sarl) .com | H174: 06
A175: 174 | B175: 2 May | C175: 1 place du safranier | D175: 06600 | E175: Antibes | F175: 04.97.23.36.47 | G175: 2 may .antibes@2 may .com | H175: 06
A176: 175 | B176: Boximedia (SARL) | C176: 83 chemin rene pouchol | D176: 06670 | E176: Levens | F176: 09.66.95.24.26 | G176: boximedia (sarl) .levens@boximedia (sarl) .com | H176: 06
A177: 176 | B177: Buro Metod | C177: 687 ancien chemin de nice | D177: 06670 | E177: Saint-martin-du-var | F177: 09.77.63.41.09 | G177: buro metod .saint-martin-du-var@buro metod .com | H177: 06
A178: 177 | B178: Staat Industrie | C178: 594 avenue du canton de levens | D178: 06690 | E178: Tourrette-levens | F178: 04.93.91.67.57 | G178: staat industrie .tourrette-levens@staat industrie .com | H178: 06
A179: 178 | B179: Biostore | C179: 8 allee des imprimeurs | D179: 06700 | E179: Saint-laurent-du-var | F179: 09.67.09.52.81 | G179: biostore .saint-laurent-du-var@biostore .com | H179: 06
A180: 179 | B180: Copasud | C180: 33 rue claude bernard | D180: 06700 | E180: Saint-laurent-du-var | F180: 04.92.12.83.25 | G180: copasud .saint-laurent-du-var@copasud .com | H180: 06
A181: 180 | B181: Alfadis | C181: 24 avenue bischoffsheim | D181: 06710 | E181: Villars-sur-var | F181: 09.67.15.62.08 | G181: alfadis .villars-sur-var@alfadis .com | H181: 06
A182: 181 | B182: Crystal (SARL) | C182: 60 avenue de verdun | D182: 06800 | E182: Cagnes-sur-mer | F182: 04.93.86.45.55 | G182: crystal (sarl) .cagnes-sur-mer@crystal (sarl) .com | H182: 06
A183: 182 | B183: L'Art d'Eco Batir | C183: Quartier treguel | D183: 07000 | E183: Flaviac | F183: 04.75.64.58.24 | G183: l'art d'eco batir .flaviac@l'art d'eco batir .com | H183: 07
A184: 183 | B184: S Pace | C184: Zi les lacs | D184: 07000 | E184: Privas | F184: 04.75.64.15.96 | G184: s pace .privas@s pace .com | H184: 07
A185: 184 | B185: Solika (SARL) | C185: Quartier de la rouviere | D185: 07000 | E185: Saint-priest | F185: 04.75.66.23.78 | G185: solika (sarl) .saint-priest@solika (sarl) .com | H185: 07
A186: 185 | B186: RIMAUD (SARL) | C186: 10 rue auguste bravais | D186: 07100 | E186: Annonay | F186: 09.71.37.95.18 | G186: rimaud (sarl) .annonay@rimaud (sarl) .com | H186: 07
A187: 186 | B187: Bio Bat | C187: Chemin du rivet | D187: 07100 | E187: Boulieu-lès-annonay | F187: 04.75.32.59.30 | G187: bio bat .boulieu-lès-annonay@bio bat .com | H187: 07
A188: 187 | B188: ROCHETTE (SARL) | C188: Le chaumel | D188: 07100 | E188: Roiffieux | F188: 09.64.45.28.32 | G188: rochette (sarl) .roiffieux@rochette (sarl) .com | H188: 07
A189: 188 | B189: Papeterie Dumas | C189: 130 rue nationale | D189: 07120 | E189: Ruoms | F189: 04.75.93.90.67 | G189: papeterie dumas .ruoms@papeterie dumas .com | H189: 07
A190: 189 | B190: DAIRE | C190: Quartier le chene | D190: 07130 | E190: Saint-péray | F190: 09.62.14.85.93 | G190: daire .saint-péray@daire .com | H190: 07
A191: 190 | B191: INCENDIE ARDROM | C191: Zone industrielle pole 2000 | D191: 07130 | E191: Saint-péray | F191: 04.75.81.80.82 | G191: incendie ardrom .saint-péray@incendie ardrom .com | H191: 07
A192: 191 | B192: LUITEN | C192: 9 rue louis de villeneuve | D192: 07130 | E192: Saint-péray | F192: 09.79.16.51.31 | G192: luiten .saint-péray@luiten .com | H192: 07
A193: 192 | B193: E C T Industries | C193: Zone artisanale | D193: 07130 | E193: Soyons | F193: 04.75.40.84.00 | G193: e c t industries .soyons@e c t industries .com | H193: 07
A194: 193 | B194: Cayreyre (Ets) | C194: Chemin de ripotier haut | D194: 07200 | E194: Aubenas | F194: 04.75.89.14.21 | G194: =IF(B194="","",(LOWER(B194&"."&E194&"@"&B194&".com"))) -> cayreyre (ets) .aubenas@cayreyre (ets) .com | H194: =LEFT(D194, 2) -> 07
A195: =A194+1 -> 194 | B195: Auto Industrie | C195: Boulevard marechal leclerc | D195: 07200 | E195: Aubenas | F195: 04.75.93.57.14 | G195: auto industrie .aubenas@auto industrie .com | H195: 07
A196: 195 | B196: Cayreyre (Ets) | C196: Chemin de ripotier haut | D196: 07200 | E196: Aubenas | F196: 04.75.89.14.21 | G196: cayreyre (ets) .aubenas@cayreyre (ets) .com | H196: 07
A197: 196 | B197: Agri Drôme | C197: Rue henri roche | D197: 07270 | E197: Lamastre | F197: 04.75.06.49.55 | G197: agri drôme .lamastre@agri drôme .com | H197: 07
A198: 197 | B198: DAMON | C198: 1391 combalat | D198: 07340 | E198: Félines | F198: 09.64.23.01.43 | G198: damon .félines@damon .com | H198: 07
A199: 198 | B199: Euro Cloison System | C199: 1391 route de combalat | D199: 07340 | E199: Félines | F199: 04.75.33.81.44 | G199: euro cloison system .félines@euro cloison system .com | H199: 07
A200: 199 | B200: Sadela Industrie | C200: Le flacher | D200: 07340 | E200: Félines | F200: 04.75.34.86.31 | G200: sadela industrie .félines@sadela industrie .com | H200: 07
... 772 more rows

Sheet Stock
A1: Référence | B1: DÉSIGNATION | C1: COMPLÉMENT | D1: ADRESSE | E1: U.V | F1: Stock | G1: Prix de Vente | H1: Valeur | I1: Stock Mini | J1: Stock Maxi | K1: Alerte
A2: 10001 | B2: Projecteur EPSON EB-675 wi | D2: A-1-1 | E2: 1 | F2: 3 | G2: 1350 | H2: =IF(G2="","",G2*F2) -> 4050 | I2: 1 | J2: 3 | K2: =IF(F2<=I2,J2-F2,IF(F2>I2,J2-F2)) -> 0
A3: 10002 | B3: Projecteur EPSON EB-675 wi | D3: A-1-2 | E3: 1 | F3: 2 | G3: 1350 | H3: 2700 | I3: 1 | J3: 2 | K3: 0
A4: 10003 | B4: Plaque GAZ | D4: A-1-3 | E4: 1 | F4: 9 | G4: 455 | H4: 4095 | I4: 2 | J4: 9 | K4: 0
A5: 10004 | B5: Ordinateur AM09 | D5: A-1-4 | E5: 1 | F5: 4 | G5: 645 | H5: 2580 | I5: 2 | J5: 4 | K5: 0
A6: 10005 | B6: Projecteur EPSON EB-675 wi | D6: A-2-1 | E6: 1 | F6: 3 | G6: 1350 | H6: 4050 | I6: 1 | J6: 3 | K6: 0
A7: 10006 | B7: Écran Philips B Line 22" | D7: A-2-2 | E7: 1 | F7: 3 | G7: 320 | H7: 960 | I7: 1 | J7: 3 | K7: 0
A8: 10007 | B8: Projecteur EPSON EB-685 wi | D8: A-2-3 | E8: 1 | F8: 1 | G8: 1450 | H8: 1450 | I8: 1 | J8: 1 | K8: 0
A9: 10008 | B9: Poteau socle | D9: A-2-3 | E9: 1 | F9: 1 | G9: 185 | H9: 185 | I9: 1 | J9: 1 | K9: 0
A10: 10009 | B10: Poteau socle | D10: A-2-4 | E10: 1 | F10: 2 | G10: 185 | H10: 370 | I10: 1 | J10: 2 | K10: 0
A11: 10010 | B11: Ordinateur DELL | D11: A-2-4 | E11: 1 | F11: 1 | G11: 489 | H11: 489 | I11: 1 | J11: 1 | K11: 0
A12: 10011 | B12: Projecteur EPSON EB-675 wi | D12: B-1-1 | E12: 1 | F12: 3 | G12: 1350 | H12: 4050 | I12: 1 | J12: 3 | K12: 0
A13: 10012 | B13: Projecteur EPSON EB-675 wi | D13: B-1-3 | E13: 1 | F13: 1 | G13: 1350 | H13: 1350 | I13: 1 | J13: 1 | K13: 0
A14: 10013 | B14: Poteau socle | D14: B-1-3 | E14: 1 | F14: 1 | G14: 185 | H14: 185 | I14: 1 | J14: 1 | K14: 0
A15: 10014 | B15: Projecteur EPSON EB-675 wi | D15: B-2-1 | E15: 1 | F15: 3 | G15: 1350 | H15: 4050 | I15: 1 | J15: 3 | K15: 0
A16: 10015 | B16: Projecteur EPSON EB-675 wi | D16: B-2-2 | E16: 1 | F16: 2 | G16: 1350 | H16: 2700 | I16: 1 | J16: 2 | K16: 0
A17: 10016 | B17: Filtre écran CRT&LCD | D17: B-1-4 | E17: 1 | F17: 10 | G17: 37 | H17: 370 | I17: 2 | J17: 10 | K17: 0
A18: 10017 | B18: Clavier fujistu siemens F4482 | D18: B-2-3 | E18: 1 | F18: 3 | G18: 45 | H18: 135 | I18: 1 | J18: 3 | K18: 0
A19: 10018 | B19: Clavier Nec | D19: B-2-3 | E19: 1 | F19: 1 | G19: 37 | H19: 37 | I19: 1 | J19: 1 | K19: 0
A20: 10019 | B20: Standard Centralp | D20: B-2-3 | E20: 1 | F20: 6 | G20: 268 | H20: 1608 | I20: 1 | J20: 6 | K20: 0
A21: 10020 | B21: Ordinateur THINKCENTRE | D21: B-1-4 | E21: 1 | F21: 5 | G21: 550 | H21: 2750 | I21: 1 | J21: 5 | K21: 0
A22: 10021 | B22: Eau Déméniraliée | D22: C-1-1 | E22: 1 | F22: 9 | G22: 12.25 | H22: 110.25 | I22: 2 | J22: 9 | K22: 0
A23: 10022 | B23: Lave Glace Holtz | D23: C-1-2 | E23: 1 | F23: 9 | G23: 14.65 | H23: 131.85 | I23: 2 | J23: 9 | K23: 0
A24: 10023 | B24: Polycontrôle Chauvin Arnoux | D24: C-1-3 | E24: 1 | F24: 2 | G24: 25 | H24: 50 | I24: 1 | J24: 2 | K24: 0
A25: 10024 | B25: Dijoncteur télémécanique GV1-M07 | D25: C-1-3 | E25: 1 | F25: 3 | G25: 245 | H25: 735 | I25: 1 | J25: 3 | K25: 0
A26: 10025 | B26: Dijoncteur Télémécanique LC1 D40 | D26: C-1-3 | E26: 1 | F26: 1 | G26: 175 | H26: 175 | I26: 1 | J26: 1 | K26: 0
A27: 10026 | B27: Dijoncteur Merli Guerin Déclic C16 | D27: C-1-3 | E27: 1 | F27: 1 | G27: 145 | H27: 145 | I27: 1 | J27: 1 | K27: 0
A28: 10027 | B28: Kit Réducteur mamelon | D28: C-2-1 | E28: 1 | F28: 6 | G28: 12.5 | H28: 75 | I28: 1 | J28: 6 | K28: 0
A29: 10028 | B29: Clavier fujistu siemens | D29: C-2-2 | E29: 1 | F29: 8 | G29: 38.2 | H29: 305.6 | I29: 1 | J29: 8 | K29: 0
A30: 10029 | B30: Clavier Enith | D30: C-2-2 | E30: 1 | F30: 3 | G30: 37 | H30: 111 | I30: 1 | J30: 3 | K30: 0
A31: 10030 | B31: Clavier Logitec | D31: C-2-2 | E31: 1 | F31: 1 | G31: 38.5 | H31: 38.5 | I31: 1 | J31: 1 | K31: 0
A32: 10031 | B32: Manchon à emboiture | D32: D-1-1 | E32: 1 | F32: 9 | G32: 36.44 | H32: 327.96 | I32: 1 | J32: 9 | K32: 0
A33: 10032 | B33: Prise de branchement | D33: D-1-1 | E33: 1 | F33: 3 | G33: 22.35 | H33: 67.05 | I33: 1 | J33: 3 | K33: 0
A34: 10033 | B34: Simulateur | D34: D-1-1 | E34: 1 | F34: 2 | G34: 145 | H34: 290 | I34: 1 | J34: 2 | K34: 0
A35: 10034 | B35: thermostat | D35: D-1-1 | E35: 1 | F35: 1 | G35: 15 | H35: 15 | I35: 1 | J35: 1 | K35: 0
A36: 10035 | B36: Automete TSX 17 | D36: D-1-2 | E36: 1 | F36: 1 | G36: 5.23 | H36: 5.23 | I36: 1 | J36: 1 | K36: 0
A37: 10036 | B37: Processeur TSX47 | D37: D-1-2 | E37: 1 | F37: 3 | G37: 102 | H37: 306 | I37: 1 | J37: 3 | K37: 0
A38: 10037 | B38: Pïed mexal | D38: D-1-2 | E38: 1 | F38: 8 | G38: 12.6 | H38: 100.8 | I38: 2 | J38: 8 | K38: 0
A39: 10038 | B39: Fixation écrou | D39: D-1-2 | E39: 1 | F39: 4 | G39: 8.5 | H39: 34 | I39: 1 | J39: 4 | K39: 0
A40: 10039 | B40: Boitier interrupteur AV/AR | D40: D-1-3 | E40: 1 | F40: 1 | G40: 23 | H40: 23 | I40: 1 | J40: 1 | K40: 0
A41: 10040 | B41: Régulateur | D41: D-1-3 | E41: 1 | F41: 1 | G41: 37.65 | H41: 37.65 | I41: 1 | J41: 1 | K41: 0
A42: 10041 | B42: Embout Pompe | D42: D-1-3 | E42: 1 | F42: 2 | G42: 2.35 | H42: 4.7 | I42: 1 | J42: 2 | K42: 0
A43: 10042 | B43: Interrupteur Legran 100A | D43: D-1-3 | E43: 1 | F43: 2 | G43: 102 | H43: 204 | I43: 1 | J43: 2 | K43: 0
A44: 10043 | B44: Module de comutationPTX1 | D44: D-2-1 | E44: 1 | F44: 2 | G44: 89.36 | H44: 178.72 | I44: 1 | J44: 2 | K44: 0
A45: 10044 | B45: Raccord réducteur | D45: D-2-1 | E45: 1 | F45: 1 | G45: 45 | H45: 45 | I45: 1 | J45: 1 | K45: 0
A46: 10045 | B46: Manchon Muffe | D46: D-2-1 | E46: 1 | F46: 2 | G46: 2.74 | H46: 5.48 | I46: 1 | J46: 2 | K46: 0
A47: 10046 | B47: Dijoncteur différentiel Merlin Guerin | D47: D-2-1 | E47: 1 | F47: 2 | G47: 126.25 | H47: 252.5 | I47: 1 | J47: 2 | K47: 0
A48: 10047 | B48: Dijoncteur Télémécanique GV1-M08 | D48: D-2-1 | E48: 1 | F48: 9 | G48: 235.75 | H48: 2121.75 | I48: 2 | J48: 9 | K48: 0
A49: 10048 | B49: Veilleuse | D49: D-2-2 | E49: 1 | F49: 3 | G49: 168.95 | H49: 506.85 | I49: 1 | J49: 3 | K49: 0
A50: 10049 | B50: Bande anticorrosion | D50: D-2-2 | E50: 1 | F50: 10 | G50: 47.53 | H50: 475.3 | I50: 2 | J50: 10 | K50: 0
A51: 10050 | B51: Commutateur 3com | D51: D-2-2 | E51: 1 | F51: 3 | G51: 12.25 | H51: 36.75 | I51: 1 | J51: 3 | K51: 0
A52: 10051 | B52: Relais Finder Robine | D52: D-2-3 | E52: 1 | F52: 3 | G52: 35.6 | H52: 106.8 | I52: 1 | J52: 3 | K52: 0
A53: 10052 | B53: Galet de roulement | D53: D-2-3 | E53: 1 | F53: 17 | G53: 47.25 | H53: 803.25 | I53: 3 | J53: 17 | K53: 0
A54: 10053 | B54: Led de contrôle | D54: D-2-3 | E54: 1 | F54: 8 | G54: 126 | H54: 1008 | I54: 2 | J54: 8 | K54: 0
A55: 10054 | B55: Adaptateur Coaxial | D55: D-2-3 | E55: 1 | F55: 34 | G55: 21 | H55: 714 | I55: 10 | J55: 34 | K55: 0
A56: 10055 | B56: Broche | D56: E-1-1 | E56: 1 | F56: 1 | G56: 5 | H56: 5 | I56: 1 | J56: 1 | K56: 0
A57: 10056 | B57: Contacteur Télémécanique | D57: E-1-1 | E57: 1 | F57: 3 | G57: 26.85 | H57: 80.55 | I57: 1 | J57: 3 | K57: 0
A58: 10057 | B58: Centrale de connection Legrand | D58: E-1-1 | E58: 1 | F58: 1 | G58: 24.5 | H58: 24.5 | I58: 1 | J58: 1 | K58: 0
A59: 10058 | B59: Dijoncteur Hager 40A | D59: E-1-1 | E59: 1 | F59: 1 | G59: 127 | H59: 127 | I59: 1 | J59: 1 | K59: 0
A60: 10059 | B60: Tuyaux de reccordement | D60: E-1-2 | E60: 1 | F60: 6 | G60: 36.85 | H60: 221.1 | I60: 1 | J60: 6 | K60: 0
A61: 10061 | B61: Kit Réducteur | D61: E-1-3 | E61: Sachet de 3 | F61: 1 | G61: 25.84 | H61: 25.84 | I61: 1 | J61: 1 | K61: 0
A62: 10062 | B62: Poignet de liaison | D62: E-1-3 | E62: Sachet de 4 | F62: 8 | G62: 35.24 | H62: 281.92 | I62: 1 | J62: 8 | K62: 0
A63: 10063 | B63: Contrôleur de reseau Satschwell | D63: E-1-3 | E63: 1 | F63: 2 | G63: 644 | H63: 1288 | I63: 1 | J63: 2 | K63: 0
A64: 10064 | B64: Kit réducteur mamelon | D64: E-2-1 | E64: 1 | F64: 6 | G64: 2.55 | H64: 15.3 | I64: 2 | J64: 6 | K64: 0
A65: 10065 | B65: Support Relais Finfer | D65: E-2-2 | E65: 1 | F65: 10 | G65: 14 | H65: =IF(G65="","",G65*F65) -> 140 | I65: 2 | J65: 10 | K65: =IF(F65<=I65,J65-F65,IF(F65>I65,J65-F65)) -> 0
A66: 10066 | B66: Module d'entrée Siemens | D66: E-2-2 | E66: 1 | F66: 21 | G66: 541 | H66: 11361 | I66: 4 | J66: 21 | K66: 0
A67: 10067 | B67: Connecteur basse T ligne Souterraine | D67: E-2-2 | E67: 1 | F67: 20 | G67: 127.5 | H67: 2550 | I67: 5 | J67: 20 | K67: 0
A68: 10068 | B68: Connecteur basse T ligne Souterraine | D68: E-2-2 | E68: 1 | F68: 60 | G68: 27.5 | H68: 1650 | I68: 10 | J68: 60 | K68: 0
A69: 10069 | B69: Dijoncteur diférentiel Legrand 30mA | D69: E-2-3 | E69: 1 | F69: 5 | G69: 102.36 | H69: 511.8 | I69: 1 | J69: 5 | K69: 0
A70: 10070 | B70: Relais Télémécanique CA2KN22B7 | D70: E-2-3 | E70: 1 | F70: 9 | G70: 55.1 | H70: 495.9 | I70: 2 | J70: 9 | K70: 0
A71: 10071 | B71: Barrette de jonction beige | D71: E-2-3 | E71: 1 | F71: 5 | G71: 5.65 | H71: 28.25 | I71: 1 | J71: 5 | K71: 0
A72: 10072 | B72: Borne de raccordement Nexams | D72: E-2-3 | E72: 1 | F72: 5 | G72: 85.22 | H72: 426.1 | I72: 1 | J72: 5 | K72: 0
A73: 10073 | B73: Relais Télémécanique CA2-EN-122 | D73: F-1-1 | E73: 1 | F73: 10 | G73: 52.36 | H73: 523.6 | I73: 1 | J73: 10 | K73: 0
A74: 10074 | B74: Dijoncteur Merlin Guerin multi9 sti | D74: F-1-1 | E74: 1 | F74: 3 | G74: 126.98 | H74: 380.94 | I74: 1 | J74: 3 | K74: 0
A75: 10075 | B75: Contact auxiliaire LA1-D22 | D75: F-1-1 | E75: 1 | F75: 70 | G75: 6.75 | H75: 472.5 | I75: 10 | J75: 70 | K75: 0
A76: 10076 | B76: Dijoncteur Merlin G multi9 sti 10,3x38 | D76: F-1-1 | E76: 1 | F76: 3 | G76: 135.65 | H76: 406.95 | I76: 1 | J76: 3 | K76: 0
A77: 10077 | B77: Dijoncteur Télémécanique GV1-M10 | D77: F-1-3 | E77: 1 | F77: 14 | G77: 102.54 | H77: 1435.56 | I77: 3 | J77: 14 | K77: 0
A78: 10078 | B78: Dijoncteur télémécanique GV2ME08 | D78: F-1-2 | E78: 1 | F78: 2 | G78: 87.22 | H78: 174.44 | I78: 2 | J78: 2 | K78: 0
A79: 10079 | B79: Contact auxiliaire LC1-EC-03 | D79: F-1-2 | E79: 1 | F79: 4 | G79: 21.15 | H79: 84.6 | I79: 2 | J79: 4 | K79: 0
A80: 10080 | B80: Support d'aile simple | D80: F-1-2 | E80: 1 | F80: 12 | G80: 4.5 | H80: 54 | I80: 2 | J80: 12 | K80: 0
A81: 10081 | B81: Bloc broche télémécanique LC1K | D81: F-1-2 | E81: 1 | F81: 5 | G81: 15.65 | H81: 78.25 | I81: 2 | J81: 5 | K81: 0
A82: 10082 | B82: Contacteur Moeller DIL R22D | D82: F-1-3 | E82: 1 | F82: 2 | G82: 225.54 | H82: 451.08 | I82: 1 | J82: 2 | K82: 0
A83: 10083 | B83: Relais électromécanique 48V50/60Hz | D83: F-1-3 | E83: 1 | F83: 3 | G83: 175.2 | H83: 525.6 | I83: 1 | J83: 3 | K83: 0
A84: 10084 | B84: Contact auxiliaire LA1-D22 | D84: F-1-3 | E84: 1 | F84: 16 | G84: 78.2 | H84: 1251.2 | I84: 5 | J84: 16 | K84: 0
A85: 10085 | B85: Interrupteur général | D85: F-2-1 | E85: 1 | F85: 2 | G85: 19.95 | H85: 39.9 | I85: 1 | J85: 2 | K85: 0
A86: 10086 | B86: Serveur UNITEK | D86: F-2-1 | E86: 1 | F86: 1 | G86: 450 | H86: 450 | I86: 1 | J86: 1 | K86: 0
A87: 10087 | B87: Contacteur de fin de course PSM-A10 | D87: F-2-1 | E87: 1 | F87: 8 | G87: 65.2 | H87: 521.6 | I87: 2 | J87: 8 | K87: 0
A88: 10088 | B88: Dijoncteur Merli Guerin C60N C10 | D88: F-2-1 | E88: 1 | F88: 3 | G88: 45.2 | H88: 135.6 | I88: 1 | J88: 3 | K88: 0
A89: 10089 | B89: Kit poignet | D89: F-2-2 | E89: 1 | F89: 2 | G89: 15.65 | H89: 31.3 | I89: 1 | J89: 2 | K89: 0
A90: 10090 | B90: Relais miniature FENDER 35.34 | D90: F-2-2 | E90: 1 | F90: 5 | G90: 115 | H90: 575 | I90: 1 | J90: 5 | K90: 0
A91: 10091 | B91: Fusible 50 A sachet de 10 | D91: F-2-2 | E91: 1 | F91: 17 | G91: 25.75 | H91: 437.75 | I91: 2 | J91: 17 | K91: 0
A92: 10092 | B92: Barrette de jonction Grise grane | D92: F-2-2 | E92: 1 | F92: 50 | G92: 5.25 | H92: 262.5 | I92: 10 | J92: 50 | K92: 0
A93: 10093 | B93: Console de programation | D93: F-2-2 | E93: 1 | F93: 1 | G93: 469 | H93: 469 | I93: 1 | J93: 1 | K93: 0
A94: 10094 | B94: Bouton marche arrêt | D94: F-2-3 | E94: 1 | F94: 4 | G94: 35 | H94: 140 | I94: 1 | J94: 4 | K94: 0
A95: 10095 | B95: Embout Pompe relais | D95: F-2-3 | E95: 1 | F95: 18 | G95: 2.65 | H95: 47.7 | I95: 5 | J95: 18 | K95: 0
A96: 10096 | B96: Support tour | D96: F-2-3 | E96: 1 | F96: 4 | G96: 25.65 | H96: 102.6 | I96: 1 | J96: 4 | K96: 0
A97: 10097 | B97: Contact auxiliaire LA1-D13 | D97: G-1-1 | E97: 1 | F97: 7 | G97: 65 | H97: 455 | I97: 1 | J97: 7 | K97: 0
A98: 10098 | B98: Porte fusible LS1-D2531 | D98: G-1-1 | E98: 1 | F98: 8 | G98: 29.95 | H98: 239.6 | I98: 2 | J98: 8 | K98: 0
A99: 10099 | B99: Contact auxiliaire LA1-D40 | D99: G-1-1 | E99: 1 | F99: 3 | G99: 35 | H99: 105 | I99: 1 | J99: 3 | K99: 0
A100: 10100 | B100: Relais de temporisation RHR 41 | D100: G-1-1 | E100: 1 | F100: 2 | G100: 145 | H100: 290 | I100: 1 | J100: 2 | K100: 0
A101: 10101 | B101: Bloc de jonction DB6 CD 110 | D101: G-1-2 | E101: 1 | F101: 9 | G101: 26.95 | H101: 242.55 | I101: 2 | J101: 9 | K101: 0
A102: 10102 | B102: Manchon métal | D102: G-1-2 | E102: 1 | F102: 10 | G102: 35.65 | H102: 356.5 | I102: 2 | J102: 10 | K102: 0
A103: 10103 | B103: Barrette de jonction fine lot de 10 | D103: G-1-2 | E103: 1 | F103: 8 | G103: 125 | H103: 1000 | I103: 2 | J103: 8 | K103: 0
A104: 10104 | B104: Relais récepteur 4 groupes | D104: G-1-2 | E104: 1 | F104: 1 | G104: 225.6 | H104: 225.6 | I104: 1 | J104: 1 | K104: 0
A105: 10105 | B105: Relais Télémécanique CA2-DN-131 | D105: G-1-3 | E105: 1 | F105: 27 | G105: 39.95 | H105: 1078.65 | I105: 5 | J105: 27 | K105: 0
A106: 10106 | B106: Dijoncteur Merlin Guerin multi9 ID | D106: G-1-3 | E106: 1 | F106: 1 | G106: 136.25 | H106: 136.25 | I106: 1 | J106: 1 | K106: 0
A107: 10107 | B107: Contacteur Télémécanique optimal 25 | D107: G-1-3 | E107: 1 | F107: 3 | G107: 234.25 | H107: 702.75 | I107: 1 | J107: 3 | K107: 0
A108: 10108 | B108: Emboiteur lot de 5 | D108: G-1-3 | E108: 1 | F108: 4 | G108: 12.45 | H108: 49.8 | I108: 1 | J108: 4 | K108: 0
A109: 10109 | B109: Interrupteur selectionneur 100A | D109: G-2-1 | E109: 1 | F109: 1 | G109: 15 | H109: 15 | I109: 1 | J109: 1 | K109: 0
A110: 10110 | B110: Interrupteur selectionneur 63A | D110: G-2-1 | E110: 1 | F110: 1 | G110: 25 | H110: 25 | I110: 1 | J110: 1 | K110: 0
A111: 10111 | B111: Dijoncteur Hager NGN 463 | D111: G-2-1 | E111: 1 | F111: 1 | G111: 136.65 | H111: 136.65 | I111: 1 | J111: 1 | K111: 0
A112: 10112 | B112: Relais de contrôle LR41400 | D112: G-2-1 | E112: 1 | F112: 1 | G112: 125.6 | H112: 125.6 | I112: 1 | J112: 1 | K112: 0
A113: 10113 | B113: Temporisateur Noir | D113: G-2-2 | E113: 1 | F113: 3 | G113: 65.25 | H113: 195.75 | I113: 1 | J113: 3 | K113: 0
A114: 10114 | B114: Connecteur prise terre | D114: G-2-2 | E114: 1 | F114: 2 | G114: 45.2 | H114: 90.4 | I114: 1 | J114: 2 | K114: 0
A115: 10115 | B115: Relais de temporisation RHN 41 C300 | D115: G-2-2 | E115: 1 | F115: 2 | G115: 26.65 | H115: 53.3 | I115: 1 | J115: 2 | K115: 0
A116: 10116 | B116: Contact auxiliaire LA1-D11 | D116: G-2-3 | E116: 1 | F116: 7 | G116: 38.45 | H116: 269.15 | I116: 1 | J116: 7 | K116: 0
A117: 10117 | B117: Dijoncteur Merli Guerin C60N vigi C60 | D117: G-2-3 | E117: 1 | F117: 1 | G117: 136.9 | H117: 136.9 | I117: 1 | J117: 1 | K117: 0
A118: 10118 | B118: Temporisateur bleu | D118: G-2-3 | E118: 1 | F118: 3 | G118: 27.65 | H118: 82.95 | I118: 1 | J118: 3 | K118: 0
A119: 10119 | B119: Colier de jonction Bardin | D119: G-2-3 | E119: 1 | F119: 3 | G119: 12.65 | H119: 37.95 | I119: 1 | J119: 3 | K119: 0
A120: 10120 | B120: Interruteur selectionneur 63A Vistop | D120: H-2-1 | E120: 1 | F120: 2 | G120: 75.85 | H120: 151.7 | I120: 1 | J120: 2 | K120: 0
A121: 10121 | B121: Emboiteur petite taille beige | D121: H-2-1 | E121: 1 | F121: 21 | G121: 12 | H121: 252 | I121: 5 | J121: 21 | K121: 0
A122: 10122 | B122: Relais Télémécanique CA2-DN-1319 | D122: H-2-1 | E122: 1 | F122: 5 | G122: 25.85 | H122: 129.25 | I122: 1 | J122: 5 | K122: 0
A123: 10123 | B123: Moniteur de vitesse | D123: H-2-1 | E123: 1 | F123: 2 | G123: 302.5 | H123: 605 | I123: 1 | J123: 2 | K123: 0
A124: 10124 | B124: Bloc diférentiel Vigi C80 | D124: I-2-1 | E124: 1 | F124: 1 | G124: 175.2 | H124: 175.2 | I124: 1 | J124: 1 | K124: 0
A125: 10125 | B125: Dijoncteur Merli guerin 40A EN60947 | D125: H-2-2 | E125: 1 | F125: 1 | G125: 35.65 | H125: 35.65 | I125: 1 | J125: 1 | K125: 0
A126: 10126 | B126: Relais Télémécanique CA2-DN-140 | D126: H-2-2 | E126: 1 | F126: 32 | G126: 26.6 | H126: 851.2 | I126: 10 | J126: 32 | K126: 0
A127: 10127 | B127: Bloc de jonction DB6 CD 105 | D127: H-2-2 | E127: 1 | F127: 7 | G127: 35.55 | H127: 248.85 | I127: 2 | J127: 7 | K127: 0
A128: 10128 | B128: Relais R 100K 76D | D128: H-2-3 | E128: 1 | F128: 2 | G128: 25.65 | H128: 51.3 | I128: 1 | J128: 2 | K128: 0
A129: 10129 | B129: Coupe circuit Merlin Guerin 10 x 38 | D129: H-2-3 | E129: 1 | F129: 5 | G129: 45.65 | H129: =IF(G129="","",G129*F129) -> 228.25 | I129: 1 | J129: 5 | K129: =IF(F129<=I129,J129-F129,IF(F129>I129,J129-F129)) -> 0
A130: 10130 | B130: Détecteur interrupteur XUB-F4452 | D130: H-2-3 | E130: 1 | F130: 2 | G130: 124 | H130: 248 | I130: 1 | J130: 2 | K130: 0
A131: 10131 | B131: Relais Rebox 762 | D131: H-2-3 | E131: 1 | F131: 1 | G131: 135.65 | H131: 135.65 | I131: 1 | J131: 1 | K131: 0
A132: 10132 | B132: Relais thermique LR1-D09308 | D132: H-1-1 | E132: 1 | F132: 18 | G132: 25.65 | H132: 461.7 | I132: 5 | J132: 18 | K132: 0
A133: 10133 | B133: Triple barrette grise | D133: H-1-1 | E133: 1 | F133: 2 | G133: 35.45 | H133: 70.9 | I133: 1 | J133: 2 | K133: 0
A134: 10134 | B134: Barrette de jonction Brune | D134: H-1-1 | E134: 1 | F134: 12 | G134: 15.32 | H134: 183.84 | I134: 2 | J134: 12 | K134: 0
A135: 10135 | B135: Connecteur de ventilation | D135: H-1-1 | E135: 1 | F135: 5 | G135: 148.95 | H135: 744.75 | I135: 1 | J135: 5 | K135: 0
A136: 10136 | B136: Porte fusible LS1-D253 | D136: H-1-2 | E136: 1 | F136: 9 | G136: 35.21 | H136: 316.89 | I136: 1 | J136: 9 | K136: 0
A137: 10137 | B137: Module de commande Satchwell | D137: H-1-2 | E137: 1 | F137: 16 | G137: 140.25 | H137: 2244 | I137: 2 | J137: 16 | K137: 0
A138: 10138 | B138: Manchon en emboiture | D138: H-1-2 | E138: 1 | F138: 4 | G138: 35.6 | H138: 142.4 | I138: 1 | J138: 4 | K138: 0
A139: 10139 | B139: Dijoncteur divisionnaire 16A M.Guerin | D139: H-1-2 | E139: 1 | F139: 1 | G139: 145.65 | H139: 145.65 | I139: 1 | J139: 1 | K139: 0
A140: 10140 | B140: Dijoncteur Multi9 C60N B10 | D140: H-1-3 | E140: 1 | F140: 2 | G140: 122.25 | H140: 244.5 | I140: 1 | J140: 2 | K140: 0
A141: 10141 | B141: Contacteur Schneider 25A | D141: H-1-3 | E141: 1 | F141: 5 | G141: 45.65 | H141: 228.25 | I141: 1 | J141: 5 | K141: 0
A142: 10142 | B142: Démarreur moteur Legrand 40A | D142: H-1-3 | E142: 1 | F142: 2 | G142: 212.85 | H142: 425.7 | I142: 1 | J142: 2 | K142: 0
A143: 10143 | B143: Kit de raccordement Legrand | D143: H-1-3 | E143: 1 | F143: 6 | G143: 125.2 | H143: 751.2 | I143: 1 | J143: 6 | K143: 0
A144: 10144 | B144: Relais thermique LR1-D09310 | D144: I-1-1 | E144: 1 | F144: 22 | G144: 23.25 | H144: 511.5 | I144: 2 | J144: 22 | K144: 0
A145: 10145 | B145: Protection moteur Moeller | D145: I-1-1 | E145: 1 | F145: 2 | G145: 122.5 | H145: 245 | I145: 1 | J145: 2 | K145: 0
A146: 10146 | B146: Relais thermique ABB T25 DJ | D146: I-1-1 | E146: 1 | F146: 5 | G146: 24.65 | H146: 123.25 | I146: 1 | J146: 5 | K146: 0
A147: 10147 | B147: ConnectionMoeller DIL EM-01 | D147: I-1-1 | E147: 1 | F147: 2 | G147: 35.65 | H147: 71.3 | I147: 1 | J147: 2 | K147: 0
A148: 10148 | B148: Prise courant murale US 100 | D148: I-1-2 | E148: 1 | F148: 3 | G148: 17.5 | H148: 52.5 | I148: 1 | J148: 3 | K148: 0
A149: 10149 | B149: Interrupteur mural | D149: I-1-2 | E149: 1 | F149: 33 | G149: 12.65 | H149: 417.45 | I149: 5 | J149: 33 | K149: 0
A150: 10150 | B150: Dijoncteur Télémécanique GV2-M04 | D150: I-1-2 | E150: 1 | F150: 15 | G150: 122.36 | H150: 1835.4 | I150: 1 | J150: 15 | K150: 0
A151: 10151 | B151: Prise encastrable Legrand Neptune | D151: I-1-2 | E151: 1 | F151: 4 | G151: 26.5 | H151: 106 | I151: 1 | J151: 4 | K151: 0
A152: 10152 | B152: Relais télémécanique RHN 41 | D152: I-2-3 | E152: 1 | F152: 8 | G152: 23.65 | H152: 189.2 | I152: 1 | J152: 8 | K152: 0
A153: 10153 | B153: Dijoncteur Télémécanique CA2 | D153: I-1-3 | E153: 1 | F153: 17 | G153: 35.6 | H153: 605.2 | I153: 5 | J153: 17 | K153: 0
A154: 10154 | B154: Bloc de liaison DB6ED01 | D154: I-1-3 | E154: 1 | F154: 6 | G154: 12.6 | H154: 75.6 | I154: 1 | J154: 6 | K154: 0
A155: 10155 | B155: Prise encastrable Legrand courbe | D155: I-1-3 | E155: 1 | F155: 2 | G155: 12.65 | H155: 25.3 | I155: 1 | J155: 2 | K155: 0
A156: 10156 | B156: Porte fusible BBC A25.30 | D156: J-1-1 | E156: 1 | F156: 2 | G156: 23.5 | H156: 47 | I156: 1 | J156: 2 | K156: 0
A157: 10157 | B157: Dijoncteur 25A Merli Guerin | D157: J-1-3 | E157: 1 | F157: 7 | G157: 45.87 | H157: 321.09 | I157: 1 | J157: 7 | K157: 0
A158: 10158 | B158: Thermostat Modulaire T3Sm | D158: J-1-1 | E158: 1 | F158: 2 | G158: 55.65 | H158: 111.3 | I158: 1 | J158: 2 | K158: 0
A159: 10159 | B159: Relais thermique LR1D09 | D159: J-1-1 | E159: 1 | F159: 42 | G159: 23.45 | H159: 984.9 | I159: 5 | J159: 42 | K159: 0
A160: 10160 | B160: Dijoncteur LC1-D093 A65 | D160: J-1-2 | E160: 1 | F160: 15 | G160: 55.65 | H160: 834.75 | I160: 5 | J160: 15 | K160: 0
A161: 10161 | B161: Dijoncteur LC1-D123 | D161: J-1-2 | E161: 1 | F161: 6 | G161: 44.25 | H161: 265.5 | I161: 1 | J161: 6 | K161: 0
A162: 10162 | B162: Relais télémécanique RHN 411B | D162: J-1-2 | E162: 1 | F162: 13 | G162: 23.65 | H162: 307.45 | I162: 2 | J162: 13 | K162: 0
A163: 10163 | B163: Bloc de liaison LR1D9307 | D163: J-1-2 | E163: 1 | F163: 7 | G163: 16.85 | H163: 117.95 | I163: 1 | J163: 7 | K163: 0
A164: 10164 | B164: Dijoncteur Multi9 C60N C25 | D164: J-1-1 | E164: 1 | F164: 6 | G164: 56.2 | H164: 337.2 | I164: 1 | J164: 6 | K164: 0
A165: 10165 | B165: Bloc de liaison DB6CD102 | D165: I-2-1 | E165: 1 | F165: 22 | G165: 17 | H165: 374 | I165: 2 | J165: 22 | K165: 0
A166: 10166 | B166: Ventillateur ordi Morex | D166: J-1-3 | E166: 1 | F166: 1 | G166: 125 | H166: 125 | I166: 1 | J166: 1 | K166: 0
A167: 10167 | B167: Relais Télémécanique LC2-EC09 | D167: J-1-3 | E167: 1 | F167: 4 | G167: 23.5 | H167: 94 | I167: 1 | J167: 4 | K167: 0
A168: 10168 | B168: Toner Canon CE285A Noir | D168: K-1-1 | E168: 1 | F168: 1 | G168: 59 | H168: 59 | I168: 1 | J168: 1 | K168: 0
A169: 10169 | B169: Toner HP CC532AC Jaune | D169: K-1-1 | E169: 1 | F169: 1 | G169: 62 | H169: 62 | I169: 1 | J169: 1 | K169: 0
A170: 10170 | B170: Toner Canon Cartridge 718 Bleu | D170: K-1-4 | E170: 1 | F170: 6 | G170: 62 | H170: 372 | I170: 1 | J170: 6 | K170: 0
A171: 10172 | B171: Toner Canon Cartridge 718 Jaune | D171: K-1-4 | E171: 1 | F171: 6 | G171: 62 | H171: 372 | I171: 1 | J171: 6 | K171: 0
A172: 10173 | B172: Toner Office Dépôt 5411421 Noir | D172: K-2-4 | E172: 1 | F172: 6 | G172: 54 | H172: 324 | I172: 1 | J172: 6 | K172: 0
A173: 10176 | B173: Toner Remanufactured Yellow | D173: K-1-3 | E173: 1 | F173: 1 | G173: 57 | H173: 57 | I173: 1 | J173: 1 | K173: 0
A174: 10178 | B174: Toner HP Laserjet 124A Bleu | D174: K-2-3 | E174: 1 | F174: 1 | G174: 55 | H174: 55 | I174: 1 | J174: 1 | K174: 0
A175: 10179 | B175: Module de contrôle | D175: I-2-2 | E175: 1 | F175: 40 | G175: 6.75 | H175: =IF(G175="","",G175*F175) -> 270 | I175: 10 | J175: 40 | K175: 0
A176: 10180 | B176: Dijoncteur Télémécanique CA2-DN12 | D176: I-2-2 | E176: 1 | F176: 36 | G176: 8.74 | H176: =IF(G176="","",G176*F176) -> 314.64 | I176: 10 | J176: 36 | K176: 0
A177: 10181 | B177: Temporisateur YRELEC | D177: I-2-2 | E177: 1 | F177: 7 | G177: 37.65 | H177: =IF(G177="","",G177*F177) -> 263.55 | I177: 1 | J177: 7 | K177: 0
A178: 10182 | B178: transformateur de sécurité | D178: I-2-2 | E178: 1 | F178: 11 | G178: 56.65 | H178: =IF(G178="","",G178*F178) -> 623.15 | I178: 2 | J178: 11 | K178: 0
A179: 10183 | B179: Dijoncteur Télémécanique CA2-DN1229 A65 | D179: I-2-2 | E179: 1 | F179: 33 | G179: 123.54 | H179: =IF(G179="","",G179*F179) -> 4076.82 | I179: 10 | J179: 33 | K179: 0
A180: 10184 | B180: Prise bloc mural Legrand | D180: I-2-3 | E180: 1 | F180: 4 | G180: 12.5 | H180: 50 | I180: 1 | J180: 4 | K180: 0
A181: 10185 | B181: Connecteur TSX 16 04 | D181: I-2-3 | E181: 1 | F181: 4 | G181: 3554 | H181: 14216 | I181: 1 | J181: 4 | K181: 0
A182: 10186 | B182: Routeur NETOPIA | D182: I-2-3 | E182: 1 | F182: 1 | G182: 158.85 | H182: 158.85 | I182: 1 | J182: 1 | K182: 0
A183: 10187 | B183: Interphone | D183: I-2-3 | E183: 1 | F183: 8 | G183: 37.55 | H183: 300.4 | I183: 1 | J183: 8 | K183: 0
A184: 10188 | B184: Résistance ZIEHL MSF 220 | D184: J-2-1 | E184: 1 | F184: 1 | G184: 24.5 | H184: 24.5 | I184: 1 | J184: 1 | K184: 0
A185: 10189 | B185: Dijoncteur Multi 9 C32H | D185: J-2-1 | E185: 1 | F185: 1 | G185: 120.5 | H185: 120.5 | I185: 1 | J185: 1 | K185: 0
A186: 10190 | B186: Compteur à bobines | D186: J-2-1 | E186: 1 | F186: 2 | G186: 24.5 | H186: 49 | I186: 1 | J186: 2 | K186: 0
A187: 10191 | B187: Dijoncteur Merlin Guérin C32H-DC | D187: J-2-1 | E187: 1 | F187: 1 | G187: 57.85 | H187: 57.85 | I187: 1 | J187: 1 | K187: 0
A188: 10192 | B188: Porte fusible double 129005 A | D188: J-2-3 | E188: 1 | F188: 3 | G188: 45 | H188: 135 | I188: 1 | J188: 3 | K188: 0
A189: 10193 | B189: Bouchon d'embout mamelon | D189: J-2-1 | E189: 1 | F189: 250 | G189: 2.5 | H189: 625 | I189: 20 | J189: 250 | K189: 0
A190: 10194 | B190: Dijoncteur simple SD | D190: J-2-2 | E190: 1 | F190: 1 | G190: 45 | H190: 45 | I190: 1 | J190: 1 | K190: 0
A191: 10195 | B191: Dijoncteur RHN 411E | D191: J-2-3 | E191: 1 | F191: 3 | G191: 136.25 | H191: 408.75 | I191: 1 | J191: 3 | K191: 0
A192: 10196 | B192: Embout R-I-A | D192: J-2-2 | E192: 1 | F192: 24 | G192: 18.95 | H192: 454.8 | I192: 5 | J192: 24 | K192: 0
A193: 10197 | B193: Dijoncteur Legrand D1 | D193: J-2-2 | E193: 1 | F193: 1 | G193: 55 | H193: 55 | I193: 1 | J193: 1 | K193: =IF(F193<=I193,J193-F193,IF(F193>I193,J193-F193)) -> 0
A194: 10198 | B194: Contrôleur Télémécanique CA2-DN-1229 | D194: J-2-2 | E194: 1 | F194: 12 | G194: 54.4 | H194: 652.8 | I194: 3 | J194: 12 | K194: 0
A195: 10199 | B195: Détecteur KDE 206 FBOAZ | D195: J-2-3 | E195: 1 | F195: 1 | G195: 58.9 | H195: 58.9 | I195: 1 | J195: 1 | K195: 0
A196: 10200 | B196: Dijoncteur Merlin Guérin C60A C20 | D196: J-2-3 | E196: 1 | F196: 3 | G196: 50.05 | H196: 150.15 | I196: 1 | J196: 3 | K196: 0
A197: 10201 | B197: Dijoncteur Télémécanique GV1-M07 | D197: J-2-3 | E197: 1 | F197: 1 | G197: 150.25 | H197: 150.25 | I197: 1 | J197: 1 | K197: 0
A198: 10202 | B198: Répartiteur Merlin Guérin Virirex Rh113X | D198: I-2-1 | E198: 1 | F198: 2 | G198: 44.24 | H198: =IF(G198="","",G198*F198) -> 88.48 | I198: 1 | J198: 2 | K198: =IF(F198<=I198,J198-F198,IF(F198>I198,J198-F198)) -> 0
A199: 10203 | B199: Fréquence-mètre Révalco | D199: F-1-3 | E199: 1 | F199: 3 | G199: 44.45 | H199: 133.35 | I199: 1 | J199: 3 | K199: 0
A200: 10204 | B200: Centrale de connexion 348000 Patent | D200: J-2-3 | E200: 1 | F200: 1 | G200: 102 | H200: 102 | I200: 1 | J200: 1 | K200: 0
... 325 more rows

Sheet Étiquettes
A1: Référence | C1: Référence
A2: =IF(B1="","",VLOOKUP(B1,stock,2)) ->  | C2: =IF(D1="","",VLOOKUP(D1,stock,2)) -> 
A3: Adresse | B3: =IF(B1="","",VLOOKUP(B1,stock,4)) ->  | C3: Adresse | D3: =IF(D1="","",VLOOKUP(D1,stock,4)) -> 
A4: Référence | C4: Référence
A5: =IF(B4="","",VLOOKUP(B4,stock,2)) ->  | C5: =IF(D4="","",VLOOKUP(D4,stock,2)) -> 
A6: Adresse | B6: =IF(B4="","",VLOOKUP(B4,stock,4)) ->  | C6: Adresse | D6: =IF(D4="","",VLOOKUP(D4,stock,4)) -> 
A7: Référence | C7: Référence
A8: =IF(B7="","",VLOOKUP(B7,stock,2)) ->  | C8: =IF(D7="","",VLOOKUP(D7,stock,2)) -> 
A9: Adresse | B9: =IF(B7="","",VLOOKUP(B7,stock,4)) ->  | C9: Adresse | D9: =IF(D7="","",VLOOKUP(D7,stock,4)) -> 
A10: Référence | C10: Référence
A11: =IF(B10="","",VLOOKUP(B10,stock,2)) ->  | C11: =IF(D10="","",VLOOKUP(D10,stock,2)) -> 
A12: Adresse | B12: =IF(B10="","",VLOOKUP(B10,stock,4)) ->  | C12: Adresse | D12: =IF(D10="","",VLOOKUP(D10,stock,4)) -> 
A13: Référence | C13: Référence
A14: =IF(B13="","",VLOOKUP(B13,stock,2)) ->  | C14: =IF(D13="","",VLOOKUP(D13,stock,2)) -> 
A15: Adresse | B15: =IF(B13="","",VLOOKUP(B13,stock,4)) ->  | C15: Adresse | D15: =IF(D13="","",VLOOKUP(D13,stock,4)) -> 
A16: Référence | C16: Référence
A17: =IF(B16="","",VLOOKUP(B16,stock,2)) ->  | C17: =IF(D16="","",VLOOKUP(D16,stock,2)) -> 
A18: Adresse | B18: =IF(B16="","",VLOOKUP(B16,stock,4)) ->  | C18: Adresse | D18: =IF(D16="","",VLOOKUP(D16,stock,4)) -> 
A19: Référence | C19: Référence
A20: =IF(B19="","",VLOOKUP(B19,stock,2)) ->  | C20: =IF(D19="","",VLOOKUP(D19,stock,2)) -> 
A21: Adresse | B21: =IF(B19="","",VLOOKUP(B19,stock,4)) ->  | C21: Adresse | D21: =IF(D19="","",VLOOKUP(D19,stock,4)) -> 
A22: Référence | C22: Référence
A23: =IF(B22="","",VLOOKUP(B22,stock,2)) ->  | C23: =IF(D22="","",VLOOKUP(D22,stock,2)) -> 
A24: Adresse | B24: =IF(B22="","",VLOOKUP(B22,stock,4)) ->  | C24: Adresse | D24: =IF(D22="","",VLOOKUP(D22,stock,4)) -> 
A25: Référence | C25: Référence
A26: =IF(B25="","",VLOOKUP(B25,stock,2)) ->  | C26: =IF(D25="","",VLOOKUP(D25,stock,2)) -> 
A27: Adresse | B27: =IF(B25="","",VLOOKUP(B25,stock,4)) ->  | C27: Adresse | D27: =IF(D25="","",VLOOKUP(D25,stock,4)) -> 
A28: Référence | C28: Référence
A29: =IF(B28="","",VLOOKUP(B28,stock,2)) ->  | C29: =IF(D28="","",VLOOKUP(D28,stock,2)) -> 
A30: Adresse | B30: =IF(B28="","",VLOOKUP(B28,stock,4)) ->  | C30: Adresse | D30: =IF(D28="","",VLOOKUP(D28,stock,4)) -> 
A35: Référence | C35: Référence
A36: =IF(B35="","",VLOOKUP(B35,stock,2)) ->  | C36: =IF(D35="","",VLOOKUP(D35,stock,2)) -> 
A37: Adresse | B37: =IF(B35="","",VLOOKUP(B35,stock,4)) ->  | C37: Adresse | D37: =IF(D35="","",VLOOKUP(D35,stock,4)) -> 
A38: Référence | C38: Référence
A39: =IF(B38="","",VLOOKUP(B38,stock,2)) ->  | C39: =IF(D38="","",VLOOKUP(D38,stock,2)) -> 
A40: Adresse | B40: =IF(B38="","",VLOOKUP(B38,stock,4)) ->  | C40: Adresse | D40: =IF(D38="","",VLOOKUP(D38,stock,4)) -> 
A41: Référence | C41: 10204
A42: =IF(B41="","",VLOOKUP(B41,stock,2)) ->  | C42: =IF(D41="","",VLOOKUP(D41,stock,2)) -> 
A43: Adresse | B43: =IF(B41="","",VLOOKUP(B41,stock,4)) ->  | C43: Adresse | D43: =IF(D41="","",VLOOKUP(D41,stock,4)) -> 
A44: Référence | C44: Référence
A45: =IF(B44="","",VLOOKUP(B44,stock,2)) ->  | C45: =IF(D44="","",VLOOKUP(D44,stock,2)) -> 
A46: Adresse | B46: =IF(B44="","",VLOOKUP(B44,stock,4)) ->  | C46: Adresse | D46: =IF(D44="","",VLOOKUP(D44,stock,4)) -> 
A47: Référence | C47: Référence
A48: =IF(B47="","",VLOOKUP(B47,stock,2)) ->  | C48: =IF(D47="","",VLOOKUP(D47,stock,2)) -> 
A49: Adresse | B49: =IF(B47="","",VLOOKUP(B47,stock,4)) ->  | C49: Adresse | D49: =IF(D47="","",VLOOKUP(D47,stock,4)) -> 
A50: Référence | C50: Référence
A51: =IF(B50="","",VLOOKUP(B50,stock,2)) ->  | C51: =IF(D50="","",VLOOKUP(D50,stock,2)) -> 
A52: Adresse | B52: =IF(B50="","",VLOOKUP(B50,stock,4)) ->  | C52: Adresse | D52: =IF(D50="","",VLOOKUP(D50,stock,4)) -> 
A53: Référence | C53: Référence
A54: =IF(B53="","",VLOOKUP(B53,stock,2)) ->  | C54: =IF(D53="","",VLOOKUP(D53,stock,2)) -> 
A55: Adresse | B55: =IF(B53="","",VLOOKUP(B53,stock,4)) ->  | C55: Adresse | D55: =IF(D53="","",VLOOKUP(D53,stock,4)) -> 
A56: Référence | C56: Référence
A57: =IF(B56="","",VLOOKUP(B56,stock,2)) ->  | C57: =IF(D56="","",VLOOKUP(D56,stock,2)) -> 
A58: Adresse | B58: =IF(B56="","",VLOOKUP(B56,stock,4)) ->  | C58: Adresse | D58: =IF(D56="","",VLOOKUP(D56,stock,4)) -> 
A59: Référence | C59: Référence
A60: =IF(B59="","",VLOOKUP(B59,stock,2)) ->  | C60: =IF(D59="","",VLOOKUP(D59,stock,2)) -> 
A61: Adresse | B61: =IF(B59="","",VLOOKUP(B59,stock,4)) ->  | C61: Adresse | D61: =IF(D59="","",VLOOKUP(D59,stock,4)) -> 
A62: Référence | C62: Référence
A63: =IF(B62="","",VLOOKUP(B62,stock,2)) ->  | C63: =IF(D62="","",VLOOKUP(D62,stock,2)) -> 
A64: Adresse | B64: =IF(B62="","",VLOOKUP(B62,stock,4)) ->  | C64: Adresse | D64: =IF(D62="","",VLOOKUP(D62,stock,4)) -> 

Sheet Cde client
C6: =IF($D$13="","",VLOOKUP($D$13,carnetadresse,2,FALSE)) ->  | F6: BON DE COMMANDE
C7: =IF($D$13="","",VLOOKUP($D$13,carnetadresse,3,FALSE)) -> 
C8: =IF($D$13="","",VLOOKUP($D$13,carnetadresse,4,FALSE)) ->  | D8: =IF($D$13="","",VLOOKUP($D$13,carnetadresse,5,FALSE)) ->  | F8: N° :
C10: Tél : | D10: =IF($D$13="","",VLOOKUP($D$13,carnetadresse,6,FALSE)) ->  | F10: Date :
C11: Email : | D11: =IF($D$13="","",VLOOKUP($D$13,carnetadresse,7,FALSE)) -> 
F12: ='Gestion identité'!C5 -> B.S.L ÉLEC
C13: N° Client : | F13: ='Gestion identité'!C6 -> 5, rue Ste Anne
C15: Date de livraison : | F15: ='Gestion identité'!C7 -> 54340 Pompey
C18: Réf | D18: Désignation | F18: Qté | G18: Prix unitaire H.T. | H18: Prix total H.T.
D19: =IF(C19="","",VLOOKUP(C19,stock,2,FALSE)) ->  | E19: =IF(C19=0,"",VLOOKUP(C19,stock,3,FALSE)) ->  | G19: =IF(F19=0,"",VLOOKUP(C19,stock,7,FALSE)) ->  | H19: =IF(F19="","",F19*G19) -> 
H20: =IF(F20="","",F20*G20) -> 
E35: Total : | F35: =IF(F19="","",SUM(F19:F28)) -> 
F37: Total H.T. | H37: =SUM(H19:H35) -> 0
F38: TVA 20 % | H38: =H37*0.2 -> 0
F39: Total T.T.C | H39: =H37+H38 -> 0
C42: Observations :

Sheet Traitement Cde
D5: TRAITEMENT DE LA COMMANDE CLIENT
D7: =IF($E$13="","",VLOOKUP($E$13,carnetadresse,2,FALSE)) ->  | F7: N° Cde :
D8: =IF($E$13="","",VLOOKUP($E$13,carnetadresse,3,FALSE)) -> 
D9: =IF($E$13="","",VLOOKUP($E$13,carnetadresse,4,FALSE)) ->  | E9: =IF($E$13="","",VLOOKUP($E$13,carnetadresse,5,FALSE)) ->  | F9: Du :
C10: Tél : | D10: =IF($E$13="","",VLOOKUP($E$13,carnetadresse,6,FALSE)) -> 
C11: Email : | D11: =IF($E$13="","",VLOOKUP($E$13,carnetadresse,7,FALSE)) -> 
D13: N° Client :
D15: Date de livraison :
C18: Adresse | D18: Réf | E18: Désignation | G18: Quantité
C19: =IF(D19="","",VLOOKUP(D19,stock,4,FALSE)) ->  | E19: =IF(D19="","",VLOOKUP(D19,stock,2,FALSE)) -> 
C20: =IF(D20="","",VLOOKUP(D20,stock,4,FALSE)) ->  | E20: =IF(D20="","",VLOOKUP(D20,stock,2,FALSE)) -> 
C21: =IF(D21="","",VLOOKUP(D21,stock,4,FALSE)) ->  | E21: =IF(D21="","",VLOOKUP(D21,stock,2,FALSE)) -> 
C22: =IF(D22="","",VLOOKUP(D22,stock,4,FALSE)) ->  | E22: =IF(D22="","",VLOOKUP(D22,stock,2,FALSE)) -> 
C23: =IF(D23="","",VLOOKUP(D23,stock,4,FALSE)) ->  | E23: =IF(D23="","",VLOOKUP(D23,stock,2,FALSE)) -> 
C24: =IF(D24="","",VLOOKUP(D24,stock,4,FALSE)) ->  | E24: =IF(D24="","",VLOOKUP(D24,stock,2,FALSE)) -> 
F35: Total : | G35: =IF(G19="","",SUM(G19:G34)) -> 
D39: Observations :

Sheet bon de préparation
B3: ='Gestion identité'!C5 -> B.S.L ÉLEC
B4: ='Gestion identité'!C6 -> 5, rue Ste Anne | E4: BON DE PRÉPARATION N° | I4: CLIENT :
B5: ='Gestion identité'!C7 -> 54340 Pompey
D6: N° Client : | I6: =IF($E$6="","",VLOOKUP($E$6,carnetadresse,2,FALSE)) -> 
D7: Concerne la commande du : | F7: N° : | I7: =IF($E$6="","",VLOOKUP($E$6,carnetadresse,3,FALSE)) -> 
B8: Date d'expédition : | E8: Date de livraison : | I8: =IF($E$6="","",VLOOKUP($E$6,carnetadresse,4,FALSE)) ->  | J8: =IF($E$6="","",VLOOKUP($E$6,carnetadresse,5,FALSE)) -> 
D10: Transporteur : | E10: =IF($E$9="","",VLOOKUP($E$9,listetransporteur,2,FALSE)) ->  | F10: =IF($E$9="","",VLOOKUP($E$9,listetransporteur,4,FALSE)) ->  | G10: =IF($E$9="","",VLOOKUP($E$9,listetransporteur,5,FALSE)) -> 
B12: Référence | C12: Adresse | D12: Désignation | F12: Qté Cdée | G12: Qté prélvée | H12: Ecart | I12: Observations
C13: =IF(B13="","",VLOOKUP(B13,stock,4,FALSE)) ->  | D13: =IF(B13="","",VLOOKUP(B13,stock,2,FALSE)) ->  | H13: =IF(F13=G13,"",G13-F13) -> 
I28: Nom du préparateur :
B29: Nombre de colis : | E29: Poids de l'envoi : | G29: Kg

Sheet Bon de livraison
C5: ='Gestion identité'!C5 -> B.S.L ÉLEC | E5: BON DE LIVRAISON
C6: ='Gestion identité'!C6 -> 5, rue Ste Anne | E6: N° | F6: =IF('bon de préparation'!G4="","",48+'bon de préparation'!G4) -> 
C7: ='Gestion identité'!C7 -> 54340 Pompey
E8: CLIENT :
C9: Tél : | D9: 03.83.49.11.94
E10: =IF('bon de préparation'!I6="","",'bon de préparation'!I6) -> 
C11: Commande N° : | D11: =IF('bon de préparation'!G7="","",'bon de préparation'!G7) ->  | E11: =IF('bon de préparation'!I7="","",'bon de préparation'!I7) -> 
C12: du : | D12: =IF('bon de préparation'!E7="","",'bon de préparation'!E7) ->  | E12: =IF('bon de préparation'!I8="","",'bon de préparation'!I8) -> 
C13: Transporteur : | D13: =IF('bon de préparation'!E9="","",'bon de préparation'!E10) ->  | E13: =IF('bon de préparation'!J8="","",'bon de préparation'!J8) -> 
C14: Date de livraison : | D14: =IF('bon de préparation'!F8="","",'bon de préparation'!F8) -> 
C15: Date d'expédition le : | D15: =IF('bon de préparation'!D8="","",'bon de préparation'!D8) -> 
C17: Référence | D17: Désignation | E17: Qté Commandée | F17: Qté Livrée
C18: =IF('bon de préparation'!B13= "","",'bon de préparation'!B13) ->  | D18: =IF('bon de préparation'!D13="","",'bon de préparation'!D13) ->  | E18: =IF('bon de préparation'!F13="","",'bon de préparation'!F13) ->  | F18: =IF('bon de préparation'!G13="","",'bon de préparation'!G13) -> 
C19: =IF('bon de préparation'!B14= "","",'bon de préparation'!B14) ->  | D19: =IF('bon de préparation'!D14="","",'bon de préparation'!D14) ->  | E19: =IF('bon de préparation'!F14="","",'bon de préparation'!F14) ->  | F19: =IF('bon de préparation'!G14="","",'bon de préparation'!G14) -> 
C20: =IF('bon de préparation'!B15= "","",'bon de préparation'!B15) ->  | D20: =IF('bon de préparation'!D15="","",'bon de préparation'!D15) ->  | E20: =IF('bon de préparation'!F15="","",'bon de préparation'!F15) ->  | F20: =IF('bon de préparation'!G15="","",'bon de préparation'!G15) -> 
C21: =IF('bon de préparation'!B16= "","",'bon de préparation'!B16) ->  | D21: =IF('bon de préparation'!D16="","",'bon de préparation'!D16) ->  | E21: =IF('bon de préparation'!F16="","",'bon de préparation'!F16) ->  | F21: =IF('bon de préparation'!G16="","",'bon de préparation'!G16) -> 
C22: =IF('bon de préparation'!B17= "","",'bon de préparation'!B17) ->  | D22: =IF('bon de préparation'!D17="","",'bon de préparation'!D17) ->  | E22: =IF('bon de préparation'!F17="","",'bon de préparation'!F17) ->  | F22: =IF('bon de préparation'!G17="","",'bon de préparation'!G17) -> 
C23: =IF('bon de préparation'!B18= "","",'bon de préparation'!B18) ->  | D23: =IF('bon de préparation'!D18="","",'bon de préparation'!D18) ->  | E23: =IF('bon de préparation'!F18="","",'bon de préparation'!F18) ->  | F23: =IF('bon de préparation'!G18="","",'bon de préparation'!G18) -> 
C24: =IF('bon de préparation'!B19= "","",'bon de préparation'!B19) ->  | D24: =IF('bon de préparation'!D19="","",'bon de préparation'!D19) ->  | E24: =IF('bon de préparation'!F19="","",'bon de préparation'!F19) ->  | F24: =IF('bon de préparation'!G19="","",'bon de préparation'!G19) -> 
C25: =IF('bon de préparation'!B20= "","",'bon de préparation'!B20) ->  | D25: =IF('bon de préparation'!D20="","",'bon de préparation'!D20) ->  | E25: =IF('bon de préparation'!F20="","",'bon de préparation'!F20) ->  | F25: =IF('bon de préparation'!G20="","",'bon de préparation'!G20) -> 
C26: =IF('bon de préparation'!B21= "","",'bon de préparation'!B21) ->  | D26: =IF('bon de préparation'!D21="","",'bon de préparation'!D21) ->  | E26: =IF('bon de préparation'!F21="","",'bon de préparation'!F21) ->  | F26: =IF('bon de préparation'!G21="","",'bon de préparation'!G21) -> 
C27: =IF('bon de préparation'!B22= "","",'bon de préparation'!B22) ->  | D27: =IF('bon de préparation'!D22="","",'bon de préparation'!D22) ->  | E27: =IF('bon de préparation'!F22="","",'bon de préparation'!F22) ->  | F27: =IF('bon de préparation'!G22="","",'bon de préparation'!G22) -> 
C28: =IF('bon de préparation'!B23= "","",'bon de préparation'!B23) ->  | D28: =IF('bon de préparation'!D23="","",'bon de préparation'!D23) ->  | E28: =IF('bon de préparation'!F23="","",'bon de préparation'!F23) ->  | F28: =IF('bon de préparation'!G23="","",'bon de préparation'!G23) -> 
C29: =IF('bon de préparation'!B24= "","",'bon de préparation'!B24) ->  | D29: =IF('bon de préparation'!D24="","",'bon de préparation'!D24) ->  | E29: =IF('bon de préparation'!F24="","",'bon de préparation'!F24) ->  | F29: =IF('bon de préparation'!G24="","",'bon de préparation'!G24) -> 
C30: =IF('bon de préparation'!B25= "","",'bon de préparation'!B25) ->  | D30: =IF('bon de préparation'!D25="","",'bon de préparation'!D25) ->  | E30: =IF('bon de préparation'!F25="","",'bon de préparation'!F25) ->  | F30: =IF('bon de préparation'!G25="","",'bon de préparation'!G25) -> 
D31: Total | E31: =IF(E18="","",SUM(E18:E30)) ->  | F31: =IF(F18="","",SUM(F18:F30)) -> 
C33: Observations :
E34: Nombre de colis : | F34: =IF('bon de préparation'!D29="","",'bon de préparation'!D29) -> 
E35: Poids en kg : | F35: =IF('bon de préparation'!F29="","",'bon de préparation'!F29) -> 

Sheet Étiquette colis EXPÉ
C2: ÉTIQUETTE D'EXPÉDITION
C4: Expéditeur | F4: Date d’expédition : | G4: =IF('bon de préparation'!D8="","",'bon de préparation'!D8) -> 
D5: ='Gestion identité'!C5 -> B.S.L ÉLEC
D6: ='Gestion identité'!C6 -> 5, rue Ste Anne | F6: N° de B.L: | G6: =IF('Bon de livraison'!F6="","",'Bon de livraison'!F6) -> 
D7: ='Gestion identité'!C7 -> 54340 Pompey
C9: Destinataire | G9: Département
D10: =IF('bon de préparation'!E6="","",'bon de préparation'!I6) ->  | G10: =LEFT(D12,2) -> 
D11: =IF('bon de préparation'!E6="","",'bon de préparation'!I7) -> 
D12: =IF('bon de préparation'!I8="","",'bon de préparation'!I8) ->  | E12: =IF('bon de préparation'!J8="","",'bon de préparation'!J8) -> 
C13: Transporteur : | F13: Date de livraison : | H13: Colis N° :
C14: =IF('bon de préparation'!$E$10="","",'bon de préparation'!$E$10) ->  | F14: =IF('Bon de livraison'!D14="","",'Bon de livraison'!D14) ->  | H14: 1
C15: =IF('bon de préparation'!$F$10="","",'bon de préparation'!$F$10) -> 
C16: =IF('bon de préparation'!$G$10="","",'bon de préparation'!$G$10) -> 
C19: =IF('bon de préparation'!$D$29>1,$C$4,"") ->  | F19: =IF('bon de préparation'!$D$29>1,$F$4,"") ->  | G19: =IF('bon de préparation'!$D$29>1,$G$4,"") -> 
D20: =IF('bon de préparation'!$D$29>1,$D$5,"") -> 
D21: =IF('bon de préparation'!$D$29>1,$D$6,"") ->  | F21: =IF('bon de préparation'!$D$29>1,$F$6,"") ->  | G21: =IF('bon de préparation'!$D$29>1,$G$6,"") -> 
D22: =IF('bon de préparation'!$D$29>1,$D$7,"") -> 
C24: =IF('bon de préparation'!D29>1,$C$9,"") ->  | G24: =IF('bon de préparation'!$D$29>1,$G$9,"") -> 
D25: =IF('bon de préparation'!$D$29>1,$D$10,"") ->  | G25: =LEFT(D27,2) -> 
D26: =IF('bon de préparation'!$D$29>1,$D$11,"") -> 
D27: =IF('bon de préparation'!$D$29>1,$D$12,"") ->  | E27: =IF('bon de préparation'!$D$29>1,$E$12,"") -> 
C28: =IF('bon de préparation'!$D$29>1,$C$13,"") ->  | F28: =IF('bon de préparation'!$D$29>1,$F$13,"") ->  | H28: =IF('bon de préparation'!$D$29>1,$H$13,"") -> 
C29: =IF('bon de préparation'!$D$29>1,$C$14,"") ->  | F29: =IF('bon de préparation'!$D$29>1,$F$14,"") ->  | H29: =IF('bon de préparation'!$D$29>1,2,"") -> 
C30: =IF('bon de préparation'!$D$29>1,$C$15,"") -> 
C31: =IF('bon de préparation'!$D$29>1,$C$16,"") -> 
C34: =IF('bon de préparation'!$D$29>2,$C$4,"") ->  | F34: =IF('bon de préparation'!$D$29>2,$F$4,"") ->  | G34: =IF('bon de préparation'!$D$29>2,$G$4,"") -> 
D35: =IF('bon de préparation'!$D$29>2,$D$5,"") -> 
D36: =IF('bon de préparation'!$D$29>2,$D$6,"") ->  | F36: =IF('bon de préparation'!$D$29>2,$F$6,"") ->  | G36: =IF('bon de préparation'!$D$29>2,$G$6,"") -> 
D37: =IF('bon de préparation'!$D$29>2,$D$7,"") -> 
C39: =IF('bon de préparation'!$D$29>2,$C$9,"") ->  | G39: =IF('bon de préparation'!$D$29>2,$G$9,"") -> 
D40: =IF('bon de préparation'!$D$29>2,$D$10,"") ->  | G40: =LEFT(D42,2) -> 
D41: =IF('bon de préparation'!$D$29>2,$D$11,"") -> 
D42: =IF('bon de préparation'!$D$29>2,$D$12,"") ->  | E42: =IF('bon de préparation'!$D$29>2,$E$12,"") -> 
C43: =IF('bon de préparation'!$D$29>2,$C$13,"") ->  | F43: =IF('bon de préparation'!$D$29>2,$F$13,"") ->  | H43: =IF('bon de préparation'!$D$29>2,$H$13,"") -> 
C44: =IF('bon de préparation'!$D$29>2,$C$14,"") ->  | F44: =IF('bon de préparation'!$D$29>2,$F$14,"") ->  | H44: =IF('bon de préparation'!$D$29>2,3,"") -> 
C45: =IF('bon de préparation'!$D$29>2,$C$15,"") -> 
C46: =IF('bon de préparation'!$D$29>2,$C$16,"") -> 

Sheet Lettre de voiture expé
B2: EXPEDITEUR | D2: DESTINATAIRE | G2: Nbre colis | H2: Port Payé H.T | J2: T.V.A 20 % | K2: Contre Remoursement
B3: ='Gestion identité'!C5 -> B.S.L ÉLEC | D3: =IF('bon de préparation'!E6="","",'bon de préparation'!I6) ->  | G3: =IF('bon de préparation'!E6="","",'bon de préparation'!D29) -> 
B4: ='Gestion identité'!C6 -> 5, rue Ste Anne | D4: =IF('bon de préparation'!E6="","",'bon de préparation'!I7) ->  | G4: Poids en Kg | H4: Port dû H.T | J4: Débours Assignés
B5: ='Gestion identité'!C7 -> 54340 Pompey | D5: =IF('bon de préparation'!E6="","",'bon de préparation'!I8) ->  | E5: =IF('bon de préparation'!E6="","",'bon de préparation'!J8) ->  | G5: =IF('bon de préparation'!E6="","",'bon de préparation'!F29) -> 
B6: Date d'exp | C6: =IF('bon de préparation'!D8="","",'bon de préparation'!D8) ->  | D6: Matériel électronique | L6: L'expédition contient des matières dangereuses selon RTMD/RD/ADR DECLARATION OBLIGATOIRE
B7: Lettre de voiture N° | C7: W25127
L8: oui | M8: non
D9: DESIGNATION - NATURE - MARQUES ET NUMEROS | H9: OBSERVATIONS DE LIVRAISON | L9: MATIERES DANGEREUSES
B10: Rayer la mention inutile | D10: Valeur à assurée | E10: Nos opérations sont soumises aux Conditions générales de transport de détail approuvées par décisions Ministérielles (J.O du 21.01.1971 et du 27.07.1985). | G10: VOIR AU VERSO EXTRAIT DE CES CONDITIONS GENERALES | H10: Les réserves pour être valables doivent. Etre indiquées de façon précise ci-contre Et confirmées dans les trois jours, par Lettre recommandée au livreur (article L 133-3 du code de commerce).
B12: Port Payé | C12: Port dû
B13: TRANSPORTEUR | F13: Conditions générales de vente | J13: Gencod
B14: =IF('bon de préparation'!$E$9="","",'bon de préparation'!E10) ->  | F14: Marchandise expédié le : | J14: Marchandise reçue le :
F15: RESERVES : | J15: RESERVES :
B16: =IF('bon de préparation'!$E$9="","",'bon de préparation'!F10) ->  | F16: (Cachet ou Nom et signature de l'expéditeur) | J16: (Cachet ou Nom et signature de l'expéditeur)
B18: =IF('bon de préparation'!E9="","",'bon de préparation'!G10) ->  | F18: Expéditeur | J18: Destinataire

Sheet Facture client
B2: ='Gestion identité'!C5 -> B.S.L ÉLEC | F2: Facture
B4: ='Gestion identité'!C6 -> 5, rue Ste Anne | F4: N° de client : | G4: =IF('bon de préparation'!E6="","",('bon de préparation'!E6)) -> 
B5: ='Gestion identité'!C7 -> 54340 Pompey
B6: Email | C6: ='Gestion identité'!C9 -> B.S.L Élec@orange.fr | F6: N° de facture : | G6: =IF('bon de préparation'!D8="","",'bon de préparation'!D8) -> 
B7: Téléphone | C7: ='Gestion identité'!C8 -> 03.83.49.11.94
F8: Date de facture : | G8: =IF(G10="","",G10) -> 
B10: Facturer à : | C10: =IF('bon de préparation'!I6="","",'bon de préparation'!I6) ->  | F10: Date de livraison : | G10: =IF('bon de préparation'!F8="","",'bon de préparation'!F8) -> 
B12: Adresse | C12: =IF('bon de préparation'!I7="","",'bon de préparation'!I7) -> 
B13: =IF('bon de préparation'!I8="","",'bon de préparation'!I8) ->  | C13: =IF('bon de préparation'!J8="","",'bon de préparation'!J8) -> 
B14: Téléphone | C14: =IF($C$10="","",VLOOKUP('bon de préparation'!$E$6,Client,6,FALSE)) -> 
B15: Email | C15: =IF($C$10="","",VLOOKUP('bon de préparation'!$E$6,Client,7,FALSE)) -> 
B17: Référence | C17: Description | E17: Quantité | F17: Prix unitaire HT | G17: Prix total HT
B19: =IF('bon de préparation'!B13="","",'bon de préparation'!B13) ->  | C19: =IF('bon de préparation'!D13="","",'bon de préparation'!D13) ->  | E19: =IF('bon de préparation'!G13="","",'bon de préparation'!G13) ->  | F19: =IF(B19="","",VLOOKUP(B19,stock,7,FALSE)) ->  | G19: =IF(B19="","",E19*F19) -> 
B20: =IF('bon de préparation'!B14="","",'bon de préparation'!B14) ->  | C20: =IF('bon de préparation'!D14="","",'bon de préparation'!D14) ->  | E20: =IF('bon de préparation'!G14="","",'bon de préparation'!G14) ->  | G20: =IF(B20="","",E20*F20) -> 
B21: =IF('bon de préparation'!B15="","",'bon de préparation'!B15) ->  | C21: =IF('bon de préparation'!D15="","",'bon de préparation'!D15) ->  | E21: =IF('bon de préparation'!G15="","",'bon de préparation'!G15) -> 
B22: =IF('bon de préparation'!B16="","",'bon de préparation'!B16) ->  | C22: =IF('bon de préparation'!D16="","",'bon de préparation'!D16) ->  | E22: =IF('bon de préparation'!G16="","",'bon de préparation'!G16) -> 
B23: =IF('bon de préparation'!B17="","",'bon de préparation'!B17) ->  | C23: =IF('bon de préparation'!D17="","",'bon de préparation'!D17) ->  | E23: =IF('bon de préparation'!G17="","",'bon de préparation'!G17) -> 
B24: =IF('bon de préparation'!B18="","",'bon de préparation'!B18) ->  | C24: =IF('bon de préparation'!D18="","",'bon de préparation'!D18) ->  | E24: =IF('bon de préparation'!G18="","",'bon de préparation'!G18) -> 
B25: =IF('bon de préparation'!B19="","",'bon de préparation'!B19) ->  | C25: =IF('bon de préparation'!D19="","",'bon de préparation'!D19) ->  | E25: =IF('bon de préparation'!G19="","",'bon de préparation'!G19) -> 
B26: =IF('bon de préparation'!B20="","",'bon de préparation'!B20) ->  | C26: =IF('bon de préparation'!D20="","",'bon de préparation'!D20) ->  | E26: =IF('bon de préparation'!G20="","",'bon de préparation'!G20) -> 
B27: =IF('bon de préparation'!B21="","",'bon de préparation'!B21) ->  | C27: =IF('bon de préparation'!D21="","",'bon de préparation'!D21) ->  | E27: =IF('bon de préparation'!G21="","",'bon de préparation'!G21) -> 
B28: =IF('bon de préparation'!B22="","",'bon de préparation'!B22) ->  | C28: =IF('bon de préparation'!D22="","",'bon de préparation'!D22) ->  | E28: =IF('bon de préparation'!G22="","",'bon de préparation'!G22) -> 
B29: =IF('bon de préparation'!B23="","",'bon de préparation'!B23) ->  | C29: =IF('bon de préparation'!D23="","",'bon de préparation'!D23) ->  | E29: =IF('bon de préparation'!G23="","",'bon de préparation'!G23) -> 
B30: =IF('bon de préparation'!B24="","",'bon de préparation'!B24) ->  | C30: =IF('bon de préparation'!D24="","",'bon de préparation'!D24) ->  | E30: =IF('bon de préparation'!G24="","",'bon de préparation'!G24) -> 
B31: =IF('bon de préparation'!B25="","",'bon de préparation'!B25) ->  | C31: =IF('bon de préparation'!D25="","",'bon de préparation'!D25) ->  | E31: =IF('bon de préparation'!G25="","",'bon de préparation'!G25) -> 
B32: =IF('bon de préparation'!B26="","",'bon de préparation'!B26) ->  | C32: =IF('bon de préparation'!D26="","",'bon de préparation'!D26) ->  | E32: =IF('bon de préparation'!G26="","",'bon de préparation'!G26) -> 
B34: Remarques et instructions de paiement : | E34: SOUS-TOTAL H.T : | G34: =IF(G19="","",SUM(G19:G32)) -> 
F35: TVA 20% : | G35: =IF(G19="","",G34*0.2) -> 
E37: À PAYER : | G37: =IF(G34="","",G34+G35) -> 

Sheet fiche d'inventaire
H4: Fiche d'inventaire
H6: Date:
D9: Adresse | E9: Référence | F9: Désignation | H9: Quantité Thèorique | I9: Quantité physique | J9: Ecart | L9: Observations
J10: + | K10: -
D11: =IF(E11="","",VLOOKUP(E11,stock,4)) ->  | F11: =IF(E11="","",VLOOKUP(E11,stock,2)) ->  | H11: =IF(E11="","",VLOOKUP(E11,stock,6)) ->  | J11: =IF(I11="","",IF(I11>H11,I11-H11,"")) ->  | K11: =IF(I11="","",IF(H11>I11,I11-H11,"")) -> 
J12: =IF(I12="","",IF(I12>H12,I12-H12,"")) ->  | K12: =IF(I12="","",IF(H12>I12,I12-H12,"")) -> 
L27: Nom et visa de l'opérateur:

Sheet Gestion identité
F3: Oui
C4: Identité de l'entreprise | F4: Non
B5: Identité | C5: B.S.L ÉLEC
B6: Adresse | C6: 5, rue Ste Anne
B7: code et ville | C7: 54340 Pompey
B8: Tél | C8: 03.83.49.11.94
B9: Mail | C9: B.S.L Élec@orange.fr
B10: Ville | C10: Pompey
B11: Code postale | C11: 54340

Sheet Rapport sur la compatibilité
B1: Rapport sur la compatibilité concernant MAGASIN LOG.xls
B2: Exécuté le 24/08/2015 08:00
B4: Les fonctionnalités suivantes de ce classeur ne sont pas prises en charge dans les versions antérieures d’Excel. Ces fonctionnalités seront peut-être perdues ou dégradées si vous ouvrez le classeur dans une version antérieure du programme ou si vous l’enregistrez dans un format de fichier antérieur.
B6: Perte significative de fonctionnalité | E6: Nb d'occurrences | F6: Version
B8: Tout effet appliqué à ce graphique va être supprimé. Tout texte en dehors des limites du graphique va être tronqué. | E8: 2
E9: dupli bon de commande '!A1:H66 | F9: Excel 97-2003
E10: Bon de livraison GEISLER'!A1:I48 | F10: Excel 97-2003
B13: Perte mineure de fidélité
B15: Certaines cellules ou certains styles de ce classeur contiennent une mise en forme qui n'est pas prise en charge par le format de fichier sélectionné. Ces formats seront convertis au format le plus proche disponible. | E15: 41 | F15: Excel 97-2003
